{"text_format":"1","workbook":"xlsx","n_sheets":18,"sheets":["Instructions","Project Information","Measure Input","PSD Summary","GECO Outputs","Lighting Savings","Lighting Controls Savings","HVAC Savings","HVAC Controls Savings","REC Savings","Low-Flow Fixture Savings","CKE Savings","CPM Savings","Incentive List","Checklist","Summary Report","Logging Data","Notes"],"not_rendered":{"charts":5,"images":57,"macros":1,"external_links":1,"defined_names":47,"comments":1,"pivot_tables":0},"unopened":[],"bounds":{"document_bytes":16777216,"sheet_cells":100000,"rows_first":2000,"rows_last":500,"rows_between":2000,"halvings":0,"cell_chars":16384,"cell_head_chars":4096},"cells_cut":0,"cells_raw":0,"read":"whole","date_system":"1900"}

{"sheet":"Instructions","index":0,"n_rows":36,"n_cols":110,"rows_kept":36,"cut":false,"hidden":false,"merged":[[20,89,22,89],[32,89,34,89],[12,83,14,89],[21,84,33,87],[20,91,22,99],[32,90,34,90],[32,91,34,99],[20,109,21,119],[22,109,25,119],[12,103,14,109],[21,104,33,107],[27,109,28,119],[29,109,31,119],[33,109,34,119],[25,69,27,69],[29,70,34,72],[29,73,34,79],[29,69,34,69],[12,63,14,69],[21,64,33,67],[20,69,23,69],[20,70,23,72],[25,70,27,72],[25,73,27,79],[20,77,23,79],[20,73,23,74],[20,75,23,76],[32,49,34,49],[32,50,34,59],[12,43,14,49],[21,44,33,47],[20,49,22,49],[20,50,22,59],[24,49,26,49],[24,50,26,59],[28,49,30,49],[28,50,30,59],[32,9,34,9],[31,29,34,29],[31,30,34,39],[20,29,23,29],[20,30,23,39],[25,30,29,39],[25,29,29,29],[35,109,37,119],[21,4,33,7],[32,10,34,19],[12,3,14,9],[28,89,30,89],[28,91,30,99],[24,89,26,89],[24,91,26,99],[12,23,14,29],[21,24,33,27],[20,10,22,19],[20,9,22,9],[24,10,26,19],[24,9,26,9],[28,9,30,9],[28,10,30,19]]}
[]
[]
[]
[]
[]
[]
[]
[]
[]
[]
[]
[]
[null,null,null,"Energy Smart Overview",null,null,null,null,null,null,null,null,null,null,null,null,null,null,null,null,null,null,null,"Prescriptive Incentive Process",null,null,null,null,null,null,null,null,null,null,null,null,null,null,null,null,null,null,null,"Incentive Caps and Thresholds",null,null,null,null,null,null,null,null,null,null,null,null,null,null,null,null,null,null,null,"Equipment Qualifications",null,null,null,null,null,null,null,null,null,null,null,null,null,null,null,null,null,null,null,"Navigating Workbook",null,null,null,null,null,null,null,null,null,null,null,null,null,null,null,null,null,null,null,"Frequently Asked Questions"]
[]
[null,null,null,null,null,null,null,null,null,null,null,null,null,null,null,null,null,null,null,null,null,null,null,null,null,null,null,null,null,null,null,null,null,null,null,null,null,null,null,null,null,null,null,null,null,null,null,null,null,null,null,null,null,null,null,null,null,null,null,null,null,null,null,null,null,null,null,null,null,null,null,null,null,null,null,null,null,null,null,null,null,null,"`"]
[]
[]
[]
[]
[]
[null,null,null,null,null,null,null,null,null,"●","Energy Smart is Entergy New Orleans' Energy Efficiency Program that incentivizes customers to perform energy saving upgrades in their facilities.",null,null,null,null,null,null,null,null,null,null,null,null,null,null,null,null,null,null,"●","Submit completed application, prescriptive incentive caluclator, one recent entergy bill, proposal and specification sheets to commercialapps@energysmartnola.com.",null,null,null,null,null,null,null,null,null,null,null,null,null,null,null,null,null,null,"●","Prescriptive incentives are paid a standard rate for qualifying one-for-one change outs.",null,null,null,null,null,null,null,null,null,null,null,null,null,null,null,null,null,null,"●","Lighting:",null,null,"ENERGY STAR Bulbs",null,"ENERGY STAR Fixtures",null,"   DLC Listed",null,null,null,null,null,null,null,null,null,null,null,"●",null,"Click on the arrows to navigate through the application.",null,null,null,null,null,null,null,null,null,null,null,null,null,null,null,null,null,"Q: How are the prescriptive incentive rates determined?"]
[]
[null,null,null,null,null,null,null,null,null,null,null,null,null,null,null,null,null,null,null,null,null,null,null,null,null,null,null,null,null,null,null,null,null,null,null,null,null,null,null,null,null,null,null,null,null,null,null,null,null,null,null,null,null,null,null,null,null,null,null,null,null,null,null,null,null,null,null,null,null,null,null,null,null,null,null,null,null,null,null,null,null,null,null,null,null,null,null,null,null,null,null,null,null,null,null,null,null,null,null,null,null,null,null,null,null,null,null,null,null,"A: They are based on the deemed savings value from the New Orleans Technical Reference Manual."]
[]
[null,null,null,null,null,null,null,null,null,"●","The program works with business owners, facility managers and trade ally contractors to identify energy saving opportunities.",null,null,null,null,null,null,null,null,null,null,null,null,null,null,null,null,null,null,null,null,null,null,null,null,null,null,null,null,null,null,null,null,null,null,null,null,null,null,"●","If Incentive is less than $5,000, no pre-approval is required. No funding is reserved. Submit upon completion.",null,null,null,null,null,null,null,null,null,null,null,null,null,null,null,null,null,null,null,null,null,null,null,null,null,null,null,null,null,null,null,null,null,null,null,null,null,null,"●",null,"Cells colored in green are the input cells and pink are reference cells."]
[null,null,null,null,null,null,null,null,null,null,null,null,null,null,null,null,null,null,null,null,null,null,null,null,null,null,null,null,null,"●","Once approved, implement your project.",null,null,null,null,null,null,null,null,null,null,null,null,null,null,null,null,null,null,null,null,null,null,null,null,null,null,null,null,null,null,null,null,null,null,null,null,null,null,"●","Kitchen Equipment:",null,null,"ENERGY STAR Rated"]
[]
[null,null,null,null,null,null,null,null,null,null,null,null,null,null,null,null,null,null,null,null,null,null,null,null,null,null,null,null,null,null,null,null,null,null,null,null,null,null,null,null,null,null,null,null,null,null,null,null,null,null,null,null,null,null,null,null,null,null,null,null,null,null,null,null,null,null,null,null,null,null,null,null,null,null,null,null,null,null,null,null,null,null,null,null,null,null,null,null,null,null,null,null,null,null,null,null,null,null,null,null,null,null,null,null,null,null,null,null,null,"Q: How do I know if my project is prescriptive?"]
[null,null,null,null,null,null,null,null,null,"●","The program provides cash incentives for completing eligible upgrades with proven energy savings.",null,null,null,null,null,null,null,null,null,null,null,null,null,null,null,null,null,null,null,null,null,null,null,null,null,null,null,null,null,null,null,null,null,null,null,null,null,null,"●","If Incentive is more than $5,000, pre-approval is required. Funds are reserved and submit application for pre-approval prior to installation process.",null,null,null,null,null,null,null,null,null,null,null,null,null,null,null,null,null,null,null,null,null,null,null,null,null,null,null,null,null,null,null,null,null,null,null,null,null,null,"●",null,"Cells colored in dark grey or blue are locked cells."]
[null,null,null,null,null,null,null,null,null,null,null,null,null,null,null,null,null,null,null,null,null,null,null,null,null,null,null,null,null,null,null,null,null,null,null,null,null,null,null,null,null,null,null,null,null,null,null,null,null,null,null,null,null,null,null,null,null,null,null,null,null,null,null,null,null,null,null,null,null,"●","HVAC:",null,null,"AHRI reference number or documentation from the AHRI Manual to verify the required efficiency level for all central air systems. Equipment capacity and efficiency must be based on AHRI design conditions. Incentives will be paid based on AHRI rated capacity.",null,null,null,null,null,null,null,null,null,null,null,null,null,null,null,null,null,null,null,null,null,null,null,null,null,null,null,null,null,null,null,null,null,null,null,"A: Click here to download the list of all prescriptive measures."]
[]
[null,null,null,null,null,null,null,null,null,null,null,null,null,null,null,null,null,null,null,null,null,null,null,null,null,null,null,null,null,"●","Submit project completion notice signed by the customer with any updated documentation."]
[null,null,null,null,null,null,null,null,null,"●","Applications are accepted on a rolling basis and there is no deadline to apply.",null,null,null,null,null,null,null,null,null,null,null,null,null,null,null,null,null,null,null,null,null,null,null,null,null,null,null,null,null,null,null,null,null,null,null,null,null,null,"●","Total incentives per facility per program year cannot exceed $50,000 for lighting and $50,000 for non-lighting up to the total cost of the upgrade.",null,null,null,null,null,null,null,null,null,null,null,null,null,null,null,null,null,null,null,null,null,null,null,null,null,null,null,null,null,null,null,null,null,null,null,null,null,null,"●",null,"If there are questions about the workbook, contact us at info@energysmartnola.com or 504-229-6868."]
[null,null,null,null,null,null,null,null,null,null,null,null,null,null,null,null,null,null,null,null,null,null,null,null,null,null,null,null,null,null,null,null,null,null,null,null,null,null,null,null,null,null,null,null,null,null,null,null,null,null,null,null,null,null,null,null,null,null,null,null,null,null,null,null,null,null,null,null,null,null,null,null,null,null,null,null,null,null,null,null,null,null,null,null,null,null,null,null,null,null,null,null,null,null,null,null,null,null,null,null,null,null,null,null,null,null,null,null,null,"Q: Can I use internal labor to install equipment and receive labor incentives?"]
[]
[null,null,null,null,null,null,null,null,null,null,null,null,null,null,null,null,null,null,null,null,null,null,null,null,null,null,null,null,null,null,null,null,null,null,null,null,null,null,null,null,null,null,null,null,null,null,null,null,null,null,null,null,null,null,null,null,null,null,null,null,null,null,null,null,null,null,null,null,null,null,null,null,null,null,null,null,null,null,null,null,null,null,null,null,null,null,null,null,null,null,null,null,null,null,null,null,null,null,null,null,null,null,null,null,null,null,null,null,null,"A: Yes, internal labor can be used but we do not incentivize labor costs because incentives are based on the energy saved for measures installed."]

{"sheet":"Project Information","index":1,"n_rows":35,"n_cols":114,"rows_kept":35,"cut":false,"hidden":false,"merged":[[32,9,33,12],[32,13,33,19],[12,3,14,9],[12,23,14,29],[12,43,14,49],[26,9,27,12],[22,13,23,19],[24,13,25,19],[26,13,27,19],[28,13,29,19],[30,13,31,19],[30,29,32,32],[30,33,32,39],[20,49,21,52],[22,29,23,32],[22,33,23,39],[12,63,14,69],[12,83,14,89],[21,4,33,7],[21,24,33,27],[21,44,33,47],[21,64,33,67],[21,84,33,87],[24,73,25,79],[20,9,21,12],[22,9,23,12],[20,13,21,19],[28,9,29,12],[30,9,31,12],[28,29,29,32],[28,33,29,39],[24,9,25,12],[20,53,21,59],[22,49,23,52],[22,53,23,59],[24,49,25,52],[24,53,25,59],[24,29,25,32],[24,33,25,39],[26,29,27,32],[26,33,27,39],[32,49,34,52],[32,53,34,59],[29,49,31,52],[29,53,31,59],[26,49,28,52],[26,53,28,59],[26,109,27,112],[28,89,32,92],[28,93,32,99],[22,69,23,72],[24,69,25,72],[26,69,32,72],[22,73,23,79],[26,73,32,79],[21,104,33,107],[22,89,27,92],[22,93,27,99],[32,113,33,119],[34,113,35,119],[12,103,14,112],[28,109,29,112],[30,109,31,112],[32,109,33,112],[34,109,35,112],[20,113,21,119],[22,113,23,119],[24,113,25,119],[26,113,27,119],[28,113,29,119],[30,113,31,119],[20,109,21,112],[22,109,23,112],[24,109,25,112]]}
[]
[]
[]
[]
[]
[]
[]
[]
[]
[]
[]
[]
[null,null,null,"Customer Information",null,null,null,null,null,null,null,null,null,null,null,null,null,null,null,null,null,null,null,"Trade Ally/Contractor Information",null,null,null,null,null,null,null,null,null,null,null,null,null,null,null,null,null,null,null,"Building Data",null,null,null,null,null,null,null,null,null,null,null,null,null,null,null,null,null,null,null,"Building Data References",null,null,null,null,null,null,null,null,null,null,null,null,null,null,null,null,null,null,null,"Program Selection",null,null,null,null,null,null,null,null,null,null,null,null,null,null,null,null,null,null,null,"Prescriptive Project (Select all that apply)"]
[]
[null,null,null,null,null,null,null,null,null,null,null,null,null,null,null,null,null,null,null,null,null,null,null,null,null,null,null,null,null,null,null,null,null,null,null,null,null,null,null,null,null,null,null,null,null,null,null,null,null,null,null,null,null,null,null,null,null,null,null,null,null,null,null,null,null,null,null,null,null,null,null,null,null,null,null,null,null,null,null,null,null,null,"`"]
[]
[]
[]
[]
[]
[null,null,null,null,null,null,null,null,null,"Name:",null,null,null,null,null,null,null,null,null,null,null,null,null,null,null,null,null,null,null,null,null,null,null,null,null,null,null,null,null,null,null,null,null,null,null,null,null,null,null,"Square Footage (ft2)",null,null,null,null,null,null,null,null,null,null,null,null,null,null,null,null,null,null,null,null,null,null,null,null,null,null,null,null,null,null,null,null,null,null,null,null,null,null,null,null,null,null,null,null,null,null,null,null,null,null,null,null,null,null,null,null,null,null,null,"Lighting:",null,null,null,false]
[]
[null,null,null,null,null,null,null,null,null,"Company:",null,null,null,null,null,null,null,null,null,null,null,null,null,null,null,null,null,null,null,"Name:",null,null,null,null,null,null,null,null,null,null,null,null,null,null,null,null,null,null,null,"Building Type:",null,null,null,null,null,null,null,null,null,null,null,null,null,null,null,null,null,null,null,"Building Data Information:",null,null,null,null,null,null,null,null,null,null,null,null,null,null,null,null,null,null,null,"Program Type:",null,null,null,null,null,null,null,null,null,null,null,null,null,null,null,null,null,null,null,"Lighting Controls:",null,null,null,false]
[]
[null,null,null,null,null,null,null,null,null,"Title:",null,null,null,null,null,null,null,null,null,null,null,null,null,null,null,null,null,null,null,"Company:",null,null,null,null,null,null,null,null,null,null,null,null,null,null,null,null,null,null,null,"Space Conditions:",null,null,null,null,null,null,null,null,null,null,null,null,null,null,null,null,null,null,null,"Building Data Sub-Data:",null,null,null,null,null,null,null,null,null,null,null,null,null,null,null,null,null,null,null,null,null,null,null,null,null,null,null,null,null,null,null,null,null,null,null,null,null,null,null,"HVAC: ",null,null,null,false]
[]
[null,null,null,null,null,null,null,null,null,"Phone Number:",null,null,null,null,null,null,null,null,null,null,null,null,null,null,null,null,null,null,null,"Title:",null,null,null,null,null,null,null,null,null,null,null,null,null,null,null,null,null,null,null,"Cooling Conditions: ",null,null,null,null,null,null,null,null,null,null,null,null,null,null,null,null,null,null,null,"Information:",null,null,null,{"$f":"IF(OR(ISBLANK($BV$23),ISBLANK($BV$25)),\"\",INDEX(Notes!$R$1:$T$54,MATCH(1,($BV$23=Notes!$R$1:$R$54)*($BV$25=Notes!$S$1:$S$54),0),3))","v":""},null,null,null,null,null,null,null,null,null,null,null,null,null,null,null,null,null,null,null,null,null,null,null,null,null,null,null,null,null,null,null,null,null,null,null,"HVAC Controls:",null,null,null,false]
[]
[null,null,null,null,null,null,null,null,null,"Email Address: ",null,null,null,null,null,null,null,null,null,null,null,null,null,null,null,null,null,null,null,"Phone Number:",null,null,null,null,null,null,null,null,null,null,null,null,null,null,null,null,null,null,null,null,null,null,null,null,null,null,null,null,null,null,null,null,null,null,null,null,null,null,null,null,null,null,null,null,null,null,null,null,null,null,null,null,null,null,null,null,null,null,null,"Project Stage: ",null,null,null,null,null,null,null,null,null,null,null,null,null,null,null,null,null,null,null,"Refigeration Controls:",null,null,null,false]
[null,null,null,null,null,null,null,null,null,null,null,null,null,null,null,null,null,null,null,null,null,null,null,null,null,null,null,null,null,null,null,null,null,null,null,null,null,null,null,null,null,null,null,null,null,null,null,null,null,"Heating Type: "]
[null,null,null,null,null,null,null,null,null,"Site Address:",null,null,null,null,null,null,null,null,null,null,null,null,null,null,null,null,null,null,null,"Email Address: ",null,null,null,null,null,null,null,null,null,null,null,null,null,null,null,null,null,null,null,null,null,null,null,null,null,null,null,null,null,null,null,null,null,null,null,null,null,null,null,null,null,null,null,null,null,null,null,null,null,null,null,null,null,null,null,null,null,null,null,null,null,null,null,null,null,null,null,null,null,null,null,null,null,null,null,null,null,null,null,"Low-Flow Water Fixtures:",null,null,null,false]
[]
[null,null,null,null,null,null,null,null,null,"Entergy Account Number:",null,null,null,null,null,null,null,null,null,null,null,null,null,null,null,null,null,null,null,null,null,null,null,null,null,null,null,null,null,null,null,null,null,null,null,null,null,null,null,"Average Electric Rate ($/kWh)",null,null,null,null,null,null,null,null,null,null,null,null,null,null,null,null,null,null,null,null,null,null,null,null,null,null,null,null,null,null,null,null,null,null,null,null,null,null,null,null,null,null,null,null,null,null,null,null,null,null,null,null,null,null,null,null,null,null,null,"Kitchen Equipment:",null,null,null,false]
[]
[null,null,null,null,null,null,null,null,null,null,null,null,null,null,null,null,null,null,null,null,null,null,null,null,null,null,null,null,null,null,null,null,null,null,null,null,null,null,null,null,null,null,null,null,null,null,null,null,null,null,null,null,null,null,null,null,null,null,null,null,null,null,null,null,null,null,null,null,null,null,null,null,null,null,null,null,null,null,null,null,null,null,null,null,null,null,null,null,null,null,null,null,null,null,null,null,null,null,null,null,null,null,null,null,null,null,null,null,null,"Computer/IT:",null,null,null,false]

{"sheet":"Measure Input","index":2,"n_rows":62,"n_cols":40,"rows_kept":62,"cut":false,"hidden":false,"merged":[[33,13,33,23],[37,13,37,23],[44,13,44,23],[5,13,6,14],[5,15,6,16],[5,17,6,18],[5,19,6,20],[5,21,6,23],[12,13,13,14],[12,15,13,16],[12,17,13,18],[21,13,22,14],[32,19,32,20],[15,17,15,18],[16,17,16,18],[17,17,17,18],[23,13,23,14],[30,15,30,16],[21,15,22,16],[59,17,61,23],[31,8,31,9],[29,10,29,11],[28,19,28,20],[2,5,3,7],[11,1,11,11],[20,1,20,11],[33,1,33,11],[37,1,37,11],[44,1,44,11],[49,1,49,11],[58,1,58,11],[5,8,6,11],[2,1,10,4],[5,5,10,7],[12,1,19,4],[21,1,32,4],[34,1,36,4],[38,1,43,4],[45,1,48,4],[57,5,57,7],[4,5,4,7],[4,8,4,11],[14,8,14,11],[50,1,57,4],[59,1,61,4],[61,8,61,11],[54,13,54,14],[55,13,55,14],[56,13,56,14],[57,13,57,14],[34,13,35,14],[47,13,47,14],[61,5,61,7],[45,13,46,14],[61,13,61,14],[56,5,56,7],[45,8,45,11],[52,5,52,7],[53,8,57,9],[36,8,36,11],[40,5,40,7],[41,5,41,7],[42,5,42,7],[43,5,43,7],[50,5,51,7],[50,8,50,11],[51,8,51,9],[45,15,46,16],[46,8,46,9],[46,10,46,11],[59,13,60,14],[59,15,60,16],[28,8,28,9],[27,10,27,11],[27,8,27,9],[52,21,55,22],[53,10,53,11],[54,10,54,11],[55,10,55,11],[28,13,28,14],[28,15,28,16],[28,17,28,18],[28,10,28,11],[29,17,29,18],[32,17,32,18],[40,18,40,19],[40,15,40,17],[41,15,43,17],[41,18,41,19],[42,18,42,19],[43,18,43,19],[61,15,61,16],[48,15,48,16],[48,13,48,14],[52,13,52,14],[49,13,49,23],[51,23,57,23],[53,15,53,16],[54,17,54,18],[55,19,55,20],[56,21,56,22],[57,17,57,18],[57,21,57,22],[50,15,51,16],[50,17,51,18],[50,19,51,20],[50,21,51,22],[54,15,57,16],[55,17,56,18],[52,17,53,18],[56,19,57,20],[50,13,51,14],[58,13,58,23],[52,15,52,16],[53,13,53,14],[52,19,54,20],[47,15,47,16],[59,5,60,7],[59,8,60,11],[17,13,17,14],[17,15,17,16],[18,13,18,14],[18,15,18,16],[19,13,19,14],[19,15,19,16],[47,5,47,7],[48,5,48,7],[32,13,32,14],[32,15,32,16],[31,10,31,11],[32,10,32,11],[30,13,30,14],[30,8,30,9],[53,5,53,7],[56,10,56,11],[57,10,57,11],[31,13,31,14],[31,15,31,16],[54,5,54,7],[38,8,39,11],[12,5,13,7],[12,8,13,11],[15,8,15,11],[26,10,26,11],[26,8,26,9],[16,8,16,11],[17,8,17,11],[16,5,17,7],[18,5,19,7],[18,8,18,11],[19,8,19,11],[22,8,22,9],[22,10,22,11],[21,8,21,11],[21,5,22,7],[23,5,27,7],[23,8,23,9],[14,5,15,7],[55,5,55,7],[43,8,43,11],[41,8,41,11],[45,5,46,7],[52,8,52,11],[28,5,28,7],[23,10,23,11],[24,10,24,11],[25,10,25,11],[36,5,36,7],[34,5,35,7],[34,8,35,11],[29,5,32,7],[29,8,29,9],[32,8,32,9],[30,10,30,11],[51,10,51,11],[47,8,47,9],[48,8,48,9],[47,10,47,11],[48,10,48,11],[40,8,40,11],[42,8,42,11],[38,5,39,7],[2,8,3,11],[7,19,7,20],[8,21,8,23],[9,21,9,23],[10,21,10,23],[8,13,8,14],[8,15,8,16],[8,17,8,18],[8,19,8,20],[10,15,10,16],[10,17,10,18],[7,8,10,9],[7,10,7,11],[2,13,3,14],[2,15,3,16],[2,17,3,18],[3,19,4,23],[4,13,4,14],[4,15,4,16],[4,17,4,18],[8,10,8,11],[9,10,9,11],[10,10,10,11],[7,21,7,23],[8,31,8,32],[9,24,9,25],[9,31,9,32],[15,24,15,25],[15,31,15,32],[16,24,16,25],[16,31,16,32],[17,24,17,25],[17,31,17,32],[11,24,11,29],[12,31,13,32],[24,17,24,18],[25,17,25,18],[24,13,24,14],[20,24,20,29],[23,15,23,16],[24,15,24,16],[25,15,25,16],[9,17,9,18],[14,17,14,18],[9,19,9,20],[10,19,10,20],[14,13,14,14],[14,15,14,16],[9,13,9,14],[11,13,11,23],[20,13,20,23],[2,24,3,25],[2,31,3,32],[9,26,9,27],[9,28,9,29],[8,26,8,27],[8,28,8,29],[7,26,7,27],[7,28,7,29],[14,24,14,25],[14,31,14,32],[10,26,10,27],[10,28,10,29],[2,30,61,30],[21,26,22,27],[18,31,18,32],[19,31,19,32],[23,31,23,32],[24,31,24,32],[10,31,10,32],[4,31,4,32],[29,31,29,32],[30,31,30,32],[31,31,31,32],[50,26,51,27],[40,31,40,32],[54,31,54,32],[55,24,55,25],[55,31,55,32],[41,33,41,34],[2,33,3,34],[4,33,4,34],[7,33,7,34],[8,33,8,34],[9,33,9,34],[10,33,10,34],[14,33,14,34],[15,33,15,34],[18,33,18,34],[43,24,43,25],[43,31,43,32],[47,24,47,25],[47,31,47,32],[48,24,48,25],[48,31,48,32],[52,24,52,25],[52,31,52,32],[41,24,41,25],[40,28,40,29],[52,33,52,34],[53,33,53,34],[29,33,29,34],[30,33,30,34],[31,33,31,34],[32,33,32,34],[62,31,62,32],[5,24,6,25],[12,24,13,25],[21,24,22,25],[34,24,35,25],[38,24,39,25],[45,24,46,25],[50,24,51,25],[59,24,60,25],[59,31,60,32],[56,24,56,25],[56,31,56,32],[57,24,57,25],[57,31,57,32],[61,24,61,25],[61,31,61,32],[53,24,53,25],[53,31,53,32],[7,35,7,36],[8,35,8,36],[9,35,9,36],[10,35,10,36],[14,35,14,36],[15,35,15,36],[16,35,16,36],[17,35,17,36],[18,35,18,36],[12,35,13,36],[21,31,22,32],[21,33,22,34],[21,35,22,36],[19,33,19,34],[34,31,35,32],[34,33,35,34],[34,35,35,36],[26,31,26,32],[27,31,27,32],[19,35,19,36],[23,35,23,36],[24,35,24,36],[25,35,25,36],[32,31,32,32],[25,31,25,32],[17,37,17,38],[18,37,18,38],[19,37,19,38],[23,37,23,38],[24,37,24,38],[25,37,25,38],[26,37,26,38],[27,37,27,38],[57,35,57,36],[36,35,36,36],[40,35,40,36],[41,35,41,36],[42,35,42,36],[43,35,43,36],[45,35,46,36],[53,35,53,36],[54,35,54,36],[55,35,55,36],[47,35,47,36],[48,35,48,36],[52,35,52,36],[56,35,56,36],[50,35,51,36],[21,37,22,38],[7,37,7,38],[8,37,8,38],[9,37,9,38],[10,37,10,38],[14,37,14,38],[15,37,15,38],[16,37,16,38],[5,37,6,38],[12,37,13,38],[38,37,39,38],[45,37,46,38],[50,37,51,38],[59,37,60,38],[52,37,52,38],[53,37,53,38],[54,37,54,38],[55,37,55,38],[56,37,56,38],[57,37,57,38],[40,37,40,38],[41,37,41,38],[42,37,42,38],[43,37,43,38],[47,37,47,38],[48,37,48,38],[46,17,48,23],[30,17,30,18],[31,17,31,18],[40,20,41,21],[50,28,51,29],[59,26,60,27],[59,28,60,29],[52,26,52,27],[52,28,52,29],[53,26,53,27],[54,24,54,25],[30,28,30,29],[34,26,35,27],[34,28,35,29],[38,26,39,27],[38,28,39,29],[31,28,31,29],[30,26,30,27],[30,24,30,25],[31,24,31,25],[41,28,41,29],[49,24,49,29],[44,24,44,29],[37,24,37,29],[45,26,46,27],[45,28,46,29],[29,26,29,27],[32,26,32,27],[32,28,32,29],[31,26,31,27],[40,26,40,27],[32,24,32,25],[36,24,36,25],[40,24,40,25],[36,26,36,27],[36,28,36,29],[29,24,29,25],[33,24,33,29],[43,26,43,27],[43,28,43,29],[42,26,42,27],[42,28,42,29],[41,26,41,27],[61,37,61,38],[31,35,31,36],[32,35,32,36],[54,33,54,34],[55,33,55,34],[56,33,56,34],[36,31,36,32],[41,31,41,32],[48,33,48,34],[47,33,47,34],[50,31,51,32],[50,33,51,34],[57,33,57,34],[59,33,60,34],[40,33,40,34],[61,35,61,36],[59,35,60,36],[38,33,39,34],[38,35,39,36],[45,31,46,32],[45,33,46,34],[42,31,42,32],[36,33,36,34],[61,33,61,34],[40,13,40,14],[41,13,41,14],[42,13,42,14],[43,13,43,14],[25,13,25,14],[26,13,26,14],[7,17,7,18],[18,17,18,18],[19,17,19,18],[10,13,10,14],[38,18,39,19],[29,19,29,20],[27,13,27,14],[26,15,26,16],[36,13,36,14],[9,15,9,16],[16,15,16,16],[27,15,27,16],[26,17,26,18],[27,17,27,18],[16,13,16,14],[29,13,29,14],[42,20,42,21],[43,20,43,21],[29,37,29,38],[30,37,30,38],[31,37,31,38],[32,37,32,38],[36,37,36,38],[29,35,29,36],[30,35,30,36],[19,26,19,27],[20,31,20,38],[23,26,23,27],[23,28,23,29],[21,28,22,29],[26,26,26,27],[26,28,26,29],[28,31,28,38],[26,35,26,36],[27,35,27,36],[34,37,35,38],[27,26,27,27],[27,28,27,29],[25,26,25,27],[25,28,25,29],[24,26,24,27],[24,28,24,29],[26,33,26,34],[27,33,27,34],[17,26,17,27],[18,26,18,27],[7,24,7,25],[8,24,8,25],[25,24,25,25],[38,13,39,14],[38,15,39,17],[7,31,7,32],[38,20,39,21],[30,19,30,20],[31,19,31,20],[35,15,36,23],[29,15,29,16],[38,31,39,32],[12,33,13,34],[27,24,27,25],[7,13,7,14],[7,15,7,16],[15,13,15,14],[15,15,15,16],[21,17,22,18],[23,17,23,18],[5,33,6,34],[5,35,6,36],[2,35,3,36],[4,35,4,36],[1,22,1,23],[1,24,1,25],[1,33,1,34],[42,33,42,34],[43,33,43,34],[22,19,27,23],[13,19,19,23],[16,33,16,34],[17,33,17,34],[42,24,42,25],[26,24,26,25],[18,24,18,25],[10,24,10,25],[4,24,4,25],[19,24,19,25],[23,24,23,25],[24,24,24,25],[23,33,23,34],[24,33,24,34],[25,33,25,34],[61,26,61,27],[61,28,61,29],[28,24,28,29],[1,26,1,27],[1,28,1,29],[12,26,13,27],[12,28,13,29],[14,28,14,29],[16,28,16,29],[18,28,18,29],[15,28,15,29],[17,28,17,29],[19,28,19,29],[14,26,14,27],[15,26,15,27],[16,26,16,27],[53,28,53,29],[54,26,54,27],[54,28,54,29],[55,26,55,27],[55,28,55,29],[56,26,56,27],[56,28,56,29],[57,26,57,27],[28,21,32,23],[42,22,42,23],[38,22,39,23],[47,26,47,27],[47,28,47,29],[58,24,58,29],[1,39,1,42],[1,1,1,21],[29,28,29,29],[48,26,48,27],[48,28,48,29],[57,28,57,29],[1,35,1,36],[1,37,1,38],[2,26,3,27],[2,28,3,29],[5,26,6,27],[5,28,6,29],[4,26,4,27],[4,28,4,29],[1,31,1,32],[2,37,3,38],[4,37,4,38],[5,31,6,32]]}
[]
[null,"Prescriptive Calculator Analysis",null,null,null,null,null,null,null,null,null,null,null,null,null,null,null,null,null,null,null,null,"TOTAL:",null,{"$f":"SUM(Y5,Y8:Y11,Y15:Y20, Y24:Y28, Y30:Y33, Y37, Y41:Y44, Y48,Y49,Y53:Y58,Y62)","v":0},null,{"$f":"SUM(AA5,AA8:AA11,AA15:AA20, AA24:AA28, AA30:AA33, AA37, AA41:AA44, AA48,AA49,AA53:AA58,AA62)","v":0},null,{"$f":"SUM(AC5,AC8:AC11,AC15:AC20, AC24:AC28, AC30:AC33, AC37, AC41:AC44, AC48,AC49,AC53:AC58,AC62)","v":0},null,null,null,null,{"$f":"SUM(AH5,AH8:AH11,AH15:AH20, AH24:AH28, AH30:AH33, AH37, AH41:AH44, AH48,AH49,AH53:AH58,AH62)","v":0},null,{"$f":"SUM(AJ5,AJ8:AJ11,AJ15:AJ20, AJ24:AJ28, AJ30:AJ33, AJ37, AJ41:AJ44, AJ48,AJ49,AJ53:AJ58,AJ62)","v":0},null,{"$f":"IF(SUM(AL5,AL8:AL11,AL15:AL20, AL24:AL28, AL30:AL33, AL37, AL41:AL44, AL48,AL49,AL53:AL58,AL62)< 50000, SUM(AL5,AL8:AL11,AL15:AL20, AL24:AL28, AL30:AL33, AL37, AL41:AL44, AL48,AL49,AL53:AL58,AL62), 50000)","v":0},null,{"$f":"IF(OR($AL$2>5000, $AL$2=5000),\"Pre-Approval Required\", IF($AL$2<5000, \"Pre-Approval Not Required\"))","v":"Pre-Approval Not Required"}]
[null,"LIGHTING",null,null,null,"Prescriptive Project",null,null,"Prescriptive Requirements",null,null,null,null,"Existing Wattage",null,"Proposed Wattage",null,"Units Installed",null,null,null,null,null,null,"Total Material Cost",null,"Total Labor Cost",null,"Total Cost",null,null,"Prescriptive Incentive",null,"Annual Energy Savings (kWh)",null,"Annual Peak Demand Savings (kW)",null,"Total Incentive "]
[]
[null,null,null,null,null,"LED Exit Signs",null,null,"Must Meet State Fire Marshal Codes/UL Rated. < 5 Watts",null,null,null,null,null,null,null,null,null,null,null,null,null,null,null,null,null,null,null,{"$f":"Y5+AA5","v":0},null,null,{"$f":"'Incentive List'!$F$4","v":"$20 per Sign"},null,{"$f":"'Lighting Savings'!$K$8","v":""},null,{"$f":"'Lighting Savings'!$K$10","v":""},null,{"$f":"IF(ISBLANK($R$5), \"\", IF(AC5<'Incentive List'!$C$4*$R$5, AC5, 'Incentive List'!$C$4*$R$5))","v":""}]
[null,null,null,null,null,"LED Screw-Ins",null,null,"Prescriptive Requirements",null,null,null,null,"Existing Wattage",null,"Proposed Wattage",null,"Existing Lamp Count",null,"New/Proposed Lamp Count",null,"Existing Controls?",null,null,"Total Material Cost",null,"Total Labor Cost",null,"Total Cost",null,null,"Prescriptive Incentive",null,"Annual Energy Savings (kWh)",null,"Annual Peak Demand Savings (kW)",null,"Total Incentive "]
[]
[null,null,null,null,null,null,null,null,"Replacing Incandescent/CFLs",null,"1-6 Watts",null,null,null,null,null,null,null,null,null,null,null,null,null,null,null,null,null,{"$f":"Y8+AA8","v":0},null,null,{"$f":"'Incentive List'!$F$5","v":"$3 per Lamp"},null,{"$f":"'Lighting Savings'!$K$19","v":""},null,{"$f":"'Lighting Savings'!$K$21","v":""},null,{"$f":"IF(ISBLANK($T$8),\"\",IF(AC8<'Incentive List'!$C$5*$T$8,AC8,'Incentive List'!$C$5*$T$8))","v":""}]
[null,null,null,null,null,null,null,null,null,null,"7-11 Watts",null,null,null,null,null,null,null,null,null,null,null,null,null,null,null,null,null,{"$f":"Y9+AA9","v":0},null,null,{"$f":"'Incentive List'!$F$6","v":"$4 per Lamp"},null,{"$f":"'Lighting Savings'!$K$28","v":""},null,{"$f":"'Lighting Savings'!$K$30","v":""},null,{"$f":"IF(ISBLANK($T$9), \"\", IF(AC9< 'Incentive List'!$C$6*$T$9, AC9,  'Incentive List'!$C$6*$T$9))","v":""}]
[null,null,null,null,null,null,null,null,null,null,"12-17 Watts",null,null,null,null,null,null,null,null,null,null,null,null,null,null,null,null,null,{"$f":"Y10+AA10","v":0},null,null,{"$f":"'Incentive List'!$F$7","v":"$5 per Lamp"},null,{"$f":"'Lighting Savings'!$K$37","v":""},null,{"$f":"'Lighting Savings'!$K$39","v":""},null,{"$f":"IF(ISBLANK($T$10), \"\", IF(AC10<'Incentive List'!$C$7*$T$10, AC10, 'Incentive List'!$C$7*$T$10))","v":""}]
[null,null,null,null,null,null,null,null,null,null,"> 18 Watts",null,null,null,null,null,null,null,null,null,null,null,null,null,null,null,null,null,{"$f":"Y11+AA11","v":0},null,null,{"$f":"'Incentive List'!$F$8","v":"$6 per Lamp"},null,{"$f":"'Lighting Savings'!$K$46","v":""},null,{"$f":"'Lighting Savings'!$K$48","v":""},null,{"$f":"IF(ISBLANK($T$11), \"\", IF(AC11< 'Incentive List'!$C$8*$T$11, AC11, 'Incentive List'!$C$8*$T$11))","v":""}]
[]
[null,"LIGHTING CONTROLS",null,null,null,"Prescriptive Project",null,null,"Prescriptive Requirements",null,null,null,null,"Fixture Wattage",null,"Fixture Count",null,"Control Units Installed",null,null,null,null,null,null,"Total Material Cost",null,"Total Labor Cost",null,"Total Cost",null,null,"Prescriptive Incentive",null,"Annual Energy Savings (kWh)",null,"Annual Peak Demand Savings (kW)",null,"Total Incentive "]
[]
[null,null,null,null,null,"Daylighting Controller ",null,null,"Controlling < 500 Watts",null,null,null,null,null,null,null,null,null,null,null,null,null,null,null,null,null,null,null,{"$f":"Y15+AA15","v":0},null,null,{"$f":"'Incentive List'!$F$9","v":"$15 per Unit"},null,{"$f":"'Lighting Controls Savings'!$K$8","v":""},null,{"$f":"'Lighting Controls Savings'!$K$10","v":""},null,{"$f":"IF(ISBLANK($R$15),\"\",IF(AC15<'Incentive List'!$C$9*$R$15,AC15, 'Incentive List'!$C$9*$R$15))","v":""}]
[null,null,null,null,null,null,null,null,"Controlling > 500 Watts",null,null,null,null,null,null,null,null,null,null,null,null,null,null,null,null,null,null,null,0,null,null,{"$f":"'Incentive List'!$F$10","v":"$40 per Unit"},null,{"$f":"'Lighting Controls Savings'!$K$18","v":""},null,{"$f":"'Lighting Controls Savings'!$K$20","v":""},null,{"$f":"IF(ISBLANK($R$16),\"\",IF(AC16<'Incentive List'!$C$10*$R$16,AC10,'Incentive List'!$C$10*$R$16))","v":""}]
[null,null,null,null,null,"Occupancy Sensor ",null,null,"Controlling < 500 Watts",null,null,null,null,null,null,null,null,null,null,null,null,null,null,null,null,null,null,null,0,null,null,{"$f":"'Incentive List'!$F$11","v":"$20 per Unit"},null,{"$f":"'Lighting Controls Savings'!$K$28","v":""},null,{"$f":"'Lighting Controls Savings'!$K$30","v":""},null,{"$f":"IF(ISBLANK($R$17),\"\",IF(AC17<'Incentive List'!$C$11*$R$17,AC17,'Incentive List'!$C$11*$R$17))","v":""}]
[null,null,null,null,null,null,null,null,"Controlling > 500 Watts",null,null,null,null,null,null,null,null,null,null,null,null,null,null,null,null,null,null,null,0,null,null,{"$f":"'Incentive List'!$F$12","v":"$60 per Unit"},null,{"$f":"'Lighting Controls Savings'!$K$38","v":""},null,{"$f":"'Lighting Controls Savings'!$K$40","v":""},null,{"$f":"IF(ISBLANK($R$18), \"\", IF(AC18<'Incentive List'!$C$12*$R$18,AC18,'Incentive List'!$C$12*$R$18))","v":""}]
[null,null,null,null,null,"Occupancy Sensor - Daylighting Control",null,null,"Controlling < 500 Watts",null,null,null,null,null,null,null,null,null,null,null,null,null,null,null,null,null,null,null,0,null,null,{"$f":"'Incentive List'!$F$13","v":"$25 per Unit"},null,{"$f":"'Lighting Controls Savings'!$K$48","v":""},null,{"$f":"'Lighting Controls Savings'!$K$50","v":""},null,{"$f":"IF(ISBLANK($R$19),\"\",IF(AC19<'Incentive List'!$C$13*$R$19,AC19,'Incentive List'!$C$13*$R$19))","v":""}]
[null,null,null,null,null,null,null,null,"Controlling > 500 Watts",null,null,null,null,null,null,null,null,null,null,null,null,null,null,null,null,null,null,null,0,null,null,{"$f":"'Incentive List'!$F$14","v":"$75 per Unit"},null,{"$f":"'Lighting Controls Savings'!$K$58","v":""},null,{"$f":"'Lighting Controls Savings'!$K$60","v":""},null,{"$f":"IF(ISBLANK($R$20),\"\",IF(AC20<'Incentive List'!$C$14*$R$20,AC20,'Incentive List'!$C$14*$R$20))","v":""}]
[]
[null,"HVAC",null,null,null,"Prescriptive Project",null,null,"Prescriptive Requirements",null,null,null,null," Cooling Tons (1 Unit)",null,"Efficiency (EER)",null,"Units Installed",null,null,null,null,null,null,"Total Material Cost",null,"Total Labor Cost",null,"Total Cost",null,null,"Prescriptive Incentive",null,"Annual Energy Savings (kWh)",null,"Annual Peak Demand Savings (kW)",null,"Total Incentive "]
[null,null,null,null,null,null,null,null,"Tons of Cooling",null,"Minimum Cooling Efficiency"]
[null,null,null,null,null,"Rooftop and Unitary A/C Units",null,null,"Less than 5.42 tons",null,"12.3 EER/15.0 SEER",null,null,null,null,null,null,null,null,null,null,null,null,null,null,null,null,null,{"$f":"Y24+AA24","v":0},null,null,{"$f":"'Incentive List'!$F$15","v":"$66 per Ton"},null,{"$f":"'HVAC Savings'!$K$8","v":""},null,{"$f":"'HVAC Savings'!$K$10","v":""},null,{"$f":"IF(OR(ISBLANK($N$24), ISBLANK($R$24)), \"\", IF(AC24< 'Incentive List'!$C$15*$N$24*$R$24, AC24, 'Incentive List'!$C$15*$N$24*$R$24))","v":""}]
[null,null,null,null,null,null,null,null,"5.42 - 11.24 tons ",null,"12.2 EER/14.8 SEER",null,null,null,null,null,null,null,null,null,null,null,null,null,null,null,null,null,{"$f":"Y25+AA25","v":0},null,null,{"$f":"'Incentive List'!$F$16","v":"$66 per Ton"},null,{"$f":"'HVAC Savings'!$K$17","v":""},null,{"$f":"'HVAC Savings'!$K$19","v":""},null,{"$f":"IF(OR(ISBLANK($N$25), ISBLANK($R$25)), \"\", IF(AC25<'Incentive List'!$C$16*$N$25*$R$25, AC25, 'Incentive List'!$C$16*$N$25*$R$25))","v":""}]
[null,null,null,null,null,null,null,null,"11.25 - 20 tons",null,"12.2 EER/14.8 SEER",null,null,null,null,null,null,null,null,null,null,null,null,null,null,null,null,null,{"$f":"Y26+AA26","v":0},null,null,{"$f":"'Incentive List'!$F$17","v":"$66 per Ton"},null,{"$f":"'HVAC Savings'!$K$26","v":""},null,{"$f":"'HVAC Savings'!$K$28","v":""},null,{"$f":"IF(OR(ISBLANK($N$26), ISBLANK($R$26)), \"\", IF($AC$26<'Incentive List'!$C$17*$N$26*$R$26, $AC$26, 'Incentive List'!$C$17*$N$26*$R$26))","v":""}]
[null,null,null,null,null,null,null,null,"20.1 - 63.3. tons",null,"10.8 EER/12.4 SEER",null,null,null,null,null,null,null,null,null,null,null,null,null,null,null,null,null,{"$f":"Y27+AA27","v":0},null,null,{"$f":"'Incentive List'!$F$18","v":"$66 per Ton"},null,{"$f":"'HVAC Savings'!$K$35","v":""},null,{"$f":"'HVAC Savings'!$K$37","v":""},null,{"$f":"IF(OR(ISBLANK($N$27), ISBLANK($R$27)), \"\", IF(AC27<'Incentive List'!$C$18*$N$27*$R$27, AC27, 'Incentive List'!$C$18*$N$27*$R$27))","v":""}]
[null,null,null,null,null,null,null,null,"Greater than 63.3 tons",null,"10.4 EER/11.75 SEER",null,null,null,null,null,null,null,null,null,null,null,null,null,null,null,null,null,{"$f":"Y28+AA28","v":0},null,null,{"$f":"'Incentive List'!$F$19","v":"$66 per Ton"},null,{"$f":"'HVAC Savings'!$K$44","v":""},null,{"$f":"'HVAC Savings'!$K$46","v":""},null,{"$f":"IF(OR(ISBLANK($N$28), ISBLANK($R$28)), \"\", IF(AC28<'Incentive List'!$C$19*$N$28*$R$28, AC28, 'Incentive List'!$C$19*$N$28*$R$28))","v":""}]
[null,null,null,null,null,"Prescriptive Project",null,null,"Tons of Cooling/Heating",null,"Minimum Cooling/Heating Efficiencies",null,null,"Cooling Tons (1 Unit)",null,"Efficiency (EER)",null,"Efficiency (HSPF)",null,"Units Installed"]
[null,null,null,null,null,"Rooftop and Unitary Heat Pump Units",null,null,"Less than 5.42 tons",null,"12.3 EER/15 SEER/9.0 HSPF",null,null,null,null,null,null,null,null,null,null,null,null,null,null,null,null,null,{"$f":"Y30+AA30","v":0},null,null,{"$f":"'Incentive List'!$F$20","v":"$71 per Ton"},null,{"$f":"'HVAC Savings'!$K$58","v":""},null,{"$f":"'HVAC Savings'!$K$60","v":""},null,{"$f":"IF(OR(ISBLANK($N$30), ISBLANK($T$30)), \"\", IF(AC30< 'Incentive List'!$C$20*$N$30*$T$30, AC30,  'Incentive List'!$C$20*$N$30*$T$30))","v":""}]
[null,null,null,null,null,null,null,null,"5.42 - 11.24 tons ",null,"11.3EER/ 13.2 SEER/12.0 HSPF",null,null,null,null,null,null,null,null,null,null,null,null,null,null,null,null,null,{"$f":"Y31+AA31","v":0},null,null,{"$f":"'Incentive List'!$F$21","v":"$71 per Ton"},null,{"$f":"'HVAC Savings'!$K$67","v":""},null,{"$f":"'HVAC Savings'!$K$69","v":""},null,{"$f":"IF(OR(ISBLANK($N$31), ISBLANK($T$31)), \"\", IF(AC31< 'Incentive List'!$C$21*$N$31*$T$31, AC31,  'Incentive List'!$C$21*$N$31*$T$31))","v":""}]
[null,null,null,null,null,null,null,null,"11.25 - 20 tons",null,"10.9 EER/12.5 SEER/12.0 HSPF",null,null,null,null,null,null,null,null,null,null,null,null,null,null,null,null,null,{"$f":"Y32+AA32","v":0},null,null,{"$f":"'Incentive List'!$F$22","v":"$71 per Ton"},null,{"$f":"'HVAC Savings'!$K$76","v":""},null,{"$f":"'HVAC Savings'!$K$78","v":""},null,{"$f":"IF(OR(ISBLANK($N$32), ISBLANK($T$32)), \"\",  IF(AC32<'Incentive List'!$C$22*$N$32*$T$32, AC32, 'Incentive List'!$C$22*$N$32*$T$32))","v":""}]
[null,null,null,null,null,null,null,null,">20.1 tons",null,"10.3 EER/11.6 SEER/12.0 HSPF",null,null,null,null,null,null,null,null,null,null,null,null,null,null,null,null,null,{"$f":"Y33+AA33","v":0},null,null,{"$f":"'Incentive List'!$F$23","v":"$71 per Ton"},null,{"$f":"'HVAC Savings'!$K$85","v":""},null,{"$f":"'HVAC Savings'!$K$87","v":""},null,{"$f":"IF(OR(ISBLANK($N$33), ISBLANK($T$33)), \"\", IF(AC33< 'Incentive List'!$C$23*$N$33*$T$33, AC33, 'Incentive List'!$C$23*$N$33*$T$33))","v":""}]
[]
[null,"HVAC CONTROLS",null,null,null,"Prescriptive Project",null,null,"Prescriptive Requirements",null,null,null,null,"Units Installed",null,null,null,null,null,null,null,null,null,null,"Total Material Cost",null,"Total Labor Cost",null,"Total Cost",null,null,"Prescriptive Incentive",null,"Annual Energy Savings (kWh)",null,"Annual Peak Demand Savings (kW)",null,"Total Incentive "]
[]
[null,null,null,null,null,"Guest Room Energy Management Controls ",null,null,"Must Be Installed in All Guestrooms",null,null,null,null,null,null,null,null,null,null,null,null,null,null,null,null,null,null,null,{"$f":"Y37+AA37","v":0},null,null,{"$f":"'Incentive List'!$F$24","v":"$50 per Room"},null,{"$f":"'HVAC Controls Savings'!$K$8","v":""},null,{"$f":"'HVAC Controls Savings'!$K$9","v":0},null,{"$f":"IF(ISBLANK($N$37),\"\",IF(AC37<'Incentive List'!$C$24*$N$37,AC37,'Incentive List'!$C$24*$N$37))","v":""}]
[]
[null,"REFRIGERATION EQUIMENT CONTROLS  (REC)",null,null,null,"Prescriptive Project",null,null,"Prescriptive Requirements",null,null,null,null,"Cooler or Freezer?",null,"Existing Motor Type",null,null,"Units Installed",null,"Linear Foot (One Case)",null,"Temperature Range",null,"Total Material Cost",null,"Total Labor Cost",null,"Total Cost",null,null,"Prescriptive Incentive",null,"Annual Energy Savings (kWh)",null,"Annual Peak Demand Savings (kW)",null,"Total Incentive "]
[]
[null,null,null,null,null,"ECM Motors ",null,null,"Coolers and Freezers Only",null,null,null,null,null,null,null,null,null,null,null,null,null,null,null,null,null,null,null,{"$f":"Y41+AA41","v":0},null,null,{"$f":"'Incentive List'!$F$25","v":"$95 per Motor"},null,{"$f":"'REC Savings'!$K$8","v":""},null,{"$f":"'REC Savings'!$K$10","v":""},null,{"$f":"IF(ISBLANK($S$41),\"\",IF(AC41<'Incentive List'!$C$25*$S$41,AC41,'Incentive List'!$C$25*$S$41))","v":""}]
[null,null,null,null,null,"Evaporator Fan Controllers ",null,null,"Coolers and Freezers Only",null,null,null,null,null,null,null,null,null,null,null,null,null,null,null,null,null,null,null,{"$f":"Y42+AA42","v":0},null,null,{"$f":"'Incentive List'!$F$26","v":"$50 per Unit"},null,{"$f":"'REC Savings'!$K$48","v":""},null,{"$f":"'REC Savings'!$K$50","v":""},null,{"$f":"IF(ISBLANK($S$42),\"\",IF(AC42<'Incentive List'!$C$26*$S$42,AC42,'Incentive List'!$C$26*$S$42))","v":""}]
[null,null,null,null,null,"Anti-Sweat Heater Controls ",null,null,"Coolers and Freezers Only",null,null,null,null,null,null,null,null,null,null,null,null,null,null,null,null,null,null,null,{"$f":"Y43+AA43","v":0},null,null,{"$f":"'Incentive List'!$F$27","v":"$40 per Door"},null,{"$f":"'REC Savings'!$K$63","v":""},null,{"$f":"'REC Savings'!$K$64","v":""},null,{"$f":"IF(ISBLANK($S$43),\"\",IF(AC43<'Incentive List'!$C$27*$S$43,AC43,'Incentive List'!$C$27*$S$43))","v":""}]
[null,null,null,null,null,"Door Gaskets ",null,null,"Coolers and Freezers Only",null,null,null,null,null,null,null,null,null,null,null,null,null,null,null,null,null,null,null,{"$f":"Y44+AA44","v":0},null,null,{"$f":"'Incentive List'!$F$28","v":"$2 per Linear Ft"},null,{"$f":"'REC Savings'!$K$76","v":""},null,{"$f":"'REC Savings'!$K$77","v":""},null,{"$f":"IF(OR(ISBLANK($S$44),ISBLANK($U$44)),\"\",IF(AC44<'Incentive List'!$C$28*$S$44*$U$44, AC44,'Incentive List'!$C$28*$S$44*$U$44))","v":""}]
[]
[null,"LOW-FLOW WATER FIXTURES ",null,null,null,"Prescriptive Project",null,null,"Prescriptive Requirements",null,null,null,null,"Gallons/Minute (GPM)",null,"Units Installed",null,null,null,null,null,null,null,null,"Total Material Cost",null,"Total Labor Cost",null,"Total Cost",null,null,"Prescriptive Incentive",null,"Annual Energy Savings (kWh)",null,"Annual Peak Demand Savings (kW)",null,"Total Incentive "]
[null,null,null,null,null,null,null,null,"Gallons/Minute (GPM)",null,"Water Heating Type"]
[null,null,null,null,null,"Low-Flow Sink Aerators ",null,null,"< 1.5 GPM",null,"Electrically Heated",null,null,null,null,null,null,null,null,null,null,null,null,null,null,null,null,null,{"$f":"Y48+AA48","v":0},null,null,{"$f":"'Incentive List'!$F$29","v":"$3 per Unit"},null,{"$f":"'Low-Flow Fixture Savings'!$K$8","v":""},null,{"$f":"'Low-Flow Fixture Savings'!$K$10","v":""},null,{"$f":"IF(ISBLANK($P$48), \"\", IF(AC48<'Incentive List'!$C$29*$P$48,AC48, 'Incentive List'!$C$29*$P$48))","v":""}]
[null,null,null,null,null,"Pre-Rinse Spray Valves ",null,null,"< 1.6 GPM",null,"Electrically Heated",null,null,null,null,null,null,null,null,null,null,null,null,null,null,null,null,null,{"$f":"Y49+AA49","v":0},null,null,{"$f":"'Incentive List'!$F$30","v":"$30 per Unit"},null,{"$f":"'Low-Flow Fixture Savings'!$K$24","v":""},null,{"$f":"'Low-Flow Fixture Savings'!$K$26","v":""},null,{"$f":"IF(ISBLANK($P$49), \"\", IF(AC49<'Incentive List'!$C$30*$P$49,AC49, 'Incentive List'!$C$30*$P$49))","v":""}]
[]
[null,"COMMERCIAL KITCHEN EQUIPMENT (CKE)",null,null,null,"Prescriptive Project",null,null,"Prescriptive Requirements",null,null,null,null,"Units Installed",null,"Type of Fryer",null,"Pan Capacity",null,"Convection Oven Size",null,"Linear Foot (One Case)",null,null,"Total Material Cost",null,"Total Labor Cost",null,"Total Cost",null,null,"Prescriptive Incentive",null,"Annual Energy Savings (kWh)",null,"Annual Peak Demand Savings (kW)",null,"Total Incentive "]
[null,null,null,null,null,null,null,null,"Fuel Type",null,"Minimum Efficiency"]
[null,null,null,null,null,"ENERGY STAR Ice Machine",null,null,"N/A",null,null,null,null,null,null,null,null,null,null,null,null,null,null,null,null,null,null,null,{"$f":"Y53+AA53","v":0},null,null,{"$f":"'Incentive List'!$F$31","v":"$65 per Unit"},null,{"$f":"'CKE Savings'!$K$8","v":""},null,{"$f":"'CKE Savings'!$K$9","v":""},null,{"$f":"IF(ISBLANK($N53),\"\",IF(AC53<'Incentive List'!$C$31*$N$53,AC53,'Incentive List'!$C$31*$N53))","v":""}]
[null,null,null,null,null,"ENERGY STAR Commercial Fryer",null,null,"Electric",null,0.8,null,null,null,null,null,null,null,null,null,null,null,null,null,null,null,null,null,0,null,null,{"$f":"'Incentive List'!$F$32","v":"$220 per Unit"},null,{"$f":"'CKE Savings'!$K$21","v":""},null,{"$f":"'CKE Savings'!$K$22","v":""},null,{"$f":"IF(ISBLANK($N$54), \"\", IF(AC54<'Incentive List'!$C$32*$N$54,AC54,'Incentive List'!$C$32*$N$54))","v":""}]
[null,null,null,null,null,"ENERGY STAR Commercial Steam Cooker ",null,null,null,null,0.5,null,null,null,null,null,null,null,null,null,null,null,null,null,null,null,null,null,0,null,null,{"$f":"'Incentive List'!$F$33","v":"$1500 per Unit"},null,{"$f":"'CKE Savings'!$K$34","v":""},null,{"$f":"'CKE Savings'!$K$35","v":""},null,{"$f":"IF(ISBLANK($N$55), \"\", IF(AC55<'Incentive List'!$C$33*$N$55,AC55, 'Incentive List'!$C$33*$N$55))","v":""}]
[null,null,null,null,null,"ENERGY STAR Commercial Convection Oven ",null,null,null,null,"v2.0 specification",null,null,null,null,null,null,null,null,null,null,null,null,null,null,null,null,null,0,null,null,{"$f":"'Incentive List'!$F$34","v":"$225 per Unit"},null,{"$f":"'CKE Savings'!$K$49","v":""},null,{"$f":"'CKE Savings'!$K$63","v":""},null,{"$f":"IF(ISBLANK($N$56), \"\", IF(AC56<'Incentive List'!$C$34*$N$56,AC56, 'Incentive List'!$C$34*$N$56))","v":""}]
[null,null,null,null,null,"ENERGY STAR Commercial Griddle ",null,null,null,null,0.65,null,null,null,null,null,null,null,null,null,null,null,null,null,null,null,null,null,0,null,null,{"$f":"'Incentive List'!$F$35","v":"$100 per Unit"},null,{"$f":"'CKE Savings'!$K$62","v":""},null,{"$f":"'CKE Savings'!$K$63","v":""},null,{"$f":"IF(ISBLANK($N$57), \"\", IF(AC57<'Incentive List'!$C$35*$N$57,AC57,'Incentive List'!$C$35*$N$57))","v":""}]
[null,null,null,null,null,"ENERGY STAR Commercial Combination Oven ",null,null,null,null,0.6,null,null,null,null,null,null,null,null,null,null,null,null,null,null,null,null,null,0,null,null,{"$f":"'Incentive List'!$F$36","v":"$1000 per Unit"},null,{"$f":"'CKE Savings'!$K$72","v":""},null,{"$f":"'CKE Savings'!$K$73","v":""},null,{"$f":"IF(ISBLANK($N$58), \"\", IF(AC58<'Incentive List'!$C$36*$N$58,AC58, 'Incentive List'!$C$36*$N$58))","v":""}]
[]
[null,"COMPUTER/IT",null,null,null,"Prescriptive Project",null,null,"Prescriptive Requirements",null,null,null,null,"Units Installed",null,"Equipment Type",null,null,null,null,null,null,null,null,"Total Material Cost",null,"Total Labor Cost",null,"Total Cost",null,null,"Prescriptive Incentive",null,"Annual Energy Savings (kWh)",null,"Annual Peak Demand Savings (kW)",null,"Total Incentive "]
[]
[null,null,null,null,null,"PC Power Management",null,null,"N/A",null,null,null,null,null,null,null,null,null,null,null,null,null,null,null,null,null,null,null,{"$f":"Y62+AA62","v":0},null,null,{"$f":"'Incentive List'!$F$37","v":"$10 per PC"},null,{"$f":"'CPM Savings'!$K$8","v":""},null,{"$f":"'CPM Savings'!$K$9","v":""},null,{"$f":"IF(ISBLANK($N$62), \"\", IF(AC62<'Incentive List'!$C$37*$N$62,AC62, 'Incentive List'!$C$37*$N$62))","v":""}]

{"sheet":"PSD Summary","index":3,"n_rows":43,"n_cols":17,"rows_kept":43,"cut":false,"hidden":true,"merged":[[2,4,2,6],[2,9,2,14],[2,0,2,3],[20,0,24,16]]}
[]
[]
[null,null,null,null,"Electricity Annual Savings ",null,null,"Incentive  ","Rate of Return","Equipment Details"]
["Number","Measure Type","Measure Cost","Quantity","Usage (kWh/Yr)","Demand (kW/Yr)","Cost \n($/Yr)","Amount","Simple Payback","Size","Efficiency Level","Useful Life","Serial Number","Age","Equipment Replaced","Description (to display in Assessment Report)","Internal Comments (for Program Implementer only)"]
[1,"LED Exit Signs",{"$f":"'Measure Input'!$AC$5","v":0},{"$f":"'Measure Input'!$R$5","v":0},{"$f":"'Measure Input'!$AH$5","v":""},{"$f":"'Measure Input'!$AJ$5","v":""},{"$f":"IF('Project Information'!$BB$33=\"\", \"\", 'Project Information'!$BB$33*E5)","v":""},{"$f":"'Measure Input'!$AL$5","v":""},{"$f":"IF(H5=\"\", \"\", (C5-G5)/H5)","v":""}]
[2,"1-6 Watt LED Screw-In replacing Incandescent/CFL",{"$f":"'Measure Input'!$AC$8","v":0},{"$f":"'Measure Input'!$T$8","v":0},{"$f":"'Measure Input'!$AH$8","v":""},{"$f":"'Measure Input'!$AJ$8","v":""},{"$f":"IF('Project Information'!$BB$33=\"\", \"\", 'Project Information'!$BB$33*E6)","v":""},{"$f":"'Measure Input'!$AL$8","v":""},{"$f":"IF(H6=\"\", \"\", (C6-G6)/H6)","v":""}]
[3,"7-11 Watt LED Screw-In replacing Incandescent/CFL",{"$f":"'Measure Input'!$AC$9","v":0},{"$f":"'Measure Input'!$T$9","v":0},{"$f":"'Measure Input'!$AH$9","v":""},{"$f":"'Measure Input'!$AJ$9","v":""},{"$f":"IF('Project Information'!$BB$33=\"\", \"\", 'Project Information'!$BB$33*E7)","v":""},{"$f":"'Measure Input'!$AL$9","v":""},""]
[4,"12-17 Watt LED Screw-In replacing Incandescent/CFL",{"$f":"'Measure Input'!$AC$10","v":0},{"$f":"'Measure Input'!$T$10","v":0},{"$f":"'Measure Input'!$AH$10","v":""},{"$f":"'Measure Input'!$AJ$10","v":""},{"$f":"IF('Project Information'!$BB$33=\"\", \"\", 'Project Information'!$BB$33*E8)","v":""},{"$f":"'Measure Input'!$AL$10","v":""},""]
[5,"18 Watt and Above LED Screw-In replacing Incandescent/CFL",{"$f":"'Measure Input'!$AC$11","v":0},{"$f":"'Measure Input'!$T$11","v":0},{"$f":"'Measure Input'!$AH$11","v":""},{"$f":"'Measure Input'!$AJ$11","v":""},{"$f":"IF('Project Information'!$BB$33=\"\", \"\", 'Project Information'!$BB$33*E9)","v":""},{"$f":"'Measure Input'!$AL$11","v":""},""]
[6,"Daylighting Controller (Controlling < 500 W)",{"$f":"'Measure Input'!$AC$15","v":0},{"$f":"'Measure Input'!$R$15","v":0},{"$f":"'Measure Input'!$AH$15","v":""},{"$f":"'Measure Input'!$AJ$15","v":""},{"$f":"IF('Project Information'!$BB$33=\"\", \"\", 'Project Information'!$BB$33*E10)","v":""},{"$f":"'Measure Input'!$AL$15","v":""},""]
[7,"Daylighting Controller (Controlling >= 500 W)",{"$f":"'Measure Input'!$AC$16","v":0},{"$f":"'Measure Input'!$R$16","v":0},{"$f":"'Measure Input'!$AH$16","v":""},{"$f":"'Measure Input'!$AJ$16","v":""},{"$f":"IF('Project Information'!$BB$33=\"\", \"\", 'Project Information'!$BB$33*E11)","v":""},{"$f":"'Measure Input'!$AL$16","v":""},""]
[8,"Occupancy Sensor (Controlling < 500 W)",{"$f":"'Measure Input'!$AC$17","v":0},{"$f":"'Measure Input'!$R$17","v":0},{"$f":"'Measure Input'!$AH$17","v":""},{"$f":"'Measure Input'!$AJ$17","v":""},{"$f":"IF('Project Information'!$BB$33=\"\", \"\", 'Project Information'!$BB$33*E12)","v":""},{"$f":"'Measure Input'!$AL$17","v":""},""]
[9,"Occupancy Sensor (Controlling >= 500 W)",{"$f":"'Measure Input'!$AC$18","v":0},{"$f":"'Measure Input'!$R$18","v":0},{"$f":"'Measure Input'!$AH$18","v":""},{"$f":"'Measure Input'!$AJ$18","v":""},{"$f":"IF('Project Information'!$BB$33=\"\", \"\", 'Project Information'!$BB$33*E13)","v":""},{"$f":"'Measure Input'!$AL$18","v":""},""]
[10,"Occupancy Sensor w/ Daylighting Control (Controlling < 500 W)",{"$f":"'Measure Input'!$AC$19","v":0},{"$f":"'Measure Input'!$R$19","v":0},{"$f":"'Measure Input'!$AH$19","v":""},{"$f":"'Measure Input'!$AJ$19","v":""},{"$f":"IF('Project Information'!$BB$33=\"\", \"\", 'Project Information'!$BB$33*E14)","v":""},{"$f":"'Measure Input'!$AL$19","v":""},""]
[11,"Occupancy Sensor w/ Daylighting Control (Controlling >= 500 W)",{"$f":"'Measure Input'!$AC$20","v":0},{"$f":"'Measure Input'!$R$20","v":0},{"$f":"'Measure Input'!$AH$20","v":""},{"$f":"'Measure Input'!$AJ$20","v":""},{"$f":"IF('Project Information'!$BB$33=\"\", \"\", 'Project Information'!$BB$33*E15)","v":""},{"$f":"'Measure Input'!$AL$20","v":""},""]
[12,"A/C Unit (< 5.42 Tons) - Min. efficiency of 12.3 EER/15 SEER",{"$f":"'Measure Input'!$AC$24","v":0},{"$f":"'Measure Input'!$R$24","v":0},{"$f":"'Measure Input'!$AH$24","v":""},{"$f":"'Measure Input'!$AJ$24","v":""},{"$f":"IF('Project Information'!$BB$33=\"\", \"\", 'Project Information'!$BB$33*E16)","v":""},{"$f":"'Measure Input'!$AL$24","v":""},""]
[13,"A/C Unit (5.42 - 11.24 Tons) - Min. efficiency 12.2 EER/14.8 SEER",{"$f":"'Measure Input'!$AC$25","v":0},{"$f":"'Measure Input'!$R$25","v":0},{"$f":"'Measure Input'!$AH$25","v":""},{"$f":"'Measure Input'!$AJ$25","v":""},{"$f":"IF('Project Information'!$BB$33=\"\", \"\", 'Project Information'!$BB$33*E17)","v":""},{"$f":"'Measure Input'!$AL$25","v":""},""]
[14,"A/C Unit (11.25 - 19.9 Tons) - Min. efficiency 12.2 EER/14.8 SEER",{"$f":"'Measure Input'!$AC$26","v":0},{"$f":"'Measure Input'!$R$26","v":0},{"$f":"'Measure Input'!$AH$26","v":""},{"$f":"'Measure Input'!$AJ$26","v":""},{"$f":"IF('Project Information'!$BB$33=\"\", \"\", 'Project Information'!$BB$33*E18)","v":""},{"$f":"'Measure Input'!$AL$26","v":""},""]
[15,"A/C Unit (20.1 - 63.3 Tons) - Min. efficiency 10.8 EER/12.4 SEER",{"$f":"'Measure Input'!$AC$27","v":0},{"$f":"'Measure Input'!$R$27","v":0},{"$f":"'Measure Input'!$AH$27","v":""},{"$f":"'Measure Input'!$AJ$27","v":""},{"$f":"IF('Project Information'!$BB$33=\"\", \"\", 'Project Information'!$BB$33*E19)","v":""},{"$f":"'Measure Input'!$AL$27","v":""},""]
[16,"A/C Unit (> 63.3 Tons) - Min. efficiency 10.4 EER/11.75 SEER",{"$f":"'Measure Input'!$AC$28","v":0},{"$f":"'Measure Input'!$R$28","v":0},{"$f":"'Measure Input'!$AH$28","v":""},{"$f":"'Measure Input'!$AJ$28","v":""},{"$f":"IF('Project Information'!$BB$33=\"\", \"\", 'Project Information'!$BB$33*E20)","v":""},{"$f":"'Measure Input'!$AL$28","v":""},""]
[]
[]
[]
[]
[]
[17,"Heat Pump (< 5.42 Tons) - Min. efficiency 12.3 EER/15 SEER/9.0 HSPF",{"$f":"'Measure Input'!$AC$30","v":0},{"$f":"'Measure Input'!$R$30","v":0},{"$f":"'Measure Input'!$AH$30","v":""},{"$f":"'Measure Input'!$AJ$30","v":""},{"$f":"IF('Project Information'!$BB$33=\"\", \"\", 'Project Information'!$BB$33*E26)","v":""},{"$f":"'Measure Input'!$AL$30","v":""},""]
[18,"Heat Pump (5.42 - 11.24 Tons) - Min. efficiency 11.3 EER/13.2 SEER/12.0 HSPF",{"$f":"'Measure Input'!$AC$31","v":0},{"$f":"'Measure Input'!$R$31","v":0},{"$f":"'Measure Input'!$AH$31","v":""},{"$f":"'Measure Input'!$AJ$31","v":""},{"$f":"IF('Project Information'!$BB$33=\"\", \"\", 'Project Information'!$BB$33*E27)","v":""},{"$f":"'Measure Input'!$AL$31","v":""},""]
[19,"Heat Pump (11.25 - 19.9 Tons) - Min. Efficiency 10.9 EER/12.5 SEER/12.0 HSPF",{"$f":"'Measure Input'!$AC$32","v":0},{"$f":"'Measure Input'!$R$32","v":0},{"$f":"'Measure Input'!$AH$32","v":""},{"$f":"'Measure Input'!$AJ$32","v":""},{"$f":"IF('Project Information'!$BB$33=\"\", \"\", 'Project Information'!$BB$33*E28)","v":""},{"$f":"'Measure Input'!$AL$32","v":""},""]
[20,"Heat Pump (>= 20 Tons) - Min. efficiency 10.3 EER/11.6 SEER/12.0 HSPF",{"$f":"'Measure Input'!$AC$33","v":0},{"$f":"'Measure Input'!$R$33","v":0},{"$f":"'Measure Input'!$AH$33","v":""},{"$f":"'Measure Input'!$AJ$33","v":""},{"$f":"IF('Project Information'!$BB$33=\"\", \"\", 'Project Information'!$BB$33*E29)","v":""},{"$f":"'Measure Input'!$AL$33","v":""},""]
[21,"Guest Room Energy Management Controls - Must Be Installed in All Guestrooms",{"$f":"'Measure Input'!$AC$37","v":0},{"$f":"'Measure Input'!$N$37","v":0},{"$f":"'Measure Input'!$AH$37","v":""},{"$f":"'Measure Input'!$AJ$37","v":0},{"$f":"IF('Project Information'!$BB$33=\"\", \"\", 'Project Information'!$BB$33*E30)","v":""},{"$f":"'Measure Input'!$AL$37","v":""},""]
[22,"ECM Motors (Refrigeration)",{"$f":"'Measure Input'!$AC$41","v":0},{"$f":"'Measure Input'!$S$41","v":0},{"$f":"'Measure Input'!$AH$41","v":""},{"$f":"'Measure Input'!$AJ$41","v":""},{"$f":"IF('Project Information'!$BB$33=\"\", \"\", 'Project Information'!$BB$33*E31)","v":""},{"$f":"'Measure Input'!$AL$41","v":""},""]
[23,"Evaporator Fan Controllers (Refrigeration)",{"$f":"'Measure Input'!$AC$42","v":0},{"$f":"'Measure Input'!$S$42","v":0},{"$f":"'Measure Input'!$AH$42","v":""},{"$f":"'Measure Input'!$AJ$42","v":""},{"$f":"IF('Project Information'!$BB$33=\"\", \"\", 'Project Information'!$BB$33*E32)","v":""},{"$f":"'Measure Input'!$AL$42","v":""},""]
[24,"Anti-Sweat Heater Controls (Refrigeration)",{"$f":"'Measure Input'!$AC$43","v":0},{"$f":"'Measure Input'!$S$43","v":0},{"$f":"'Measure Input'!$AH$43","v":""},{"$f":"'Measure Input'!$AJ$43","v":""},{"$f":"IF('Project Information'!$BB$33=\"\", \"\", 'Project Information'!$BB$33*E33)","v":""},{"$f":"'Measure Input'!$AL$43","v":""},""]
[25,"Door Gaskets (Refrigeration)",{"$f":"'Measure Input'!$AC$44","v":0},{"$f":"'Measure Input'!$S$44","v":0},{"$f":"'Measure Input'!$AH$44","v":""},{"$f":"'Measure Input'!$AJ$44","v":""},{"$f":"IF('Project Information'!$BB$33=\"\", \"\", 'Project Information'!$BB$33*E34)","v":""},{"$f":"'Measure Input'!$AL$44","v":""},""]
[26,"Low-Flow Sink Aerators - 1.5 GPM or Less - Only for Facilities with Electrically Heated Water ",{"$f":"'Measure Input'!$AC$48","v":0},{"$f":"'Measure Input'!$P$48","v":0},{"$f":"'Measure Input'!$AH$48","v":""},{"$f":"'Measure Input'!$AJ$48","v":""},{"$f":"IF('Project Information'!$BB$33=\"\", \"\", 'Project Information'!$BB$33*E35)","v":""},{"$f":"'Measure Input'!$AL$48","v":""},""]
[27,"Pre-Rinse Spray Valves - 1.6 GPM or Less- Only for Facilities with Electrically Heated Water",{"$f":"'Measure Input'!$AC$49","v":0},{"$f":"'Measure Input'!$N$49","v":0},{"$f":"'Measure Input'!$AH$49","v":""},{"$f":"'Measure Input'!$AJ$49","v":""},{"$f":"IF('Project Information'!$BB$33=\"\", \"\", 'Project Information'!$BB$33*E36)","v":""},{"$f":"'Measure Input'!$AL$49","v":""},""]
[28,"ENERGY STAR Ice Machine",{"$f":"'Measure Input'!$AC$53","v":0},{"$f":"'Measure Input'!$N$53","v":0},{"$f":"'Measure Input'!$AH$53","v":""},{"$f":"'Measure Input'!$AJ$53","v":""},{"$f":"IF('Project Information'!$BB$33=\"\", \"\", 'Project Information'!$BB$33*E37)","v":""},{"$f":"'Measure Input'!$AL$53","v":""},""]
[29,"ENERGY STAR Commercial Fryer (electric) - Min. efficiency of 80%",{"$f":"'Measure Input'!$AC$54","v":0},{"$f":"'Measure Input'!$N$54","v":0},{"$f":"'Measure Input'!$AH$54","v":""},{"$f":"'Measure Input'!$AJ$54","v":""},{"$f":"IF('Project Information'!$BB$33=\"\", \"\", 'Project Information'!$BB$33*E38)","v":""},{"$f":"'Measure Input'!$AL$54","v":""},""]
[30,"ENERGY STAR Commercial Steam Cooker (electric) - Min. efficiency of 50%",{"$f":"'Measure Input'!$AC$55","v":0},{"$f":"'Measure Input'!$N$55","v":0},{"$f":"'Measure Input'!$AH$55","v":""},{"$f":"'Measure Input'!$AJ$55","v":""},{"$f":"IF('Project Information'!$BB$33=\"\", \"\", 'Project Information'!$BB$33*E39)","v":""},{"$f":"'Measure Input'!$AL$55","v":""},""]
[31,"ENERGY STAR Commercial Convection Oven (electric) - Version 2.0 specification",{"$f":"'Measure Input'!$AC$56","v":0},{"$f":"'Measure Input'!$N$56","v":0},{"$f":"'Measure Input'!$AH$56","v":""},{"$f":"'Measure Input'!$AJ$56","v":""},{"$f":"IF('Project Information'!$BB$33=\"\", \"\", 'Project Information'!$BB$33*E40)","v":""},{"$f":"'Measure Input'!$AL$56","v":""},""]
[32,"ENERGY STAR Commercial Griddle (electric) - Min. cooking efficiency of 65%",{"$f":"'Measure Input'!$AC$57","v":0},{"$f":"'Measure Input'!$N$57","v":0},{"$f":"'Measure Input'!$AH$57","v":""},{"$f":"'Measure Input'!$AJ$57","v":""},{"$f":"IF('Project Information'!$BB$33=\"\", \"\", 'Project Information'!$BB$33*E41)","v":""},{"$f":"'Measure Input'!$AL$57","v":""},""]
[33,"ENERGY STAR Commercial Combination Oven (electric) - Min. heavy load cooking efficiency of 60%",{"$f":"'Measure Input'!$AC$58","v":0},{"$f":"'Measure Input'!$N$58","v":0},{"$f":"'Measure Input'!$AH$58","v":""},{"$f":"'Measure Input'!$AJ$58","v":""},{"$f":"IF('Project Information'!$BB$33=\"\", \"\", 'Project Information'!$BB$33*E42)","v":""},{"$f":"'Measure Input'!$AL$58","v":""},""]
[34,"PC Power Management",{"$f":"'Measure Input'!$AC$62","v":0},{"$f":"'Measure Input'!$N$59","v":0},{"$f":"'Measure Input'!$AH$62","v":""},{"$f":"'Measure Input'!$AJ$62","v":""},{"$f":"IF('Project Information'!$BB$33=\"\", \"\", 'Project Information'!$BB$33*E43)","v":""},{"$f":"'Measure Input'!$AL$62","v":""},""]

{"sheet":"GECO Outputs","index":4,"n_rows":522,"n_cols":12,"rows_kept":522,"cut":false,"hidden":true,"merged":[[5,2,5,3]]}
[null,"Conversion Rates"]
[null,"Electricity",3.4119999999999999]
[null,"Natural Gas",100]
[null,"Package Custom Fields"]
[null,"Field Name","Value"]
[null,"Fuel Savings"]
[null,"Fuel","Heating (kBtu/yr)","Cooling (kBtu/yr)","Lighting (kBtu/yr)","Hot Water (kBtu/yr)","Appliance (kBtu/yr)","Other (kBtu/yr)","AnnualTotal(kBtu/yr)","AnnualCost","Demand"]
[{"$f":"IF(SUM('PSD Summary'!E1:E43)>0,\"FuelSavings\",\"\")","v":""},"Electricity",null,null,null,null,null,null,{"$f":"'Summary Report'!G34*GECO_ELEC_RATIO","v":0},{"$f":"'Summary Report'!G38","v":0},{"$f":"'Summary Report'!G36","v":0}]
[]
[null,"Funding Source","Incentive Code","Eligible Amount","Exemption Status","Payment Date","Amount Paid","CheckID","Payment Status","Note"]
[{"$f":"IF(SUM('PSD Summary'!H1:H43)>0,\"Incentives\",\"\")","v":""},{"$f":"IF('Project Information'!CP23=\"Large Commercial and Industrial Program\",\"Large Commercial\",IF('Project Information'!CP23=\"Small Commercial and Industrial Program\",\"Small Commercial\", IF('Project Information'!CP23=\"Publicly-Funded Institutions\",\"Public Institution\",\"\")))","v":""},{"$f":"IF('Project Information'!$CP$23 = \"\", \"\", IF('Project Information'!$CP$23 = \"Large Commercial and Industrial Program\", \"Large-Lighting\",IF('Project Information'!$CP$23 = \"Small Commercial and Industrial Program\", \"Small\",  IF('Project Information'!$CP$23 =\"Publicly-Funded Institutions\", \"Public-Lighting\", \"\"))))","v":""},{"$f":"SUM('PSD Summary'!H1:H43)","v":0}]
[null,"Improvements"]
[null,"LED Exit Signs",1]
[null,"ImprovementType","ImprovementCost","ImprovementQuantity","Description","AutogeneratedName","Status","TreatmentWorkscope","Savings( $/yr )"]
[{"$f":"IF('PSD Summary'!D5<>0,\"Improvements\",\"\")","v":""},{"$f":"'PSD Summary'!B5","v":"LED Exit Signs"},{"$f":"'PSD Summary'!C5","v":0},{"$f":"'PSD Summary'!D5","v":0},{"$f":"IF('PSD Summary'!P5<>\"\",'PSD Summary'!P5,\"\")","v":""},{"$f":"IF('PSD Summary'!B5<> \"\",'PSD Summary'!B5,\"\")","v":"LED Exit Signs"},{"$f":"IF('Project Information'!$CP$29=\"Pre-Installation\",\"Recommended\",IF('Project Information'!$CP$29=\"Post-Installation\", \"Completed\", \"\"))","v":""},null,{"$f":"'PSD Summary'!G5","v":""}]
[null,null,"ImprovementSavings"]
[null,null,"Fuel","Heating (kBtu/yr)","Cooling (kBtu/yr)","Lighting (kBtu/yr)","Hot Water (kBtu/yr)","Appliance (kBtu/yr)","Other (kBtu/yr)","AnnualTotal(kBtu/yr)","Demand","AnnualCost"]
[{"$f":"IF('PSD Summary'!E5<>\"\",\"ImprovementSavings\",\"\")","v":""},null,"Electricity",null,null,null,null,null,null,{"$f":"'PSD Summary'!E5*GECO_ELEC_RATIO","v":{"$error":"#VALUE!"}},{"$f":"'PSD Summary'!F5","v":""},{"$f":"'PSD Summary'!G5","v":""}]
[null,null,"ImprovementAttribute"]
[null,null,"AttributeName","Value"]
[{"$f":"IF('PSD Summary'!J5<>\"\",\"ImprovementAttributes\",\"\")","v":""},null,"ENO_Size",{"$f":"'PSD Summary'!J5","v":0}]
[{"$f":"IF('PSD Summary'!K5<>\"\",\"ImprovementAttributes\",\"\")","v":""},null,"ENO_EfficiencyLevel",{"$f":"'PSD Summary'!K5","v":0}]
[{"$f":"IF('PSD Summary'!L5<>\"\",\"ImprovementAttributes\",\"\")","v":""},null,"ENO_UsefulLife",{"$f":"'PSD Summary'!L5","v":0}]
[{"$f":"IF('PSD Summary'!M5<>\"\",\"ImprovementAttributes\",\"\")","v":""},null,"ENO_SerialNumber",{"$f":"'PSD Summary'!M5","v":0}]
[{"$f":"IF('PSD Summary'!N5<>\"\",\"ImprovementAttributes\",\"\")","v":""},null,"ENO_Age",{"$f":"'PSD Summary'!N5","v":0}]
[{"$f":"IF('PSD Summary'!O5<>\"\",\"ImprovementAttributes\",\"\")","v":""},null,"ENO_EquipmentReplaced",{"$f":"'PSD Summary'!O5","v":0}]
[{"$f":"IFERROR(IF('PSD Summary'!I5<>\"\",\"ImprovementAttributes\",\"\"),\"\")","v":""},null,"ENO_SimplePayback",{"$f":"IFERROR('PSD Summary'!I5, 0)","v":""}]
[null,"1-6 Watt LED Screw-In replacing Incandescent/CFL",{"$f":"C13+1","v":2}]
[null,"ImprovementType","ImprovementCost","ImprovementQuantity","Description","AutogeneratedName","Status","TreatmentWorkscope","Savings( $/yr )"]
[{"$f":"IF('PSD Summary'!D6<>0,\"Improvements\",\"\")","v":""},{"$f":"'PSD Summary'!B6","v":"1-6 Watt LED Screw-In replacing Incandescent/CFL"},{"$f":"'PSD Summary'!C6","v":0},{"$f":"'PSD Summary'!D6","v":0},{"$f":"IF('PSD Summary'!P6<>\"\",'PSD Summary'!P6,\"\")","v":""},{"$f":"IF('PSD Summary'!B6<> \"\",'PSD Summary'!B6,\"\")","v":"1-6 Watt LED Screw-In replacing Incandescent/CFL"},{"$f":"IF('Project Information'!$CP$29=\"Pre-Installation\",\"Recommended\",IF('Project Information'!$CP$29=\"Post-Installation\", \"Completed\", \"\"))","v":""},null,{"$f":"'PSD Summary'!G6","v":""}]
[null,null,"ImprovementSavings"]
[null,null,"Fuel","Heating (kBtu/yr)","Cooling (kBtu/yr)","Lighting (kBtu/yr)","Hot Water (kBtu/yr)","Appliance (kBtu/yr)","Other (kBtu/yr)","AnnualTotal(kBtu/yr)","Demand","AnnualCost"]
[{"$f":"IF('PSD Summary'!E6<>\"\",\"ImprovementSavings\",\"\")","v":""},null,"Electricity",null,null,null,null,null,null,{"$f":"'PSD Summary'!E6*GECO_ELEC_RATIO","v":{"$error":"#VALUE!"}},{"$f":"'PSD Summary'!F6","v":""},{"$f":"'PSD Summary'!G6","v":""}]
[null,null,"ImprovementAttribute"]
[null,null,"AttributeName","Value"]
[{"$f":"IF('PSD Summary'!J6<>\"\",\"ImprovementAttributes\",\"\")","v":""},null,"ENO_Size",{"$f":"'PSD Summary'!J6","v":0}]
[{"$f":"IF('PSD Summary'!K6<>\"\",\"ImprovementAttributes\",\"\")","v":""},null,"ENO_EfficiencyLevel",{"$f":"'PSD Summary'!K6","v":0}]
[{"$f":"IF('PSD Summary'!L6<>\"\",\"ImprovementAttributes\",\"\")","v":""},null,"ENO_UsefulLife",{"$f":"'PSD Summary'!L6","v":0}]
[{"$f":"IF('PSD Summary'!M6<>\"\",\"ImprovementAttributes\",\"\")","v":""},null,"ENO_SerialNumber",{"$f":"'PSD Summary'!M6","v":0}]
[{"$f":"IF('PSD Summary'!N6<>\"\",\"ImprovementAttributes\",\"\")","v":""},null,"ENO_Age",{"$f":"'PSD Summary'!N6","v":0}]
[{"$f":"IF('PSD Summary'!O6<>\"\",\"ImprovementAttributes\",\"\")","v":""},null,"ENO_EquipmentReplaced",{"$f":"'PSD Summary'!O6","v":0}]
[{"$f":"IFERROR(IF('PSD Summary'!I6<>\"\",\"ImprovementAttributes\",\"\"),\"\")","v":""},null,"ENO_SimplePayback",{"$f":"IFERROR('PSD Summary'!I6, 0)","v":""}]
[null,"7-11 Watt LED Screw-In replacing Incandescent/CFL",{"$f":"C28+1","v":3}]
[null,"ImprovementType","ImprovementCost","ImprovementQuantity","Description","AutogeneratedName","Status","TreatmentWorkscope","Savings( $/yr )"]
[{"$f":"IF('PSD Summary'!D7<>0,\"Improvements\",\"\")","v":""},{"$f":"'PSD Summary'!B7","v":"7-11 Watt LED Screw-In replacing Incandescent/CFL"},{"$f":"'PSD Summary'!C7","v":0},{"$f":"'PSD Summary'!D7","v":0},{"$f":"IF('PSD Summary'!P7<>\"\",'PSD Summary'!P7,\"\")","v":""},{"$f":"IF('PSD Summary'!B7<> \"\",'PSD Summary'!B7,\"\")","v":"7-11 Watt LED Screw-In replacing Incandescent/CFL"},{"$f":"IF('Project Information'!$CP$29=\"Pre-Installation\",\"Recommended\",IF('Project Information'!$CP$29=\"Post-Installation\", \"Completed\", \"\"))","v":""},null,{"$f":"'PSD Summary'!G7","v":""}]
[null,null,"ImprovementSavings"]
[null,null,"Fuel","Heating (kBtu/yr)","Cooling (kBtu/yr)","Lighting (kBtu/yr)","Hot Water (kBtu/yr)","Appliance (kBtu/yr)","Other (kBtu/yr)","AnnualTotal(kBtu/yr)","Demand","AnnualCost"]
[{"$f":"IF('PSD Summary'!E7<>\"\",\"ImprovementSavings\",\"\")","v":""},null,"Electricity",null,null,null,null,null,null,{"$f":"'PSD Summary'!E7*GECO_ELEC_RATIO","v":{"$error":"#VALUE!"}},{"$f":"'PSD Summary'!F7","v":""},{"$f":"'PSD Summary'!G7","v":""}]
[null,null,"ImprovementAttribute"]
[null,null,"AttributeName","Value"]
[{"$f":"IF('PSD Summary'!J7<>\"\",\"ImprovementAttributes\",\"\")","v":""},null,"ENO_Size",{"$f":"'PSD Summary'!J7","v":0}]
[{"$f":"IF('PSD Summary'!K7<>\"\",\"ImprovementAttributes\",\"\")","v":""},null,"ENO_EfficiencyLevel",{"$f":"'PSD Summary'!K7","v":0}]
[{"$f":"IF('PSD Summary'!L7<>\"\",\"ImprovementAttributes\",\"\")","v":""},null,"ENO_UsefulLife",{"$f":"'PSD Summary'!L7","v":0}]
[{"$f":"IF('PSD Summary'!M7<>\"\",\"ImprovementAttributes\",\"\")","v":""},null,"ENO_SerialNumber",{"$f":"'PSD Summary'!M7","v":0}]
[{"$f":"IF('PSD Summary'!N7<>\"\",\"ImprovementAttributes\",\"\")","v":""},null,"ENO_Age",{"$f":"'PSD Summary'!N7","v":0}]
[{"$f":"IF('PSD Summary'!O7<>\"\",\"ImprovementAttributes\",\"\")","v":""},null,"ENO_EquipmentReplaced",{"$f":"'PSD Summary'!O7","v":0}]
[{"$f":"IFERROR(IF('PSD Summary'!I7<>\"\",\"ImprovementAttributes\",\"\"),\"\")","v":""},null,"ENO_SimplePayback",{"$f":"IFERROR('PSD Summary'!I7, 0)","v":""}]
[null,"12-17 Watt LED Screw-In replacing Incandescent/CFL",{"$f":"C43+1","v":4}]
[null,"ImprovementType","ImprovementCost","ImprovementQuantity","Description","AutogeneratedName","Status","TreatmentWorkscope","Savings( $/yr )"]
[{"$f":"IF('PSD Summary'!D8<>0,\"Improvements\",\"\")","v":""},{"$f":"'PSD Summary'!B8","v":"12-17 Watt LED Screw-In replacing Incandescent/CFL"},{"$f":"'PSD Summary'!C8","v":0},{"$f":"'PSD Summary'!D8","v":0},{"$f":"IF('PSD Summary'!P8<>\"\",'PSD Summary'!P8,\"\")","v":""},{"$f":"IF('PSD Summary'!B8<> \"\",'PSD Summary'!B8,\"\")","v":"12-17 Watt LED Screw-In replacing Incandescent/CFL"},{"$f":"IF('Project Information'!$CP$29=\"Pre-Installation\",\"Recommended\",IF('Project Information'!$CP$29=\"Post-Installation\", \"Completed\", \"\"))","v":""},null,{"$f":"'PSD Summary'!G8","v":""}]
[null,null,"ImprovementSavings"]
[null,null,"Fuel","Heating (kBtu/yr)","Cooling (kBtu/yr)","Lighting (kBtu/yr)","Hot Water (kBtu/yr)","Appliance (kBtu/yr)","Other (kBtu/yr)","AnnualTotal(kBtu/yr)","Demand","AnnualCost"]
[{"$f":"IF('PSD Summary'!E8<>\"\",\"ImprovementSavings\",\"\")","v":""},null,"Electricity",null,null,null,null,null,null,{"$f":"'PSD Summary'!E8*GECO_ELEC_RATIO","v":{"$error":"#VALUE!"}},{"$f":"'PSD Summary'!F8","v":""},{"$f":"'PSD Summary'!G8","v":""}]
[null,null,"ImprovementAttribute"]
[null,null,"AttributeName","Value"]
[{"$f":"IF('PSD Summary'!J8<>\"\",\"ImprovementAttributes\",\"\")","v":""},null,"ENO_Size",{"$f":"'PSD Summary'!J8","v":0}]
[{"$f":"IF('PSD Summary'!K8<>\"\",\"ImprovementAttributes\",\"\")","v":""},null,"ENO_EfficiencyLevel",{"$f":"'PSD Summary'!K8","v":0}]
[{"$f":"IF('PSD Summary'!L8<>\"\",\"ImprovementAttributes\",\"\")","v":""},null,"ENO_UsefulLife",{"$f":"'PSD Summary'!L8","v":0}]
[{"$f":"IF('PSD Summary'!M8<>\"\",\"ImprovementAttributes\",\"\")","v":""},null,"ENO_SerialNumber",{"$f":"'PSD Summary'!M8","v":0}]
[{"$f":"IF('PSD Summary'!N8<>\"\",\"ImprovementAttributes\",\"\")","v":""},null,"ENO_Age",{"$f":"'PSD Summary'!N8","v":0}]
[{"$f":"IF('PSD Summary'!O8<>\"\",\"ImprovementAttributes\",\"\")","v":""},null,"ENO_EquipmentReplaced",{"$f":"'PSD Summary'!O8","v":0}]
[{"$f":"IFERROR(IF('PSD Summary'!I8<>\"\",\"ImprovementAttributes\",\"\"),\"\")","v":""},null,"ENO_SimplePayback",{"$f":"IFERROR('PSD Summary'!I8, 0)","v":""}]
[null,"18 Watt and Above LED Screw-In replacing Incandescent/CFL",{"$f":"C58+1","v":5}]
[null,"ImprovementType","ImprovementCost","ImprovementQuantity","Description","AutogeneratedName","Status","TreatmentWorkscope","Savings( $/yr )"]
[{"$f":"IF('PSD Summary'!D9<>0,\"Improvements\",\"\")","v":""},{"$f":"'PSD Summary'!B9","v":"18 Watt and Above LED Screw-In replacing Incandescent/CFL"},{"$f":"'PSD Summary'!C9","v":0},{"$f":"'PSD Summary'!D9","v":0},{"$f":"IF('PSD Summary'!P9<>\"\",'PSD Summary'!P9,\"\")","v":""},{"$f":"IF('PSD Summary'!B9<> \"\",'PSD Summary'!B9,\"\")","v":"18 Watt and Above LED Screw-In replacing Incandescent/CFL"},{"$f":"IF('Project Information'!$CP$29=\"Pre-Installation\",\"Recommended\",IF('Project Information'!$CP$29=\"Post-Installation\", \"Completed\", \"\"))","v":""},null,{"$f":"'PSD Summary'!G9","v":""}]
[null,null,"ImprovementSavings"]
[null,null,"Fuel","Heating (kBtu/yr)","Cooling (kBtu/yr)","Lighting (kBtu/yr)","Hot Water (kBtu/yr)","Appliance (kBtu/yr)","Other (kBtu/yr)","AnnualTotal(kBtu/yr)","Demand","AnnualCost"]
[{"$f":"IF('PSD Summary'!E9<>\"\",\"ImprovementSavings\",\"\")","v":""},null,"Electricity",null,null,null,null,null,null,{"$f":"'PSD Summary'!E9*GECO_ELEC_RATIO","v":{"$error":"#VALUE!"}},{"$f":"'PSD Summary'!F9","v":""},{"$f":"'PSD Summary'!G9","v":""}]
[null,null,"ImprovementAttribute"]
[null,null,"AttributeName","Value"]
[{"$f":"IF('PSD Summary'!J9<>\"\",\"ImprovementAttributes\",\"\")","v":""},null,"ENO_Size",{"$f":"'PSD Summary'!J9","v":0}]
[{"$f":"IF('PSD Summary'!K9<>\"\",\"ImprovementAttributes\",\"\")","v":""},null,"ENO_EfficiencyLevel",{"$f":"'PSD Summary'!K9","v":0}]
[{"$f":"IF('PSD Summary'!L9<>\"\",\"ImprovementAttributes\",\"\")","v":""},null,"ENO_UsefulLife",{"$f":"'PSD Summary'!L9","v":0}]
[{"$f":"IF('PSD Summary'!M9<>\"\",\"ImprovementAttributes\",\"\")","v":""},null,"ENO_SerialNumber",{"$f":"'PSD Summary'!M9","v":0}]
[{"$f":"IF('PSD Summary'!N9<>\"\",\"ImprovementAttributes\",\"\")","v":""},null,"ENO_Age",{"$f":"'PSD Summary'!N9","v":0}]
[{"$f":"IF('PSD Summary'!O9<>\"\",\"ImprovementAttributes\",\"\")","v":""},null,"ENO_EquipmentReplaced",{"$f":"'PSD Summary'!O9","v":0}]
[{"$f":"IFERROR(IF('PSD Summary'!I9<>\"\",\"ImprovementAttributes\",\"\"),\"\")","v":""},null,"ENO_SimplePayback",{"$f":"IFERROR('PSD Summary'!I9, 0)","v":""}]
[null,{"$f":"'PSD Summary'!B10","v":"Daylighting Controller (Controlling < 500 W)"},{"$f":"C73+1","v":6}]
[null,"ImprovementType","ImprovementCost","ImprovementQuantity","Description","AutogeneratedName","Status","TreatmentWorkscope","Savings( $/yr )"]
[{"$f":"IF('PSD Summary'!D10<>0,\"Improvements\",\"\")","v":""},{"$f":"'PSD Summary'!B10","v":"Daylighting Controller (Controlling < 500 W)"},{"$f":"'PSD Summary'!C10","v":0},{"$f":"'PSD Summary'!D10","v":0},{"$f":"IF('PSD Summary'!P10<>\"\",'PSD Summary'!P10,\"\")","v":""},{"$f":"IF('PSD Summary'!B10<> \"\",'PSD Summary'!B10,\"\")","v":"Daylighting Controller (Controlling < 500 W)"},{"$f":"IF('Project Information'!$CP$29=\"Pre-Installation\",\"Recommended\",IF('Project Information'!$CP$29=\"Post-Installation\", \"Completed\", \"\"))","v":""},null,{"$f":"'PSD Summary'!G10","v":""}]
[null,null,"ImprovementSavings"]
[null,null,"Fuel","Heating (kBtu/yr)","Cooling (kBtu/yr)","Lighting (kBtu/yr)","Hot Water (kBtu/yr)","Appliance (kBtu/yr)","Other (kBtu/yr)","AnnualTotal(kBtu/yr)","Demand","AnnualCost"]
[{"$f":"IF('PSD Summary'!E10<>\"\",\"ImprovementSavings\",\"\")","v":""},null,"Electricity",null,null,null,null,null,null,{"$f":"'PSD Summary'!E10*GECO_ELEC_RATIO","v":{"$error":"#VALUE!"}},{"$f":"'PSD Summary'!F10","v":""},{"$f":"'PSD Summary'!G10","v":""}]
[null,null,"ImprovementAttribute"]
[null,null,"AttributeName","Value"]
[{"$f":"IF('PSD Summary'!J10<>\"\",\"ImprovementAttributes\",\"\")","v":""},null,"ENO_Size",{"$f":"'PSD Summary'!J10","v":0}]
[{"$f":"IF('PSD Summary'!K10<>\"\",\"ImprovementAttributes\",\"\")","v":""},null,"ENO_EfficiencyLevel",{"$f":"'PSD Summary'!K10","v":0}]
[{"$f":"IF('PSD Summary'!L10<>\"\",\"ImprovementAttributes\",\"\")","v":""},null,"ENO_UsefulLife",{"$f":"'PSD Summary'!L10","v":0}]
[{"$f":"IF('PSD Summary'!M10<>\"\",\"ImprovementAttributes\",\"\")","v":""},null,"ENO_SerialNumber",{"$f":"'PSD Summary'!M10","v":0}]
[{"$f":"IF('PSD Summary'!N10<>\"\",\"ImprovementAttributes\",\"\")","v":""},null,"ENO_Age",{"$f":"'PSD Summary'!N10","v":0}]
[{"$f":"IF('PSD Summary'!O10<>\"\",\"ImprovementAttributes\",\"\")","v":""},null,"ENO_EquipmentReplaced",{"$f":"'PSD Summary'!O10","v":0}]
[{"$f":"IFERROR(IF('PSD Summary'!I10<>\"\",\"ImprovementAttributes\",\"\"),\"\")","v":""},null,"ENO_SimplePayback",{"$f":"IFERROR('PSD Summary'!I10, 0)","v":""}]
[null,{"$f":"'PSD Summary'!B11","v":"Daylighting Controller (Controlling >= 500 W)"},{"$f":"C88+1","v":7}]
[null,"ImprovementType","ImprovementCost","ImprovementQuantity","Description","AutogeneratedName","Status","TreatmentWorkscope","Savings( $/yr )"]
[{"$f":"IF('PSD Summary'!D11<>0,\"Improvements\",\"\")","v":""},{"$f":"'PSD Summary'!B11","v":"Daylighting Controller (Controlling >= 500 W)"},{"$f":"'PSD Summary'!C11","v":0},{"$f":"'PSD Summary'!D11","v":0},{"$f":"IF('PSD Summary'!P11<>\"\",'PSD Summary'!P11,\"\")","v":""},{"$f":"IF('PSD Summary'!B11<> \"\",'PSD Summary'!B11,\"\")","v":"Daylighting Controller (Controlling >= 500 W)"},{"$f":"IF('Project Information'!$CP$29=\"Pre-Installation\",\"Recommended\",IF('Project Information'!$CP$29=\"Post-Installation\", \"Completed\", \"\"))","v":""},null,{"$f":"'PSD Summary'!G11","v":""}]
[null,null,"ImprovementSavings"]
[null,null,"Fuel","Heating (kBtu/yr)","Cooling (kBtu/yr)","Lighting (kBtu/yr)","Hot Water (kBtu/yr)","Appliance (kBtu/yr)","Other (kBtu/yr)","AnnualTotal(kBtu/yr)","Demand","AnnualCost"]
[{"$f":"IF('PSD Summary'!E11<>\"\",\"ImprovementSavings\",\"\")","v":""},null,"Electricity",null,null,null,null,null,null,{"$f":"'PSD Summary'!E11*GECO_ELEC_RATIO","v":{"$error":"#VALUE!"}},{"$f":"'PSD Summary'!F11","v":""},{"$f":"'PSD Summary'!G11","v":""}]
[null,null,"ImprovementAttribute"]
[null,null,"AttributeName","Value"]
[{"$f":"IF('PSD Summary'!J11<>\"\",\"ImprovementAttributes\",\"\")","v":""},null,"ENO_Size",{"$f":"'PSD Summary'!J11","v":0}]
[{"$f":"IF('PSD Summary'!K11<>\"\",\"ImprovementAttributes\",\"\")","v":""},null,"ENO_EfficiencyLevel",{"$f":"'PSD Summary'!K11","v":0}]
[{"$f":"IF('PSD Summary'!L11<>\"\",\"ImprovementAttributes\",\"\")","v":""},null,"ENO_UsefulLife",{"$f":"'PSD Summary'!L11","v":0}]
[{"$f":"IF('PSD Summary'!M11<>\"\",\"ImprovementAttributes\",\"\")","v":""},null,"ENO_SerialNumber",{"$f":"'PSD Summary'!M11","v":0}]
[{"$f":"IF('PSD Summary'!N11<>\"\",\"ImprovementAttributes\",\"\")","v":""},null,"ENO_Age",{"$f":"'PSD Summary'!N11","v":0}]
[{"$f":"IF('PSD Summary'!O11<>\"\",\"ImprovementAttributes\",\"\")","v":""},null,"ENO_EquipmentReplaced",{"$f":"'PSD Summary'!O11","v":0}]
[{"$f":"IFERROR(IF('PSD Summary'!I11<>\"\",\"ImprovementAttributes\",\"\"),\"\")","v":""},null,"ENO_SimplePayback",{"$f":"IFERROR('PSD Summary'!I11, 0)","v":""}]
[null,{"$f":"'PSD Summary'!B12","v":"Occupancy Sensor (Controlling < 500 W)"},{"$f":"C103+1","v":8}]
[null,"ImprovementType","ImprovementCost","ImprovementQuantity","Description","AutogeneratedName","Status","TreatmentWorkscope","Savings( $/yr )"]
[{"$f":"IF('PSD Summary'!D12<>0,\"Improvements\",\"\")","v":""},{"$f":"'PSD Summary'!B12","v":"Occupancy Sensor (Controlling < 500 W)"},{"$f":"'PSD Summary'!C12","v":0},{"$f":"'PSD Summary'!D12","v":0},{"$f":"IF('PSD Summary'!P12<>\"\",'PSD Summary'!P12,\"\")","v":""},{"$f":"IF('PSD Summary'!B12<> \"\",'PSD Summary'!B12,\"\")","v":"Occupancy Sensor (Controlling < 500 W)"},{"$f":"IF('Project Information'!$CP$29=\"Pre-Installation\",\"Recommended\",IF('Project Information'!$CP$29=\"Post-Installation\", \"Completed\", \"\"))","v":""},null,{"$f":"'PSD Summary'!G12","v":""}]
[null,null,"ImprovementSavings"]
[null,null,"Fuel","Heating (kBtu/yr)","Cooling (kBtu/yr)","Lighting (kBtu/yr)","Hot Water (kBtu/yr)","Appliance (kBtu/yr)","Other (kBtu/yr)","AnnualTotal(kBtu/yr)","Demand","AnnualCost"]
[{"$f":"IF('PSD Summary'!E12<>\"\",\"ImprovementSavings\",\"\")","v":""},null,"Electricity",null,null,null,null,null,null,{"$f":"'PSD Summary'!E12*GECO_ELEC_RATIO","v":{"$error":"#VALUE!"}},{"$f":"'PSD Summary'!F12","v":""},{"$f":"'PSD Summary'!G12","v":""}]
[null,null,"ImprovementAttribute"]
[null,null,"AttributeName","Value"]
[{"$f":"IF('PSD Summary'!J12<>\"\",\"ImprovementAttributes\",\"\")","v":""},null,"ENO_Size",{"$f":"'PSD Summary'!J12","v":0}]
[{"$f":"IF('PSD Summary'!K12<>\"\",\"ImprovementAttributes\",\"\")","v":""},null,"ENO_EfficiencyLevel",{"$f":"'PSD Summary'!K12","v":0}]
[{"$f":"IF('PSD Summary'!L12<>\"\",\"ImprovementAttributes\",\"\")","v":""},null,"ENO_UsefulLife",{"$f":"'PSD Summary'!L12","v":0}]
[{"$f":"IF('PSD Summary'!M12<>\"\",\"ImprovementAttributes\",\"\")","v":""},null,"ENO_SerialNumber",{"$f":"'PSD Summary'!M12","v":0}]
[{"$f":"IF('PSD Summary'!N12<>\"\",\"ImprovementAttributes\",\"\")","v":""},null,"ENO_Age",{"$f":"'PSD Summary'!N12","v":0}]
[{"$f":"IF('PSD Summary'!O12<>\"\",\"ImprovementAttributes\",\"\")","v":""},null,"ENO_EquipmentReplaced",{"$f":"'PSD Summary'!O12","v":0}]
[{"$f":"IFERROR(IF('PSD Summary'!I12<>\"\",\"ImprovementAttributes\",\"\"),\"\")","v":""},null,"ENO_SimplePayback",{"$f":"IFERROR('PSD Summary'!I12, 0)","v":""}]
[null,{"$f":"'PSD Summary'!B13","v":"Occupancy Sensor (Controlling >= 500 W)"},{"$f":"C118+1","v":9}]
[null,"ImprovementType","ImprovementCost","ImprovementQuantity","Description","AutogeneratedName","Status","TreatmentWorkscope","Savings( $/yr )"]
[{"$f":"IF('PSD Summary'!D13<>0,\"Improvements\",\"\")","v":""},{"$f":"'PSD Summary'!B13","v":"Occupancy Sensor (Controlling >= 500 W)"},{"$f":"'PSD Summary'!C13","v":0},{"$f":"'PSD Summary'!D13","v":0},{"$f":"IF('PSD Summary'!P13<>\"\",'PSD Summary'!P13,\"\")","v":""},{"$f":"IF('PSD Summary'!B13<> \"\",'PSD Summary'!B13,\"\")","v":"Occupancy Sensor (Controlling >= 500 W)"},{"$f":"IF('Project Information'!$CP$29=\"Pre-Installation\",\"Recommended\",IF('Project Information'!$CP$29=\"Post-Installation\", \"Completed\", \"\"))","v":""},null,{"$f":"'PSD Summary'!G13","v":""}]
[null,null,"ImprovementSavings"]
[null,null,"Fuel","Heating (kBtu/yr)","Cooling (kBtu/yr)","Lighting (kBtu/yr)","Hot Water (kBtu/yr)","Appliance (kBtu/yr)","Other (kBtu/yr)","AnnualTotal(kBtu/yr)","Demand","AnnualCost"]
[{"$f":"IF('PSD Summary'!E13<>\"\",\"ImprovementSavings\",\"\")","v":""},null,"Electricity",null,null,null,null,null,null,{"$f":"'PSD Summary'!E13*GECO_ELEC_RATIO","v":{"$error":"#VALUE!"}},{"$f":"'PSD Summary'!F13","v":""},{"$f":"'PSD Summary'!G13","v":""}]
[null,null,"ImprovementAttribute"]
[null,null,"AttributeName","Value"]
[{"$f":"IF('PSD Summary'!J13<>\"\",\"ImprovementAttributes\",\"\")","v":""},null,"ENO_Size",{"$f":"'PSD Summary'!J13","v":0}]
[{"$f":"IF('PSD Summary'!K13<>\"\",\"ImprovementAttributes\",\"\")","v":""},null,"ENO_EfficiencyLevel",{"$f":"'PSD Summary'!K13","v":0}]
[{"$f":"IF('PSD Summary'!L13<>\"\",\"ImprovementAttributes\",\"\")","v":""},null,"ENO_UsefulLife",{"$f":"'PSD Summary'!L13","v":0}]
[{"$f":"IF('PSD Summary'!M13<>\"\",\"ImprovementAttributes\",\"\")","v":""},null,"ENO_SerialNumber",{"$f":"'PSD Summary'!M13","v":0}]
[{"$f":"IF('PSD Summary'!N13<>\"\",\"ImprovementAttributes\",\"\")","v":""},null,"ENO_Age",{"$f":"'PSD Summary'!N13","v":0}]
[{"$f":"IF('PSD Summary'!O13<>\"\",\"ImprovementAttributes\",\"\")","v":""},null,"ENO_EquipmentReplaced",{"$f":"'PSD Summary'!O13","v":0}]
[{"$f":"IFERROR(IF('PSD Summary'!I13<>\"\",\"ImprovementAttributes\",\"\"),\"\")","v":""},null,"ENO_SimplePayback",{"$f":"IFERROR('PSD Summary'!I13, 0)","v":""}]
[null,{"$f":"'PSD Summary'!B14","v":"Occupancy Sensor w/ Daylighting Control (Controlling < 500 W)"},{"$f":"C133+1","v":10}]
[null,"ImprovementType","ImprovementCost","ImprovementQuantity","Description","AutogeneratedName","Status","TreatmentWorkscope","Savings( $/yr )"]
[{"$f":"IF('PSD Summary'!D14<>0,\"Improvements\",\"\")","v":""},{"$f":"'PSD Summary'!B14","v":"Occupancy Sensor w/ Daylighting Control (Controlling < 500 W)"},{"$f":"'PSD Summary'!C14","v":0},{"$f":"'PSD Summary'!D14","v":0},{"$f":"IF('PSD Summary'!P14<>\"\",'PSD Summary'!P14,\"\")","v":""},{"$f":"IF('PSD Summary'!B14<> \"\",'PSD Summary'!B14,\"\")","v":"Occupancy Sensor w/ Daylighting Control (Controlling < 500 W)"},{"$f":"IF('Project Information'!$CP$29=\"Pre-Installation\",\"Recommended\",IF('Project Information'!$CP$29=\"Post-Installation\", \"Completed\", \"\"))","v":""},null,{"$f":"'PSD Summary'!G14","v":""}]
[null,null,"ImprovementSavings"]
[null,null,"Fuel","Heating (kBtu/yr)","Cooling (kBtu/yr)","Lighting (kBtu/yr)","Hot Water (kBtu/yr)","Appliance (kBtu/yr)","Other (kBtu/yr)","AnnualTotal(kBtu/yr)","Demand","AnnualCost"]
[{"$f":"IF('PSD Summary'!E14<>\"\",\"ImprovementSavings\",\"\")","v":""},null,"Electricity",null,null,null,null,null,null,{"$f":"'PSD Summary'!E14*GECO_ELEC_RATIO","v":{"$error":"#VALUE!"}},{"$f":"'PSD Summary'!F14","v":""},{"$f":"'PSD Summary'!G14","v":""}]
[null,null,"ImprovementAttribute"]
[null,null,"AttributeName","Value"]
[{"$f":"IF('PSD Summary'!J14<>\"\",\"ImprovementAttributes\",\"\")","v":""},null,"ENO_Size",{"$f":"'PSD Summary'!J14","v":0}]
[{"$f":"IF('PSD Summary'!K14<>\"\",\"ImprovementAttributes\",\"\")","v":""},null,"ENO_EfficiencyLevel",{"$f":"'PSD Summary'!K14","v":0}]
[{"$f":"IF('PSD Summary'!L14<>\"\",\"ImprovementAttributes\",\"\")","v":""},null,"ENO_UsefulLife",{"$f":"'PSD Summary'!L14","v":0}]
[{"$f":"IF('PSD Summary'!M14<>\"\",\"ImprovementAttributes\",\"\")","v":""},null,"ENO_SerialNumber",{"$f":"'PSD Summary'!M14","v":0}]
[{"$f":"IF('PSD Summary'!N14<>\"\",\"ImprovementAttributes\",\"\")","v":""},null,"ENO_Age",{"$f":"'PSD Summary'!N14","v":0}]
[{"$f":"IF('PSD Summary'!O14<>\"\",\"ImprovementAttributes\",\"\")","v":""},null,"ENO_EquipmentReplaced",{"$f":"'PSD Summary'!O14","v":0}]
[{"$f":"IFERROR(IF('PSD Summary'!I14<>\"\",\"ImprovementAttributes\",\"\"),\"\")","v":""},null,"ENO_SimplePayback",{"$f":"IFERROR('PSD Summary'!I14, 0)","v":""}]
[null,{"$f":"'PSD Summary'!B15","v":"Occupancy Sensor w/ Daylighting Control (Controlling >= 500 W)"},{"$f":"C148+1","v":11}]
[null,"ImprovementType","ImprovementCost","ImprovementQuantity","Description","AutogeneratedName","Status","TreatmentWorkscope","Savings( $/yr )"]
[{"$f":"IF('PSD Summary'!D15<>0,\"Improvements\",\"\")","v":""},{"$f":"'PSD Summary'!B15","v":"Occupancy Sensor w/ Daylighting Control (Controlling >= 500 W)"},{"$f":"'PSD Summary'!C15","v":0},{"$f":"'PSD Summary'!D15","v":0},{"$f":"IF('PSD Summary'!P15<>\"\",'PSD Summary'!P15,\"\")","v":""},{"$f":"IF('PSD Summary'!B15<> \"\",'PSD Summary'!B15,\"\")","v":"Occupancy Sensor w/ Daylighting Control (Controlling >= 500 W)"},{"$f":"IF('Project Information'!$CP$29=\"Pre-Installation\",\"Recommended\",IF('Project Information'!$CP$29=\"Post-Installation\", \"Completed\", \"\"))","v":""},null,{"$f":"'PSD Summary'!G15","v":""}]
[null,null,"ImprovementSavings"]
[null,null,"Fuel","Heating (kBtu/yr)","Cooling (kBtu/yr)","Lighting (kBtu/yr)","Hot Water (kBtu/yr)","Appliance (kBtu/yr)","Other (kBtu/yr)","AnnualTotal(kBtu/yr)","Demand","AnnualCost"]
[{"$f":"IF('PSD Summary'!E15<>\"\",\"ImprovementSavings\",\"\")","v":""},null,"Electricity",null,null,null,null,null,null,{"$f":"'PSD Summary'!E15*GECO_ELEC_RATIO","v":{"$error":"#VALUE!"}},{"$f":"'PSD Summary'!F15","v":""},{"$f":"'PSD Summary'!G15","v":""}]
[null,null,"ImprovementAttribute"]
[null,null,"AttributeName","Value"]
[{"$f":"IF('PSD Summary'!J15<>\"\",\"ImprovementAttributes\",\"\")","v":""},null,"ENO_Size",{"$f":"'PSD Summary'!J15","v":0}]
[{"$f":"IF('PSD Summary'!K15<>\"\",\"ImprovementAttributes\",\"\")","v":""},null,"ENO_EfficiencyLevel",{"$f":"'PSD Summary'!K15","v":0}]
[{"$f":"IF('PSD Summary'!L15<>\"\",\"ImprovementAttributes\",\"\")","v":""},null,"ENO_UsefulLife",{"$f":"'PSD Summary'!L15","v":0}]
[{"$f":"IF('PSD Summary'!M15<>\"\",\"ImprovementAttributes\",\"\")","v":""},null,"ENO_SerialNumber",{"$f":"'PSD Summary'!M15","v":0}]
[{"$f":"IF('PSD Summary'!N15<>\"\",\"ImprovementAttributes\",\"\")","v":""},null,"ENO_Age",{"$f":"'PSD Summary'!N15","v":0}]
[{"$f":"IF('PSD Summary'!O15<>\"\",\"ImprovementAttributes\",\"\")","v":""},null,"ENO_EquipmentReplaced",{"$f":"'PSD Summary'!O15","v":0}]
[{"$f":"IFERROR(IF('PSD Summary'!I15<>\"\",\"ImprovementAttributes\",\"\"),\"\")","v":""},null,"ENO_SimplePayback",{"$f":"IFERROR('PSD Summary'!I15, 0)","v":""}]
[null,{"$f":"'PSD Summary'!B16","v":"A/C Unit (< 5.42 Tons) - Min. efficiency of 12.3 EER/15 SEER"},{"$f":"C163+1","v":12}]
[null,"ImprovementType","ImprovementCost","ImprovementQuantity","Description","AutogeneratedName","Status","TreatmentWorkscope","Savings( $/yr )"]
[{"$f":"IF('PSD Summary'!D16<>0,\"Improvements\",\"\")","v":""},{"$f":"'PSD Summary'!B16","v":"A/C Unit (< 5.42 Tons) - Min. efficiency of 12.3 EER/15 SEER"},{"$f":"'PSD Summary'!C16","v":0},{"$f":"'PSD Summary'!D16","v":0},{"$f":"IF('PSD Summary'!P16<>\"\",'PSD Summary'!P16,\"\")","v":""},{"$f":"IF('PSD Summary'!B16<> \"\",'PSD Summary'!B16,\"\")","v":"A/C Unit (< 5.42 Tons) - Min. efficiency of 12.3 EER/15 SEER"},{"$f":"IF('Project Information'!$CP$29=\"Pre-Installation\",\"Recommended\",IF('Project Information'!$CP$29=\"Post-Installation\", \"Completed\", \"\"))","v":""},null,{"$f":"'PSD Summary'!G16","v":""}]
[null,null,"ImprovementSavings"]
[null,null,"Fuel","Heating (kBtu/yr)","Cooling (kBtu/yr)","Lighting (kBtu/yr)","Hot Water (kBtu/yr)","Appliance (kBtu/yr)","Other (kBtu/yr)","AnnualTotal(kBtu/yr)","Demand","AnnualCost"]
[{"$f":"IF('PSD Summary'!E16<>\"\",\"ImprovementSavings\",\"\")","v":""},null,"Electricity",null,null,null,null,null,null,{"$f":"'PSD Summary'!E16*GECO_ELEC_RATIO","v":{"$error":"#VALUE!"}},{"$f":"'PSD Summary'!F16","v":""},{"$f":"'PSD Summary'!G16","v":""}]
[null,null,"ImprovementAttribute"]
[null,null,"AttributeName","Value"]
[{"$f":"IF('PSD Summary'!J16<>\"\",\"ImprovementAttributes\",\"\")","v":""},null,"ENO_Size",{"$f":"'PSD Summary'!J16","v":0}]
[{"$f":"IF('PSD Summary'!K16<>\"\",\"ImprovementAttributes\",\"\")","v":""},null,"ENO_EfficiencyLevel",{"$f":"'PSD Summary'!K16","v":0}]
[{"$f":"IF('PSD Summary'!L16<>\"\",\"ImprovementAttributes\",\"\")","v":""},null,"ENO_UsefulLife",{"$f":"'PSD Summary'!L16","v":0}]
[{"$f":"IF('PSD Summary'!M16<>\"\",\"ImprovementAttributes\",\"\")","v":""},null,"ENO_SerialNumber",{"$f":"'PSD Summary'!M16","v":0}]
[{"$f":"IF('PSD Summary'!N16<>\"\",\"ImprovementAttributes\",\"\")","v":""},null,"ENO_Age",{"$f":"'PSD Summary'!N16","v":0}]
[{"$f":"IF('PSD Summary'!O16<>\"\",\"ImprovementAttributes\",\"\")","v":""},null,"ENO_EquipmentReplaced",{"$f":"'PSD Summary'!O16","v":0}]
[{"$f":"IFERROR(IF('PSD Summary'!I16<>\"\",\"ImprovementAttributes\",\"\"),\"\")","v":""},null,"ENO_SimplePayback",{"$f":"IFERROR('PSD Summary'!I16, 0)","v":""}]
[null,{"$f":"'PSD Summary'!B17","v":"A/C Unit (5.42 - 11.24 Tons) - Min. efficiency 12.2 EER/14.8 SEER"},{"$f":"C178+1","v":13}]
[null,"ImprovementType","ImprovementCost","ImprovementQuantity","Description","AutogeneratedName","Status","TreatmentWorkscope","Savings( $/yr )"]
[{"$f":"IF('PSD Summary'!D17<>0,\"Improvements\",\"\")","v":""},{"$f":"'PSD Summary'!B17","v":"A/C Unit (5.42 - 11.24 Tons) - Min. efficiency 12.2 EER/14.8 SEER"},{"$f":"'PSD Summary'!C17","v":0},{"$f":"'PSD Summary'!D17","v":0},{"$f":"IF('PSD Summary'!P17<>\"\",'PSD Summary'!P17,\"\")","v":""},{"$f":"IF('PSD Summary'!B17<> \"\",'PSD Summary'!B17,\"\")","v":"A/C Unit (5.42 - 11.24 Tons) - Min. efficiency 12.2 EER/14.8 SEER"},{"$f":"IF('Project Information'!$CP$29=\"Pre-Installation\",\"Recommended\",IF('Project Information'!$CP$29=\"Post-Installation\", \"Completed\", \"\"))","v":""},null,{"$f":"'PSD Summary'!G17","v":""}]
[null,null,"ImprovementSavings"]
[null,null,"Fuel","Heating (kBtu/yr)","Cooling (kBtu/yr)","Lighting (kBtu/yr)","Hot Water (kBtu/yr)","Appliance (kBtu/yr)","Other (kBtu/yr)","AnnualTotal(kBtu/yr)","Demand","AnnualCost"]
[{"$f":"IF('PSD Summary'!E17<>\"\",\"ImprovementSavings\",\"\")","v":""},null,"Electricity",null,null,null,null,null,null,{"$f":"'PSD Summary'!E17*GECO_ELEC_RATIO","v":{"$error":"#VALUE!"}},{"$f":"'PSD Summary'!F17","v":""},{"$f":"'PSD Summary'!G17","v":""}]
[null,null,"ImprovementAttribute"]
[null,null,"AttributeName","Value"]
[{"$f":"IF('PSD Summary'!J17<>\"\",\"ImprovementAttributes\",\"\")","v":""},null,"ENO_Size",{"$f":"'PSD Summary'!J17","v":0}]
[{"$f":"IF('PSD Summary'!K17<>\"\",\"ImprovementAttributes\",\"\")","v":""},null,"ENO_EfficiencyLevel",{"$f":"'PSD Summary'!K17","v":0}]
[{"$f":"IF('PSD Summary'!L17<>\"\",\"ImprovementAttributes\",\"\")","v":""},null,"ENO_UsefulLife",{"$f":"'PSD Summary'!L17","v":0}]
[{"$f":"IF('PSD Summary'!M17<>\"\",\"ImprovementAttributes\",\"\")","v":""},null,"ENO_SerialNumber",{"$f":"'PSD Summary'!M17","v":0}]
[{"$f":"IF('PSD Summary'!N17<>\"\",\"ImprovementAttributes\",\"\")","v":""},null,"ENO_Age",{"$f":"'PSD Summary'!N17","v":0}]
[{"$f":"IF('PSD Summary'!O17<>\"\",\"ImprovementAttributes\",\"\")","v":""},null,"ENO_EquipmentReplaced",{"$f":"'PSD Summary'!O17","v":0}]
[{"$f":"IFERROR(IF('PSD Summary'!I17<>\"\",\"ImprovementAttributes\",\"\"),\"\")","v":""},null,"ENO_SimplePayback",{"$f":"IFERROR('PSD Summary'!I17, 0)","v":""}]
[null,{"$f":"'PSD Summary'!B18","v":"A/C Unit (11.25 - 19.9 Tons) - Min. efficiency 12.2 EER/14.8 SEER"},{"$f":"C193+1","v":14}]
[null,"ImprovementType","ImprovementCost","ImprovementQuantity","Description","AutogeneratedName","Status","TreatmentWorkscope","Savings( $/yr )"]
[{"$f":"IF('PSD Summary'!D18<>0,\"Improvements\",\"\")","v":""},{"$f":"'PSD Summary'!B18","v":"A/C Unit (11.25 - 19.9 Tons) - Min. efficiency 12.2 EER/14.8 SEER"},{"$f":"'PSD Summary'!C18","v":0},{"$f":"'PSD Summary'!D18","v":0},{"$f":"IF('PSD Summary'!P18<>\"\",'PSD Summary'!P18,\"\")","v":""},{"$f":"IF('PSD Summary'!B18<> \"\",'PSD Summary'!B18,\"\")","v":"A/C Unit (11.25 - 19.9 Tons) - Min. efficiency 12.2 EER/14.8 SEER"},{"$f":"IF('Project Information'!$CP$29=\"Pre-Installation\",\"Recommended\",IF('Project Information'!$CP$29=\"Post-Installation\", \"Completed\", \"\"))","v":""},null,{"$f":"'PSD Summary'!G18","v":""}]
[null,null,"ImprovementSavings"]
[null,null,"Fuel","Heating (kBtu/yr)","Cooling (kBtu/yr)","Lighting (kBtu/yr)","Hot Water (kBtu/yr)","Appliance (kBtu/yr)","Other (kBtu/yr)","AnnualTotal(kBtu/yr)","Demand","AnnualCost"]
[{"$f":"IF('PSD Summary'!E18<>\"\",\"ImprovementSavings\",\"\")","v":""},null,"Electricity",null,null,null,null,null,null,{"$f":"'PSD Summary'!E18*GECO_ELEC_RATIO","v":{"$error":"#VALUE!"}},{"$f":"'PSD Summary'!F18","v":""},{"$f":"'PSD Summary'!G18","v":""}]
[null,null,"ImprovementAttribute"]
[null,null,"AttributeName","Value"]
[{"$f":"IF('PSD Summary'!J18<>\"\",\"ImprovementAttributes\",\"\")","v":""},null,"ENO_Size",{"$f":"'PSD Summary'!J18","v":0}]
[{"$f":"IF('PSD Summary'!K18<>\"\",\"ImprovementAttributes\",\"\")","v":""},null,"ENO_EfficiencyLevel",{"$f":"'PSD Summary'!K18","v":0}]
[{"$f":"IF('PSD Summary'!L18<>\"\",\"ImprovementAttributes\",\"\")","v":""},null,"ENO_UsefulLife",{"$f":"'PSD Summary'!L18","v":0}]
[{"$f":"IF('PSD Summary'!M18<>\"\",\"ImprovementAttributes\",\"\")","v":""},null,"ENO_SerialNumber",{"$f":"'PSD Summary'!M18","v":0}]
[{"$f":"IF('PSD Summary'!N18<>\"\",\"ImprovementAttributes\",\"\")","v":""},null,"ENO_Age",{"$f":"'PSD Summary'!N18","v":0}]
[{"$f":"IF('PSD Summary'!O18<>\"\",\"ImprovementAttributes\",\"\")","v":""},null,"ENO_EquipmentReplaced",{"$f":"'PSD Summary'!O18","v":0}]
[{"$f":"IFERROR(IF('PSD Summary'!I18<>\"\",\"ImprovementAttributes\",\"\"),\"\")","v":""},null,"ENO_SimplePayback",{"$f":"IFERROR('PSD Summary'!I18, 0)","v":""}]
[null,{"$f":"'PSD Summary'!B19","v":"A/C Unit (20.1 - 63.3 Tons) - Min. efficiency 10.8 EER/12.4 SEER"},{"$f":"C208+1","v":15}]
[null,"ImprovementType","ImprovementCost","ImprovementQuantity","Description","AutogeneratedName","Status","TreatmentWorkscope","Savings( $/yr )"]
[{"$f":"IF('PSD Summary'!D19<>0,\"Improvements\",\"\")","v":""},{"$f":"'PSD Summary'!B19","v":"A/C Unit (20.1 - 63.3 Tons) - Min. efficiency 10.8 EER/12.4 SEER"},{"$f":"'PSD Summary'!C19","v":0},{"$f":"'PSD Summary'!D19","v":0},{"$f":"IF('PSD Summary'!P19<>\"\",'PSD Summary'!P19,\"\")","v":""},{"$f":"IF('PSD Summary'!B19<> \"\",'PSD Summary'!B19,\"\")","v":"A/C Unit (20.1 - 63.3 Tons) - Min. efficiency 10.8 EER/12.4 SEER"},{"$f":"IF('Project Information'!$CP$29=\"Pre-Installation\",\"Recommended\",IF('Project Information'!$CP$29=\"Post-Installation\", \"Completed\", \"\"))","v":""},null,{"$f":"'PSD Summary'!G19","v":""}]
[null,null,"ImprovementSavings"]
[null,null,"Fuel","Heating (kBtu/yr)","Cooling (kBtu/yr)","Lighting (kBtu/yr)","Hot Water (kBtu/yr)","Appliance (kBtu/yr)","Other (kBtu/yr)","AnnualTotal(kBtu/yr)","Demand","AnnualCost"]
[{"$f":"IF('PSD Summary'!E19<>\"\",\"ImprovementSavings\",\"\")","v":""},null,"Electricity",null,null,null,null,null,null,{"$f":"'PSD Summary'!E19*GECO_ELEC_RATIO","v":{"$error":"#VALUE!"}},{"$f":"'PSD Summary'!F19","v":""},{"$f":"'PSD Summary'!G19","v":""}]
[null,null,"ImprovementAttribute"]
[null,null,"AttributeName","Value"]
[{"$f":"IF('PSD Summary'!J19<>\"\",\"ImprovementAttributes\",\"\")","v":""},null,"ENO_Size",{"$f":"'PSD Summary'!J19","v":0}]
[{"$f":"IF('PSD Summary'!K19<>\"\",\"ImprovementAttributes\",\"\")","v":""},null,"ENO_EfficiencyLevel",{"$f":"'PSD Summary'!K19","v":0}]
[{"$f":"IF('PSD Summary'!L19<>\"\",\"ImprovementAttributes\",\"\")","v":""},null,"ENO_UsefulLife",{"$f":"'PSD Summary'!L19","v":0}]
[{"$f":"IF('PSD Summary'!M19<>\"\",\"ImprovementAttributes\",\"\")","v":""},null,"ENO_SerialNumber",{"$f":"'PSD Summary'!M19","v":0}]
[{"$f":"IF('PSD Summary'!N19<>\"\",\"ImprovementAttributes\",\"\")","v":""},null,"ENO_Age",{"$f":"'PSD Summary'!N19","v":0}]
[{"$f":"IF('PSD Summary'!O19<>\"\",\"ImprovementAttributes\",\"\")","v":""},null,"ENO_EquipmentReplaced",{"$f":"'PSD Summary'!O19","v":0}]
[{"$f":"IFERROR(IF('PSD Summary'!I19<>\"\",\"ImprovementAttributes\",\"\"),\"\")","v":""},null,"ENO_SimplePayback",{"$f":"IFERROR('PSD Summary'!I19, 0)","v":""}]
[null,{"$f":"'PSD Summary'!B20","v":"A/C Unit (> 63.3 Tons) - Min. efficiency 10.4 EER/11.75 SEER"},{"$f":"C223+1","v":16}]
[null,"ImprovementType","ImprovementCost","ImprovementQuantity","Description","AutogeneratedName","Status","TreatmentWorkscope","Savings( $/yr )"]
[{"$f":"IF('PSD Summary'!D20<>0,\"Improvements\",\"\")","v":""},{"$f":"'PSD Summary'!B20","v":"A/C Unit (> 63.3 Tons) - Min. efficiency 10.4 EER/11.75 SEER"},{"$f":"'PSD Summary'!C20","v":0},{"$f":"'PSD Summary'!D20","v":0},{"$f":"IF('PSD Summary'!P20<>\"\",'PSD Summary'!P20,\"\")","v":""},{"$f":"IF('PSD Summary'!B20<> \"\",'PSD Summary'!B20,\"\")","v":"A/C Unit (> 63.3 Tons) - Min. efficiency 10.4 EER/11.75 SEER"},{"$f":"IF('Project Information'!$CP$29=\"Pre-Installation\",\"Recommended\",IF('Project Information'!$CP$29=\"Post-Installation\", \"Completed\", \"\"))","v":""},null,{"$f":"'PSD Summary'!G20","v":""}]
[null,null,"ImprovementSavings"]
[null,null,"Fuel","Heating (kBtu/yr)","Cooling (kBtu/yr)","Lighting (kBtu/yr)","Hot Water (kBtu/yr)","Appliance (kBtu/yr)","Other (kBtu/yr)","AnnualTotal(kBtu/yr)","Demand","AnnualCost"]
[{"$f":"IF('PSD Summary'!E20<>\"\",\"ImprovementSavings\",\"\")","v":""},null,"Electricity",null,null,null,null,null,null,{"$f":"'PSD Summary'!E20*GECO_ELEC_RATIO","v":{"$error":"#VALUE!"}},{"$f":"'PSD Summary'!F20","v":""},{"$f":"'PSD Summary'!G20","v":""}]
[null,null,"ImprovementAttribute"]
[null,null,"AttributeName","Value"]
[{"$f":"IF('PSD Summary'!J20<>\"\",\"ImprovementAttributes\",\"\")","v":""},null,"ENO_Size",{"$f":"'PSD Summary'!J20","v":0}]
[{"$f":"IF('PSD Summary'!K20<>\"\",\"ImprovementAttributes\",\"\")","v":""},null,"ENO_EfficiencyLevel",{"$f":"'PSD Summary'!K20","v":0}]
[{"$f":"IF('PSD Summary'!L20<>\"\",\"ImprovementAttributes\",\"\")","v":""},null,"ENO_UsefulLife",{"$f":"'PSD Summary'!L20","v":0}]
[{"$f":"IF('PSD Summary'!M20<>\"\",\"ImprovementAttributes\",\"\")","v":""},null,"ENO_SerialNumber",{"$f":"'PSD Summary'!M20","v":0}]
[{"$f":"IF('PSD Summary'!N20<>\"\",\"ImprovementAttributes\",\"\")","v":""},null,"ENO_Age",{"$f":"'PSD Summary'!N20","v":0}]
[{"$f":"IF('PSD Summary'!O20<>\"\",\"ImprovementAttributes\",\"\")","v":""},null,"ENO_EquipmentReplaced",{"$f":"'PSD Summary'!O20","v":0}]
[{"$f":"IFERROR(IF('PSD Summary'!I20<>\"\",\"ImprovementAttributes\",\"\"),\"\")","v":""},null,"ENO_SimplePayback",{"$f":"IFERROR('PSD Summary'!I20, 0)","v":""}]
[null,"Commercial Kitchen",{"$f":"C238+1","v":17}]
[null,"ImprovementType","ImprovementCost","ImprovementQuantity","Description","AutogeneratedName","Status","TreatmentWorkscope","Savings( $/yr )"]
[{"$f":"IF('PSD Summary'!D26<>0,\"Improvements\",\"\")","v":""},{"$f":"'PSD Summary'!B26","v":"Heat Pump (< 5.42 Tons) - Min. efficiency 12.3 EER/15 SEER/9.0 HSPF"},{"$f":"'PSD Summary'!C26","v":0},{"$f":"'PSD Summary'!D26","v":0},{"$f":"IF('PSD Summary'!P26<>\"\",'PSD Summary'!P26,\"\")","v":""},{"$f":"IF('PSD Summary'!B26<> \"\",'PSD Summary'!B26,\"\")","v":"Heat Pump (< 5.42 Tons) - Min. efficiency 12.3 EER/15 SEER/9.0 HSPF"},{"$f":"IF('Project Information'!$CP$29=\"Pre-Installation\",\"Recommended\",IF('Project Information'!$CP$29=\"Post-Installation\", \"Completed\", \"\"))","v":""},null,{"$f":"'PSD Summary'!G26","v":""}]
[null,null,"ImprovementSavings"]
[null,null,"Fuel","Heating (kBtu/yr)","Cooling (kBtu/yr)","Lighting (kBtu/yr)","Hot Water (kBtu/yr)","Appliance (kBtu/yr)","Other (kBtu/yr)","AnnualTotal(kBtu/yr)","Demand","AnnualCost"]
[{"$f":"IF('PSD Summary'!E26<>\"\",\"ImprovementSavings\",\"\")","v":""},null,"Electricity",null,null,null,null,null,null,{"$f":"'PSD Summary'!E26*GECO_ELEC_RATIO","v":{"$error":"#VALUE!"}},{"$f":"'PSD Summary'!F26","v":""},{"$f":"'PSD Summary'!G26","v":""}]
[null,null,"ImprovementAttribute"]
[null,null,"AttributeName","Value"]
[{"$f":"IF('PSD Summary'!J26<>\"\",\"ImprovementAttributes\",\"\")","v":""},null,"ENO_Size",{"$f":"'PSD Summary'!J26","v":0}]
[{"$f":"IF('PSD Summary'!K26<>\"\",\"ImprovementAttributes\",\"\")","v":""},null,"ENO_EfficiencyLevel",{"$f":"'PSD Summary'!K26","v":0}]
[{"$f":"IF('PSD Summary'!L26<>\"\",\"ImprovementAttributes\",\"\")","v":""},null,"ENO_UsefulLife",{"$f":"'PSD Summary'!L26","v":0}]
[{"$f":"IF('PSD Summary'!M26<>\"\",\"ImprovementAttributes\",\"\")","v":""},null,"ENO_SerialNumber",{"$f":"'PSD Summary'!M26","v":0}]
[{"$f":"IF('PSD Summary'!N26<>\"\",\"ImprovementAttributes\",\"\")","v":""},null,"ENO_Age",{"$f":"'PSD Summary'!N26","v":0}]
[{"$f":"IF('PSD Summary'!O26<>\"\",\"ImprovementAttributes\",\"\")","v":""},null,"ENO_EquipmentReplaced",{"$f":"'PSD Summary'!O26","v":0}]
[{"$f":"IFERROR(IF('PSD Summary'!I26<>\"\",\"ImprovementAttributes\",\"\"),\"\")","v":""},null,"ENO_SimplePayback",{"$f":"IFERROR('PSD Summary'!I26, 0)","v":""}]
[null,{"$f":"'PSD Summary'!B26","v":"Heat Pump (< 5.42 Tons) - Min. efficiency 12.3 EER/15 SEER/9.0 HSPF"},{"$f":"C253+1","v":18}]
[null,"ImprovementType","ImprovementCost","ImprovementQuantity","Description","AutogeneratedName","Status","TreatmentWorkscope","Savings( $/yr )"]
[{"$f":"IF('PSD Summary'!D27<>0,\"Improvements\",\"\")","v":""},{"$f":"'PSD Summary'!B27","v":"Heat Pump (5.42 - 11.24 Tons) - Min. efficiency 11.3 EER/13.2 SEER/12.0 HSPF"},{"$f":"'PSD Summary'!C27","v":0},{"$f":"'PSD Summary'!D27","v":0},{"$f":"IF('PSD Summary'!P27<>\"\",'PSD Summary'!P27,\"\")","v":""},{"$f":"IF('PSD Summary'!B27<> \"\",'PSD Summary'!B27,\"\")","v":"Heat Pump (5.42 - 11.24 Tons) - Min. efficiency 11.3 EER/13.2 SEER/12.0 HSPF"},{"$f":"IF('Project Information'!$CP$29=\"Pre-Installation\",\"Recommended\",IF('Project Information'!$CP$29=\"Post-Installation\", \"Completed\", \"\"))","v":""},null,{"$f":"'PSD Summary'!G27","v":""}]
[null,null,"ImprovementSavings"]
[null,null,"Fuel","Heating (kBtu/yr)","Cooling (kBtu/yr)","Lighting (kBtu/yr)","Hot Water (kBtu/yr)","Appliance (kBtu/yr)","Other (kBtu/yr)","AnnualTotal(kBtu/yr)","Demand","AnnualCost"]
[{"$f":"IF('PSD Summary'!E27<>\"\",\"ImprovementSavings\",\"\")","v":""},null,"Electricity",null,null,null,null,null,null,{"$f":"'PSD Summary'!E27*GECO_ELEC_RATIO","v":{"$error":"#VALUE!"}},{"$f":"'PSD Summary'!F27","v":""},{"$f":"'PSD Summary'!G27","v":""}]
[null,null,"ImprovementAttribute"]
[null,null,"AttributeName","Value"]
[{"$f":"IF('PSD Summary'!J27<>\"\",\"ImprovementAttributes\",\"\")","v":""},null,"ENO_Size",{"$f":"'PSD Summary'!J27","v":0}]
[{"$f":"IF('PSD Summary'!K27<>\"\",\"ImprovementAttributes\",\"\")","v":""},null,"ENO_EfficiencyLevel",{"$f":"'PSD Summary'!K27","v":0}]
[{"$f":"IF('PSD Summary'!L27<>\"\",\"ImprovementAttributes\",\"\")","v":""},null,"ENO_UsefulLife",{"$f":"'PSD Summary'!L27","v":0}]
[{"$f":"IF('PSD Summary'!M27<>\"\",\"ImprovementAttributes\",\"\")","v":""},null,"ENO_SerialNumber",{"$f":"'PSD Summary'!M27","v":0}]
[{"$f":"IF('PSD Summary'!N27<>\"\",\"ImprovementAttributes\",\"\")","v":""},null,"ENO_Age",{"$f":"'PSD Summary'!N27","v":0}]
[{"$f":"IF('PSD Summary'!O27<>\"\",\"ImprovementAttributes\",\"\")","v":""},null,"ENO_EquipmentReplaced",{"$f":"'PSD Summary'!O27","v":0}]
[{"$f":"IFERROR(IF('PSD Summary'!I27<>\"\",\"ImprovementAttributes\",\"\"),\"\")","v":""},null,"ENO_SimplePayback",{"$f":"IFERROR('PSD Summary'!I27, 0)","v":""}]
[null,{"$f":"'PSD Summary'!B28","v":"Heat Pump (11.25 - 19.9 Tons) - Min. Efficiency 10.9 EER/12.5 SEER/12.0 HSPF"},{"$f":"C268+1","v":19}]
[null,"ImprovementType","ImprovementCost","ImprovementQuantity","Description","AutogeneratedName","Status","TreatmentWorkscope","Savings( $/yr )"]
[{"$f":"IF('PSD Summary'!D28<>0,\"Improvements\",\"\")","v":""},{"$f":"'PSD Summary'!B28","v":"Heat Pump (11.25 - 19.9 Tons) - Min. Efficiency 10.9 EER/12.5 SEER/12.0 HSPF"},{"$f":"'PSD Summary'!C28","v":0},{"$f":"'PSD Summary'!D28","v":0},{"$f":"IF('PSD Summary'!P28<>\"\",'PSD Summary'!P28,\"\")","v":""},{"$f":"IF('PSD Summary'!B28<> \"\",'PSD Summary'!B28,\"\")","v":"Heat Pump (11.25 - 19.9 Tons) - Min. Efficiency 10.9 EER/12.5 SEER/12.0 HSPF"},{"$f":"IF('Project Information'!$CP$29=\"Pre-Installation\",\"Recommended\",IF('Project Information'!$CP$29=\"Post-Installation\", \"Completed\", \"\"))","v":""},null,{"$f":"'PSD Summary'!G28","v":""}]
[null,null,"ImprovementSavings"]
[null,null,"Fuel","Heating (kBtu/yr)","Cooling (kBtu/yr)","Lighting (kBtu/yr)","Hot Water (kBtu/yr)","Appliance (kBtu/yr)","Other (kBtu/yr)","AnnualTotal(kBtu/yr)","Demand","AnnualCost"]
[{"$f":"IF('PSD Summary'!E28<>\"\",\"ImprovementSavings\",\"\")","v":""},null,"Electricity",null,null,null,null,null,null,{"$f":"'PSD Summary'!E28*GECO_ELEC_RATIO","v":{"$error":"#VALUE!"}},{"$f":"'PSD Summary'!F28","v":""},{"$f":"'PSD Summary'!G28","v":""}]
[null,null,"ImprovementAttribute"]
[null,null,"AttributeName","Value"]
[{"$f":"IF('PSD Summary'!J28<>\"\",\"ImprovementAttributes\",\"\")","v":""},null,"ENO_Size",{"$f":"'PSD Summary'!J28","v":0}]
[{"$f":"IF('PSD Summary'!K28<>\"\",\"ImprovementAttributes\",\"\")","v":""},null,"ENO_EfficiencyLevel",{"$f":"'PSD Summary'!K28","v":0}]
[{"$f":"IF('PSD Summary'!L28<>\"\",\"ImprovementAttributes\",\"\")","v":""},null,"ENO_UsefulLife",{"$f":"'PSD Summary'!L28","v":0}]
[{"$f":"IF('PSD Summary'!M28<>\"\",\"ImprovementAttributes\",\"\")","v":""},null,"ENO_SerialNumber",{"$f":"'PSD Summary'!M28","v":0}]
[{"$f":"IF('PSD Summary'!N28<>\"\",\"ImprovementAttributes\",\"\")","v":""},null,"ENO_Age",{"$f":"'PSD Summary'!N28","v":0}]
[{"$f":"IF('PSD Summary'!O28<>\"\",\"ImprovementAttributes\",\"\")","v":""},null,"ENO_EquipmentReplaced",{"$f":"'PSD Summary'!O28","v":0}]
[{"$f":"IFERROR(IF('PSD Summary'!I28<>\"\",\"ImprovementAttributes\",\"\"),\"\")","v":""},null,"ENO_SimplePayback",{"$f":"IFERROR('PSD Summary'!I28, 0)","v":""}]
[null,{"$f":"'PSD Summary'!B29","v":"Heat Pump (>= 20 Tons) - Min. efficiency 10.3 EER/11.6 SEER/12.0 HSPF"},{"$f":"C283+1","v":20}]
[null,"ImprovementType","ImprovementCost","ImprovementQuantity","Description","AutogeneratedName","Status","TreatmentWorkscope","Savings( $/yr )"]
[{"$f":"IF('PSD Summary'!D29<>0,\"Improvements\",\"\")","v":""},{"$f":"'PSD Summary'!B29","v":"Heat Pump (>= 20 Tons) - Min. efficiency 10.3 EER/11.6 SEER/12.0 HSPF"},{"$f":"'PSD Summary'!C29","v":0},{"$f":"'PSD Summary'!D29","v":0},{"$f":"IF('PSD Summary'!P29<>\"\",'PSD Summary'!P29,\"\")","v":""},{"$f":"IF('PSD Summary'!B29<> \"\",'PSD Summary'!B29,\"\")","v":"Heat Pump (>= 20 Tons) - Min. efficiency 10.3 EER/11.6 SEER/12.0 HSPF"},{"$f":"IF('Project Information'!$CP$29=\"Pre-Installation\",\"Recommended\",IF('Project Information'!$CP$29=\"Post-Installation\", \"Completed\", \"\"))","v":""},null,{"$f":"'PSD Summary'!G29","v":""}]
[null,null,"ImprovementSavings"]
[null,null,"Fuel","Heating (kBtu/yr)","Cooling (kBtu/yr)","Lighting (kBtu/yr)","Hot Water (kBtu/yr)","Appliance (kBtu/yr)","Other (kBtu/yr)","AnnualTotal(kBtu/yr)","Demand","AnnualCost"]
[{"$f":"IF('PSD Summary'!E29<>\"\",\"ImprovementSavings\",\"\")","v":""},null,"Electricity",null,null,null,null,null,null,{"$f":"'PSD Summary'!E29*GECO_ELEC_RATIO","v":{"$error":"#VALUE!"}},{"$f":"'PSD Summary'!F29","v":""},{"$f":"'PSD Summary'!G29","v":""}]
[null,null,"ImprovementAttribute"]
[null,null,"AttributeName","Value"]
[{"$f":"IF('PSD Summary'!J29<>\"\",\"ImprovementAttributes\",\"\")","v":""},null,"ENO_Size",{"$f":"'PSD Summary'!J29","v":0}]
[{"$f":"IF('PSD Summary'!K29<>\"\",\"ImprovementAttributes\",\"\")","v":""},null,"ENO_EfficiencyLevel",{"$f":"'PSD Summary'!K29","v":0}]
[{"$f":"IF('PSD Summary'!L29<>\"\",\"ImprovementAttributes\",\"\")","v":""},null,"ENO_UsefulLife",{"$f":"'PSD Summary'!L29","v":0}]
[{"$f":"IF('PSD Summary'!M29<>\"\",\"ImprovementAttributes\",\"\")","v":""},null,"ENO_SerialNumber",{"$f":"'PSD Summary'!M29","v":0}]
[{"$f":"IF('PSD Summary'!N29<>\"\",\"ImprovementAttributes\",\"\")","v":""},null,"ENO_Age",{"$f":"'PSD Summary'!N29","v":0}]
[{"$f":"IF('PSD Summary'!O29<>\"\",\"ImprovementAttributes\",\"\")","v":""},null,"ENO_EquipmentReplaced",{"$f":"'PSD Summary'!O29","v":0}]
[{"$f":"IFERROR(IF('PSD Summary'!I29<>\"\",\"ImprovementAttributes\",\"\"),\"\")","v":""},null,"ENO_SimplePayback",{"$f":"IFERROR('PSD Summary'!I29, 0)","v":""}]
[null,{"$f":"'PSD Summary'!B30","v":"Guest Room Energy Management Controls - Must Be Installed in All Guestrooms"},{"$f":"C298+1","v":21}]
[null,"ImprovementType","ImprovementCost","ImprovementQuantity","Description","AutogeneratedName","Status","TreatmentWorkscope","Savings( $/yr )"]
[{"$f":"IF('PSD Summary'!D30<>0,\"Improvements\",\"\")","v":""},{"$f":"'PSD Summary'!B30","v":"Guest Room Energy Management Controls - Must Be Installed in All Guestrooms"},{"$f":"'PSD Summary'!C30","v":0},{"$f":"'PSD Summary'!D30","v":0},{"$f":"IF('PSD Summary'!P30<>\"\",'PSD Summary'!P30,\"\")","v":""},{"$f":"IF('PSD Summary'!B30<> \"\",'PSD Summary'!B30,\"\")","v":"Guest Room Energy Management Controls - Must Be Installed in All Guestrooms"},{"$f":"IF('Project Information'!$CP$29=\"Pre-Installation\",\"Recommended\",IF('Project Information'!$CP$29=\"Post-Installation\", \"Completed\", \"\"))","v":""},null,{"$f":"'PSD Summary'!G30","v":""}]
[null,null,"ImprovementSavings"]
[null,null,"Fuel","Heating (kBtu/yr)","Cooling (kBtu/yr)","Lighting (kBtu/yr)","Hot Water (kBtu/yr)","Appliance (kBtu/yr)","Other (kBtu/yr)","AnnualTotal(kBtu/yr)","Demand","AnnualCost"]
[{"$f":"IF('PSD Summary'!E30<>\"\",\"ImprovementSavings\",\"\")","v":""},null,"Electricity",null,null,null,null,null,null,{"$f":"'PSD Summary'!E30*GECO_ELEC_RATIO","v":{"$error":"#VALUE!"}},{"$f":"'PSD Summary'!F30","v":0},{"$f":"'PSD Summary'!G30","v":""}]
[null,null,"ImprovementAttribute"]
[null,null,"AttributeName","Value"]
[{"$f":"IF('PSD Summary'!J30<>\"\",\"ImprovementAttributes\",\"\")","v":""},null,"ENO_Size",{"$f":"'PSD Summary'!J30","v":0}]
[{"$f":"IF('PSD Summary'!K30<>\"\",\"ImprovementAttributes\",\"\")","v":""},null,"ENO_EfficiencyLevel",{"$f":"'PSD Summary'!K30","v":0}]
[{"$f":"IF('PSD Summary'!L30<>\"\",\"ImprovementAttributes\",\"\")","v":""},null,"ENO_UsefulLife",{"$f":"'PSD Summary'!L30","v":0}]
[{"$f":"IF('PSD Summary'!M30<>\"\",\"ImprovementAttributes\",\"\")","v":""},null,"ENO_SerialNumber",{"$f":"'PSD Summary'!M30","v":0}]
[{"$f":"IF('PSD Summary'!N30<>\"\",\"ImprovementAttributes\",\"\")","v":""},null,"ENO_Age",{"$f":"'PSD Summary'!N30","v":0}]
[{"$f":"IF('PSD Summary'!O30<>\"\",\"ImprovementAttributes\",\"\")","v":""},null,"ENO_EquipmentReplaced",{"$f":"'PSD Summary'!O30","v":0}]
[{"$f":"IFERROR(IF('PSD Summary'!I30<>\"\",\"ImprovementAttributes\",\"\"),\"\")","v":""},null,"ENO_SimplePayback",{"$f":"IFERROR('PSD Summary'!I30, 0)","v":""}]
[null,{"$f":"'PSD Summary'!B31","v":"ECM Motors (Refrigeration)"},{"$f":"C313+1","v":22}]
[null,"ImprovementType","ImprovementCost","ImprovementQuantity","Description","AutogeneratedName","Status","TreatmentWorkscope","Savings( $/yr )"]
[{"$f":"IF('PSD Summary'!D31<>0,\"Improvements\",\"\")","v":""},{"$f":"'PSD Summary'!B31","v":"ECM Motors (Refrigeration)"},{"$f":"'PSD Summary'!C31","v":0},{"$f":"'PSD Summary'!D31","v":0},{"$f":"IF('PSD Summary'!P31<>\"\",'PSD Summary'!P31,\"\")","v":""},{"$f":"IF('PSD Summary'!B31<> \"\",'PSD Summary'!B31,\"\")","v":"ECM Motors (Refrigeration)"},{"$f":"IF('Project Information'!$CP$29=\"Pre-Installation\",\"Recommended\",IF('Project Information'!$CP$29=\"Post-Installation\", \"Completed\", \"\"))","v":""},null,{"$f":"'PSD Summary'!G31","v":""}]
[null,null,"ImprovementSavings"]
[null,null,"Fuel","Heating (kBtu/yr)","Cooling (kBtu/yr)","Lighting (kBtu/yr)","Hot Water (kBtu/yr)","Appliance (kBtu/yr)","Other (kBtu/yr)","AnnualTotal(kBtu/yr)","Demand","AnnualCost"]
[{"$f":"IF('PSD Summary'!E31<>\"\",\"ImprovementSavings\",\"\")","v":""},null,"Electricity",null,null,null,null,null,null,{"$f":"'PSD Summary'!E31*GECO_ELEC_RATIO","v":{"$error":"#VALUE!"}},{"$f":"'PSD Summary'!F31","v":""},{"$f":"'PSD Summary'!G31","v":""}]
[null,null,"ImprovementAttribute"]
[null,null,"AttributeName","Value"]
[{"$f":"IF('PSD Summary'!J31<>\"\",\"ImprovementAttributes\",\"\")","v":""},null,"ENO_Size",{"$f":"'PSD Summary'!J31","v":0}]
[{"$f":"IF('PSD Summary'!K31<>\"\",\"ImprovementAttributes\",\"\")","v":""},null,"ENO_EfficiencyLevel",{"$f":"'PSD Summary'!K31","v":0}]
[{"$f":"IF('PSD Summary'!L31<>\"\",\"ImprovementAttributes\",\"\")","v":""},null,"ENO_UsefulLife",{"$f":"'PSD Summary'!L31","v":0}]
[{"$f":"IF('PSD Summary'!M31<>\"\",\"ImprovementAttributes\",\"\")","v":""},null,"ENO_SerialNumber",{"$f":"'PSD Summary'!M31","v":0}]
[{"$f":"IF('PSD Summary'!N31<>\"\",\"ImprovementAttributes\",\"\")","v":""},null,"ENO_Age",{"$f":"'PSD Summary'!N31","v":0}]
[{"$f":"IF('PSD Summary'!O31<>\"\",\"ImprovementAttributes\",\"\")","v":""},null,"ENO_EquipmentReplaced",{"$f":"'PSD Summary'!O31","v":0}]
[{"$f":"IFERROR(IF('PSD Summary'!I31<>\"\",\"ImprovementAttributes\",\"\"),\"\")","v":""},null,"ENO_SimplePayback",{"$f":"IFERROR('PSD Summary'!I31, 0)","v":""}]
[null,{"$f":"'PSD Summary'!B32","v":"Evaporator Fan Controllers (Refrigeration)"},{"$f":"C328+1","v":23}]
[null,"ImprovementType","ImprovementCost","ImprovementQuantity","Description","AutogeneratedName","Status","TreatmentWorkscope","Savings( $/yr )"]
[{"$f":"IF('PSD Summary'!D32<>0,\"Improvements\",\"\")","v":""},{"$f":"'PSD Summary'!B32","v":"Evaporator Fan Controllers (Refrigeration)"},{"$f":"'PSD Summary'!C32","v":0},{"$f":"'PSD Summary'!D32","v":0},{"$f":"IF('PSD Summary'!P32<>\"\",'PSD Summary'!P32,\"\")","v":""},{"$f":"IF('PSD Summary'!B32<> \"\",'PSD Summary'!B32,\"\")","v":"Evaporator Fan Controllers (Refrigeration)"},{"$f":"IF('Project Information'!$CP$29=\"Pre-Installation\",\"Recommended\",IF('Project Information'!$CP$29=\"Post-Installation\", \"Completed\", \"\"))","v":""},null,{"$f":"'PSD Summary'!G32","v":""}]
[null,null,"ImprovementSavings"]
[null,null,"Fuel","Heating (kBtu/yr)","Cooling (kBtu/yr)","Lighting (kBtu/yr)","Hot Water (kBtu/yr)","Appliance (kBtu/yr)","Other (kBtu/yr)","AnnualTotal(kBtu/yr)","Demand","AnnualCost"]
[{"$f":"IF('PSD Summary'!E32<>\"\",\"ImprovementSavings\",\"\")","v":""},null,"Electricity",null,null,null,null,null,null,{"$f":"'PSD Summary'!E32*GECO_ELEC_RATIO","v":{"$error":"#VALUE!"}},{"$f":"'PSD Summary'!F32","v":""},{"$f":"'PSD Summary'!G32","v":""}]
[null,null,"ImprovementAttribute"]
[null,null,"AttributeName","Value"]
[{"$f":"IF('PSD Summary'!J32<>\"\",\"ImprovementAttributes\",\"\")","v":""},null,"ENO_Size",{"$f":"'PSD Summary'!J32","v":0}]
[{"$f":"IF('PSD Summary'!K32<>\"\",\"ImprovementAttributes\",\"\")","v":""},null,"ENO_EfficiencyLevel",{"$f":"'PSD Summary'!K32","v":0}]
[{"$f":"IF('PSD Summary'!L32<>\"\",\"ImprovementAttributes\",\"\")","v":""},null,"ENO_UsefulLife",{"$f":"'PSD Summary'!L32","v":0}]
[{"$f":"IF('PSD Summary'!M32<>\"\",\"ImprovementAttributes\",\"\")","v":""},null,"ENO_SerialNumber",{"$f":"'PSD Summary'!M32","v":0}]
[{"$f":"IF('PSD Summary'!N32<>\"\",\"ImprovementAttributes\",\"\")","v":""},null,"ENO_Age",{"$f":"'PSD Summary'!N32","v":0}]
[{"$f":"IF('PSD Summary'!O32<>\"\",\"ImprovementAttributes\",\"\")","v":""},null,"ENO_EquipmentReplaced",{"$f":"'PSD Summary'!O32","v":0}]
[{"$f":"IFERROR(IF('PSD Summary'!I32<>\"\",\"ImprovementAttributes\",\"\"),\"\")","v":""},null,"ENO_SimplePayback",{"$f":"IFERROR('PSD Summary'!I32, 0)","v":""}]
[null,{"$f":"'PSD Summary'!B33","v":"Anti-Sweat Heater Controls (Refrigeration)"},{"$f":"C343+1","v":24}]
[null,"ImprovementType","ImprovementCost","ImprovementQuantity","Description","AutogeneratedName","Status","TreatmentWorkscope","Savings( $/yr )"]
[{"$f":"IF('PSD Summary'!D33<>0,\"Improvements\",\"\")","v":""},{"$f":"'PSD Summary'!B33","v":"Anti-Sweat Heater Controls (Refrigeration)"},{"$f":"'PSD Summary'!C33","v":0},{"$f":"'PSD Summary'!D33","v":0},{"$f":"IF('PSD Summary'!P33<>\"\",'PSD Summary'!P33,\"\")","v":""},{"$f":"IF('PSD Summary'!B33<> \"\",'PSD Summary'!B33,\"\")","v":"Anti-Sweat Heater Controls (Refrigeration)"},{"$f":"IF('Project Information'!$CP$29=\"Pre-Installation\",\"Recommended\",IF('Project Information'!$CP$29=\"Post-Installation\", \"Completed\", \"\"))","v":""},null,{"$f":"'PSD Summary'!G33","v":""}]
[null,null,"ImprovementSavings"]
[null,null,"Fuel","Heating (kBtu/yr)","Cooling (kBtu/yr)","Lighting (kBtu/yr)","Hot Water (kBtu/yr)","Appliance (kBtu/yr)","Other (kBtu/yr)","AnnualTotal(kBtu/yr)","Demand","AnnualCost"]
[{"$f":"IF('PSD Summary'!E33<>\"\",\"ImprovementSavings\",\"\")","v":""},null,"Electricity",null,null,null,null,null,null,{"$f":"'PSD Summary'!E33*GECO_ELEC_RATIO","v":{"$error":"#VALUE!"}},{"$f":"'PSD Summary'!F33","v":""},{"$f":"'PSD Summary'!G33","v":""}]
[null,null,"ImprovementAttribute"]
[null,null,"AttributeName","Value"]
[{"$f":"IF('PSD Summary'!J33<>\"\",\"ImprovementAttributes\",\"\")","v":""},null,"ENO_Size",{"$f":"'PSD Summary'!J33","v":0}]
[{"$f":"IF('PSD Summary'!K33<>\"\",\"ImprovementAttributes\",\"\")","v":""},null,"ENO_EfficiencyLevel",{"$f":"'PSD Summary'!K33","v":0}]
[{"$f":"IF('PSD Summary'!L33<>\"\",\"ImprovementAttributes\",\"\")","v":""},null,"ENO_UsefulLife",{"$f":"'PSD Summary'!L33","v":0}]
[{"$f":"IF('PSD Summary'!M33<>\"\",\"ImprovementAttributes\",\"\")","v":""},null,"ENO_SerialNumber",{"$f":"'PSD Summary'!M33","v":0}]
[{"$f":"IF('PSD Summary'!N33<>\"\",\"ImprovementAttributes\",\"\")","v":""},null,"ENO_Age",{"$f":"'PSD Summary'!N33","v":0}]
[{"$f":"IF('PSD Summary'!O33<>\"\",\"ImprovementAttributes\",\"\")","v":""},null,"ENO_EquipmentReplaced",{"$f":"'PSD Summary'!O33","v":0}]
[{"$f":"IFERROR(IF('PSD Summary'!I33<>\"\",\"ImprovementAttributes\",\"\"),\"\")","v":""},null,"ENO_SimplePayback",{"$f":"IFERROR('PSD Summary'!I33, 0)","v":""}]
[null,{"$f":"'PSD Summary'!B34","v":"Door Gaskets (Refrigeration)"},{"$f":"C358+1","v":25}]
[null,"ImprovementType","ImprovementCost","ImprovementQuantity","Description","AutogeneratedName","Status","TreatmentWorkscope","Savings( $/yr )"]
[{"$f":"IF('PSD Summary'!D34<>0,\"Improvements\",\"\")","v":""},{"$f":"'PSD Summary'!B34","v":"Door Gaskets (Refrigeration)"},{"$f":"'PSD Summary'!C34","v":0},{"$f":"'PSD Summary'!D34","v":0},{"$f":"IF('PSD Summary'!P34<>\"\",'PSD Summary'!P34,\"\")","v":""},{"$f":"IF('PSD Summary'!B34<> \"\",'PSD Summary'!B34,\"\")","v":"Door Gaskets (Refrigeration)"},{"$f":"IF('Project Information'!$CP$29=\"Pre-Installation\",\"Recommended\",IF('Project Information'!$CP$29=\"Post-Installation\", \"Completed\", \"\"))","v":""},null,{"$f":"'PSD Summary'!G34","v":""}]
[null,null,"ImprovementSavings"]
[null,null,"Fuel","Heating (kBtu/yr)","Cooling (kBtu/yr)","Lighting (kBtu/yr)","Hot Water (kBtu/yr)","Appliance (kBtu/yr)","Other (kBtu/yr)","AnnualTotal(kBtu/yr)","Demand","AnnualCost"]
[{"$f":"IF('PSD Summary'!E34<>\"\",\"ImprovementSavings\",\"\")","v":""},null,"Electricity",null,null,null,null,null,null,{"$f":"'PSD Summary'!E34*GECO_ELEC_RATIO","v":{"$error":"#VALUE!"}},{"$f":"'PSD Summary'!F34","v":""},{"$f":"'PSD Summary'!G34","v":""}]
[null,null,"ImprovementAttribute"]
[null,null,"AttributeName","Value"]
[{"$f":"IF('PSD Summary'!J34<>\"\",\"ImprovementAttributes\",\"\")","v":""},null,"ENO_Size",{"$f":"'PSD Summary'!J34","v":0}]
[{"$f":"IF('PSD Summary'!K34<>\"\",\"ImprovementAttributes\",\"\")","v":""},null,"ENO_EfficiencyLevel",{"$f":"'PSD Summary'!K34","v":0}]
[{"$f":"IF('PSD Summary'!L34<>\"\",\"ImprovementAttributes\",\"\")","v":""},null,"ENO_UsefulLife",{"$f":"'PSD Summary'!L34","v":0}]
[{"$f":"IF('PSD Summary'!M34<>\"\",\"ImprovementAttributes\",\"\")","v":""},null,"ENO_SerialNumber",{"$f":"'PSD Summary'!M34","v":0}]
[{"$f":"IF('PSD Summary'!N34<>\"\",\"ImprovementAttributes\",\"\")","v":""},null,"ENO_Age",{"$f":"'PSD Summary'!N34","v":0}]
[{"$f":"IF('PSD Summary'!O34<>\"\",\"ImprovementAttributes\",\"\")","v":""},null,"ENO_EquipmentReplaced",{"$f":"'PSD Summary'!O34","v":0}]
[{"$f":"IFERROR(IF('PSD Summary'!I34<>\"\",\"ImprovementAttributes\",\"\"),\"\")","v":""},null,"ENO_SimplePayback",{"$f":"IFERROR('PSD Summary'!I34, 0)","v":""}]
[null,{"$f":"'PSD Summary'!B35","v":"Low-Flow Sink Aerators - 1.5 GPM or Less - Only for Facilities with Electrically Heated Water "},{"$f":"C373+1","v":26}]
[null,"ImprovementType","ImprovementCost","ImprovementQuantity","Description","AutogeneratedName","Status","TreatmentWorkscope","Savings( $/yr )"]
[{"$f":"IF('PSD Summary'!D35<>0,\"Improvements\",\"\")","v":""},{"$f":"'PSD Summary'!B35","v":"Low-Flow Sink Aerators - 1.5 GPM or Less - Only for Facilities with Electrically Heated Water "},{"$f":"'PSD Summary'!C35","v":0},{"$f":"'PSD Summary'!D35","v":0},{"$f":"IF('PSD Summary'!P35<>\"\",'PSD Summary'!P35,\"\")","v":""},{"$f":"IF('PSD Summary'!B35<> \"\",'PSD Summary'!B35,\"\")","v":"Low-Flow Sink Aerators - 1.5 GPM or Less - Only for Facilities with Electrically Heated Water "},{"$f":"IF('Project Information'!$CP$29=\"Pre-Installation\",\"Recommended\",IF('Project Information'!$CP$29=\"Post-Installation\", \"Completed\", \"\"))","v":""},null,{"$f":"'PSD Summary'!G35","v":""}]
[null,null,"ImprovementSavings"]
[null,null,"Fuel","Heating (kBtu/yr)","Cooling (kBtu/yr)","Lighting (kBtu/yr)","Hot Water (kBtu/yr)","Appliance (kBtu/yr)","Other (kBtu/yr)","AnnualTotal(kBtu/yr)","Demand","AnnualCost"]
[{"$f":"IF('PSD Summary'!E35<>\"\",\"ImprovementSavings\",\"\")","v":""},null,"Electricity",null,null,null,null,null,null,{"$f":"'PSD Summary'!E35*GECO_ELEC_RATIO","v":{"$error":"#VALUE!"}},{"$f":"'PSD Summary'!F35","v":""},{"$f":"'PSD Summary'!G35","v":""}]
[null,null,"ImprovementAttribute"]
[null,null,"AttributeName","Value"]
[{"$f":"IF('PSD Summary'!J35<>\"\",\"ImprovementAttributes\",\"\")","v":""},null,"ENO_Size",{"$f":"'PSD Summary'!J35","v":0}]
[{"$f":"IF('PSD Summary'!K35<>\"\",\"ImprovementAttributes\",\"\")","v":""},null,"ENO_EfficiencyLevel",{"$f":"'PSD Summary'!K35","v":0}]
[{"$f":"IF('PSD Summary'!L35<>\"\",\"ImprovementAttributes\",\"\")","v":""},null,"ENO_UsefulLife",{"$f":"'PSD Summary'!L35","v":0}]
[{"$f":"IF('PSD Summary'!M35<>\"\",\"ImprovementAttributes\",\"\")","v":""},null,"ENO_SerialNumber",{"$f":"'PSD Summary'!M35","v":0}]
[{"$f":"IF('PSD Summary'!N35<>\"\",\"ImprovementAttributes\",\"\")","v":""},null,"ENO_Age",{"$f":"'PSD Summary'!N35","v":0}]
[{"$f":"IF('PSD Summary'!O35<>\"\",\"ImprovementAttributes\",\"\")","v":""},null,"ENO_EquipmentReplaced",{"$f":"'PSD Summary'!O35","v":0}]
[{"$f":"IFERROR(IF('PSD Summary'!I35<>\"\",\"ImprovementAttributes\",\"\"),\"\")","v":""},null,"ENO_SimplePayback",{"$f":"IFERROR('PSD Summary'!I35, 0)","v":""}]
[null,{"$f":"'PSD Summary'!B36","v":"Pre-Rinse Spray Valves - 1.6 GPM or Less- Only for Facilities with Electrically Heated Water"},{"$f":"C388+1","v":27}]
[null,"ImprovementType","ImprovementCost","ImprovementQuantity","Description","AutogeneratedName","Status","TreatmentWorkscope","Savings( $/yr )"]
[{"$f":"IF('PSD Summary'!D36<>0,\"Improvements\",\"\")","v":""},{"$f":"'PSD Summary'!B36","v":"Pre-Rinse Spray Valves - 1.6 GPM or Less- Only for Facilities with Electrically Heated Water"},{"$f":"'PSD Summary'!C36","v":0},{"$f":"'PSD Summary'!D36","v":0},{"$f":"IF('PSD Summary'!P36<>\"\",'PSD Summary'!P36,\"\")","v":""},{"$f":"IF('PSD Summary'!B36<> \"\",'PSD Summary'!B36,\"\")","v":"Pre-Rinse Spray Valves - 1.6 GPM or Less- Only for Facilities with Electrically Heated Water"},{"$f":"IF('Project Information'!$CP$29=\"Pre-Installation\",\"Recommended\",IF('Project Information'!$CP$29=\"Post-Installation\", \"Completed\", \"\"))","v":""},null,{"$f":"'PSD Summary'!G36","v":""}]
[null,null,"ImprovementSavings"]
[null,null,"Fuel","Heating (kBtu/yr)","Cooling (kBtu/yr)","Lighting (kBtu/yr)","Hot Water (kBtu/yr)","Appliance (kBtu/yr)","Other (kBtu/yr)","AnnualTotal(kBtu/yr)","Demand","AnnualCost"]
[{"$f":"IF('PSD Summary'!E36<>\"\",\"ImprovementSavings\",\"\")","v":""},null,"Electricity",null,null,null,null,null,null,{"$f":"'PSD Summary'!E36*GECO_ELEC_RATIO","v":{"$error":"#VALUE!"}},{"$f":"'PSD Summary'!F36","v":""},{"$f":"'PSD Summary'!G36","v":""}]
[null,null,"ImprovementAttribute"]
[null,null,"AttributeName","Value"]
[{"$f":"IF('PSD Summary'!J36<>\"\",\"ImprovementAttributes\",\"\")","v":""},null,"ENO_Size",{"$f":"'PSD Summary'!J36","v":0}]
[{"$f":"IF('PSD Summary'!K36<>\"\",\"ImprovementAttributes\",\"\")","v":""},null,"ENO_EfficiencyLevel",{"$f":"'PSD Summary'!K36","v":0}]
[{"$f":"IF('PSD Summary'!L36<>\"\",\"ImprovementAttributes\",\"\")","v":""},null,"ENO_UsefulLife",{"$f":"'PSD Summary'!L36","v":0}]
[{"$f":"IF('PSD Summary'!M36<>\"\",\"ImprovementAttributes\",\"\")","v":""},null,"ENO_SerialNumber",{"$f":"'PSD Summary'!M36","v":0}]
[{"$f":"IF('PSD Summary'!N36<>\"\",\"ImprovementAttributes\",\"\")","v":""},null,"ENO_Age",{"$f":"'PSD Summary'!N36","v":0}]
[{"$f":"IF('PSD Summary'!O36<>\"\",\"ImprovementAttributes\",\"\")","v":""},null,"ENO_EquipmentReplaced",{"$f":"'PSD Summary'!O36","v":0}]
[{"$f":"IFERROR(IF('PSD Summary'!I36<>\"\",\"ImprovementAttributes\",\"\"),\"\")","v":""},null,"ENO_SimplePayback",{"$f":"IFERROR('PSD Summary'!I36, 0)","v":""}]
[null,{"$f":"'PSD Summary'!B37","v":"ENERGY STAR Ice Machine"},{"$f":"C403+1","v":28}]
[null,"ImprovementType","ImprovementCost","ImprovementQuantity","Description","AutogeneratedName","Status","TreatmentWorkscope","Savings( $/yr )"]
[{"$f":"IF('PSD Summary'!D37<>0,\"Improvements\",\"\")","v":""},{"$f":"'PSD Summary'!B37","v":"ENERGY STAR Ice Machine"},{"$f":"'PSD Summary'!C37","v":0},{"$f":"'PSD Summary'!D37","v":0},{"$f":"IF('PSD Summary'!P37<>\"\",'PSD Summary'!P37,\"\")","v":""},{"$f":"IF('PSD Summary'!B37<> \"\",'PSD Summary'!B37,\"\")","v":"ENERGY STAR Ice Machine"},{"$f":"IF('Project Information'!$CP$29=\"Pre-Installation\",\"Recommended\",IF('Project Information'!$CP$29=\"Post-Installation\", \"Completed\", \"\"))","v":""},null,{"$f":"'PSD Summary'!G37","v":""}]
[null,null,"ImprovementSavings"]
[null,null,"Fuel","Heating (kBtu/yr)","Cooling (kBtu/yr)","Lighting (kBtu/yr)","Hot Water (kBtu/yr)","Appliance (kBtu/yr)","Other (kBtu/yr)","AnnualTotal(kBtu/yr)","Demand","AnnualCost"]
[{"$f":"IF('PSD Summary'!E37<>\"\",\"ImprovementSavings\",\"\")","v":""},null,"Electricity",null,null,null,null,null,null,{"$f":"'PSD Summary'!E37*GECO_ELEC_RATIO","v":{"$error":"#VALUE!"}},{"$f":"'PSD Summary'!F37","v":""},{"$f":"'PSD Summary'!G37","v":""}]
[null,null,"ImprovementAttribute"]
[null,null,"AttributeName","Value"]
[{"$f":"IF('PSD Summary'!J37<>\"\",\"ImprovementAttributes\",\"\")","v":""},null,"ENO_Size",{"$f":"'PSD Summary'!J37","v":0}]
[{"$f":"IF('PSD Summary'!K37<>\"\",\"ImprovementAttributes\",\"\")","v":""},null,"ENO_EfficiencyLevel",{"$f":"'PSD Summary'!K37","v":0}]
[{"$f":"IF('PSD Summary'!L37<>\"\",\"ImprovementAttributes\",\"\")","v":""},null,"ENO_UsefulLife",{"$f":"'PSD Summary'!L37","v":0}]
[{"$f":"IF('PSD Summary'!M37<>\"\",\"ImprovementAttributes\",\"\")","v":""},null,"ENO_SerialNumber",{"$f":"'PSD Summary'!M37","v":0}]
[{"$f":"IF('PSD Summary'!N37<>\"\",\"ImprovementAttributes\",\"\")","v":""},null,"ENO_Age",{"$f":"'PSD Summary'!N37","v":0}]
[{"$f":"IF('PSD Summary'!O37<>\"\",\"ImprovementAttributes\",\"\")","v":""},null,"ENO_EquipmentReplaced",{"$f":"'PSD Summary'!O37","v":0}]
[{"$f":"IFERROR(IF('PSD Summary'!I37<>\"\",\"ImprovementAttributes\",\"\"),\"\")","v":""},null,"ENO_SimplePayback",{"$f":"IFERROR('PSD Summary'!I37, 0)","v":""}]
[null,{"$f":"'PSD Summary'!B38","v":"ENERGY STAR Commercial Fryer (electric) - Min. efficiency of 80%"},{"$f":"C418+1","v":29}]
[null,"ImprovementType","ImprovementCost","ImprovementQuantity","Description","AutogeneratedName","Status","TreatmentWorkscope","Savings( $/yr )"]
[{"$f":"IF('PSD Summary'!D38<>0,\"Improvements\",\"\")","v":""},{"$f":"'PSD Summary'!B38","v":"ENERGY STAR Commercial Fryer (electric) - Min. efficiency of 80%"},{"$f":"'PSD Summary'!C38","v":0},{"$f":"'PSD Summary'!D38","v":0},{"$f":"IF('PSD Summary'!P38<>\"\",'PSD Summary'!P38,\"\")","v":""},{"$f":"IF('PSD Summary'!B38<> \"\",'PSD Summary'!B38,\"\")","v":"ENERGY STAR Commercial Fryer (electric) - Min. efficiency of 80%"},{"$f":"IF('Project Information'!$CP$29=\"Pre-Installation\",\"Recommended\",IF('Project Information'!$CP$29=\"Post-Installation\", \"Completed\", \"\"))","v":""},null,{"$f":"'PSD Summary'!G38","v":""}]
[null,null,"ImprovementSavings"]
[null,null,"Fuel","Heating (kBtu/yr)","Cooling (kBtu/yr)","Lighting (kBtu/yr)","Hot Water (kBtu/yr)","Appliance (kBtu/yr)","Other (kBtu/yr)","AnnualTotal(kBtu/yr)","Demand","AnnualCost"]
[{"$f":"IF('PSD Summary'!E38<>\"\",\"ImprovementSavings\",\"\")","v":""},null,"Electricity",null,null,null,null,null,null,{"$f":"'PSD Summary'!E38*GECO_ELEC_RATIO","v":{"$error":"#VALUE!"}},{"$f":"'PSD Summary'!F38","v":""},{"$f":"'PSD Summary'!G38","v":""}]
[null,null,"ImprovementAttribute"]
[null,null,"AttributeName","Value"]
[{"$f":"IF('PSD Summary'!J38<>\"\",\"ImprovementAttributes\",\"\")","v":""},null,"ENO_Size",{"$f":"'PSD Summary'!J38","v":0}]
[{"$f":"IF('PSD Summary'!K38<>\"\",\"ImprovementAttributes\",\"\")","v":""},null,"ENO_EfficiencyLevel",{"$f":"'PSD Summary'!K38","v":0}]
[{"$f":"IF('PSD Summary'!L38<>\"\",\"ImprovementAttributes\",\"\")","v":""},null,"ENO_UsefulLife",{"$f":"'PSD Summary'!L38","v":0}]
[{"$f":"IF('PSD Summary'!M38<>\"\",\"ImprovementAttributes\",\"\")","v":""},null,"ENO_SerialNumber",{"$f":"'PSD Summary'!M38","v":0}]
[{"$f":"IF('PSD Summary'!N38<>\"\",\"ImprovementAttributes\",\"\")","v":""},null,"ENO_Age",{"$f":"'PSD Summary'!N38","v":0}]
[{"$f":"IF('PSD Summary'!O38<>\"\",\"ImprovementAttributes\",\"\")","v":""},null,"ENO_EquipmentReplaced",{"$f":"'PSD Summary'!O38","v":0}]
[{"$f":"IFERROR(IF('PSD Summary'!I38<>\"\",\"ImprovementAttributes\",\"\"),\"\")","v":""},null,"ENO_SimplePayback",{"$f":"IFERROR('PSD Summary'!I38, 0)","v":""}]
[null,{"$f":"'PSD Summary'!B39","v":"ENERGY STAR Commercial Steam Cooker (electric) - Min. efficiency of 50%"},{"$f":"C433+1","v":30}]
[null,"ImprovementType","ImprovementCost","ImprovementQuantity","Description","AutogeneratedName","Status","TreatmentWorkscope","Savings( $/yr )"]
[{"$f":"IF('PSD Summary'!D39<>0,\"Improvements\",\"\")","v":""},{"$f":"'PSD Summary'!B39","v":"ENERGY STAR Commercial Steam Cooker (electric) - Min. efficiency of 50%"},{"$f":"'PSD Summary'!C39","v":0},{"$f":"'PSD Summary'!D39","v":0},{"$f":"IF('PSD Summary'!P39<>\"\",'PSD Summary'!P39,\"\")","v":""},{"$f":"IF('PSD Summary'!B39<> \"\",'PSD Summary'!B39,\"\")","v":"ENERGY STAR Commercial Steam Cooker (electric) - Min. efficiency of 50%"},{"$f":"IF('Project Information'!$CP$29=\"Pre-Installation\",\"Recommended\",IF('Project Information'!$CP$29=\"Post-Installation\", \"Completed\", \"\"))","v":""},null,{"$f":"'PSD Summary'!G39","v":""}]
[null,null,"ImprovementSavings"]
[null,null,"Fuel","Heating (kBtu/yr)","Cooling (kBtu/yr)","Lighting (kBtu/yr)","Hot Water (kBtu/yr)","Appliance (kBtu/yr)","Other (kBtu/yr)","AnnualTotal(kBtu/yr)","Demand","AnnualCost"]
[{"$f":"IF('PSD Summary'!E39<>\"\",\"ImprovementSavings\",\"\")","v":""},null,"Electricity",null,null,null,null,null,null,{"$f":"'PSD Summary'!E39*GECO_ELEC_RATIO","v":{"$error":"#VALUE!"}},{"$f":"'PSD Summary'!F39","v":""},{"$f":"'PSD Summary'!G39","v":""}]
[null,null,"ImprovementAttribute"]
[null,null,"AttributeName","Value"]
[{"$f":"IF('PSD Summary'!J39<>\"\",\"ImprovementAttributes\",\"\")","v":""},null,"ENO_Size",{"$f":"'PSD Summary'!J39","v":0}]
[{"$f":"IF('PSD Summary'!K39<>\"\",\"ImprovementAttributes\",\"\")","v":""},null,"ENO_EfficiencyLevel",{"$f":"'PSD Summary'!K39","v":0}]
[{"$f":"IF('PSD Summary'!L39<>\"\",\"ImprovementAttributes\",\"\")","v":""},null,"ENO_UsefulLife",{"$f":"'PSD Summary'!L39","v":0}]
[{"$f":"IF('PSD Summary'!M39<>\"\",\"ImprovementAttributes\",\"\")","v":""},null,"ENO_SerialNumber",{"$f":"'PSD Summary'!M39","v":0}]
[{"$f":"IF('PSD Summary'!N39<>\"\",\"ImprovementAttributes\",\"\")","v":""},null,"ENO_Age",{"$f":"'PSD Summary'!N39","v":0}]
[{"$f":"IF('PSD Summary'!O39<>\"\",\"ImprovementAttributes\",\"\")","v":""},null,"ENO_EquipmentReplaced",{"$f":"'PSD Summary'!O39","v":0}]
[{"$f":"IFERROR(IF('PSD Summary'!I39<>\"\",\"ImprovementAttributes\",\"\"),\"\")","v":""},null,"ENO_SimplePayback",{"$f":"IFERROR('PSD Summary'!I39, 0)","v":""}]
[null,{"$f":"'PSD Summary'!B40","v":"ENERGY STAR Commercial Convection Oven (electric) - Version 2.0 specification"},{"$f":"C448+1","v":31}]
[null,"ImprovementType","ImprovementCost","ImprovementQuantity","Description","AutogeneratedName","Status","TreatmentWorkscope","Savings( $/yr )"]
[{"$f":"IF('PSD Summary'!D40<>0,\"Improvements\",\"\")","v":""},{"$f":"'PSD Summary'!B40","v":"ENERGY STAR Commercial Convection Oven (electric) - Version 2.0 specification"},{"$f":"'PSD Summary'!C40","v":0},{"$f":"'PSD Summary'!D40","v":0},{"$f":"IF('PSD Summary'!P40<>\"\",'PSD Summary'!P40,\"\")","v":""},{"$f":"IF('PSD Summary'!B40<> \"\",'PSD Summary'!B40,\"\")","v":"ENERGY STAR Commercial Convection Oven (electric) - Version 2.0 specification"},{"$f":"IF('Project Information'!$CP$29=\"Pre-Installation\",\"Recommended\",IF('Project Information'!$CP$29=\"Post-Installation\", \"Completed\", \"\"))","v":""},null,{"$f":"'PSD Summary'!G40","v":""}]
[null,null,"ImprovementSavings"]
[null,null,"Fuel","Heating (kBtu/yr)","Cooling (kBtu/yr)","Lighting (kBtu/yr)","Hot Water (kBtu/yr)","Appliance (kBtu/yr)","Other (kBtu/yr)","AnnualTotal(kBtu/yr)","Demand","AnnualCost"]
[{"$f":"IF('PSD Summary'!E40<>\"\",\"ImprovementSavings\",\"\")","v":""},null,"Electricity",null,null,null,null,null,null,{"$f":"'PSD Summary'!E40*GECO_ELEC_RATIO","v":{"$error":"#VALUE!"}},{"$f":"'PSD Summary'!F40","v":""},{"$f":"'PSD Summary'!G40","v":""}]
[null,null,"ImprovementAttribute"]
[null,null,"AttributeName","Value"]
[{"$f":"IF('PSD Summary'!J40<>\"\",\"ImprovementAttributes\",\"\")","v":""},null,"ENO_Size",{"$f":"'PSD Summary'!J40","v":0}]
[{"$f":"IF('PSD Summary'!K40<>\"\",\"ImprovementAttributes\",\"\")","v":""},null,"ENO_EfficiencyLevel",{"$f":"'PSD Summary'!K40","v":0}]
[{"$f":"IF('PSD Summary'!L40<>\"\",\"ImprovementAttributes\",\"\")","v":""},null,"ENO_UsefulLife",{"$f":"'PSD Summary'!L40","v":0}]
[{"$f":"IF('PSD Summary'!M40<>\"\",\"ImprovementAttributes\",\"\")","v":""},null,"ENO_SerialNumber",{"$f":"'PSD Summary'!M40","v":0}]
[{"$f":"IF('PSD Summary'!N40<>\"\",\"ImprovementAttributes\",\"\")","v":""},null,"ENO_Age",{"$f":"'PSD Summary'!N40","v":0}]
[{"$f":"IF('PSD Summary'!O40<>\"\",\"ImprovementAttributes\",\"\")","v":""},null,"ENO_EquipmentReplaced",{"$f":"'PSD Summary'!O40","v":0}]
[{"$f":"IFERROR(IF('PSD Summary'!I40<>\"\",\"ImprovementAttributes\",\"\"),\"\")","v":""},null,"ENO_SimplePayback",{"$f":"IFERROR('PSD Summary'!I40, 0)","v":""}]
[null,{"$f":"'PSD Summary'!B41","v":"ENERGY STAR Commercial Griddle (electric) - Min. cooking efficiency of 65%"},{"$f":"C463+1","v":32}]
[null,"ImprovementType","ImprovementCost","ImprovementQuantity","Description","AutogeneratedName","Status","TreatmentWorkscope","Savings( $/yr )"]
[{"$f":"IF('PSD Summary'!D41<>0,\"Improvements\",\"\")","v":""},{"$f":"'PSD Summary'!B41","v":"ENERGY STAR Commercial Griddle (electric) - Min. cooking efficiency of 65%"},{"$f":"'PSD Summary'!C41","v":0},{"$f":"'PSD Summary'!D41","v":0},{"$f":"IF('PSD Summary'!P41<>\"\",'PSD Summary'!P41,\"\")","v":""},{"$f":"IF('PSD Summary'!B41<> \"\",'PSD Summary'!B41,\"\")","v":"ENERGY STAR Commercial Griddle (electric) - Min. cooking efficiency of 65%"},{"$f":"IF('Project Information'!$CP$29=\"Pre-Installation\",\"Recommended\",IF('Project Information'!$CP$29=\"Post-Installation\", \"Completed\", \"\"))","v":""},null,{"$f":"'PSD Summary'!G41","v":""}]
[null,null,"ImprovementSavings"]
[null,null,"Fuel","Heating (kBtu/yr)","Cooling (kBtu/yr)","Lighting (kBtu/yr)","Hot Water (kBtu/yr)","Appliance (kBtu/yr)","Other (kBtu/yr)","AnnualTotal(kBtu/yr)","Demand","AnnualCost"]
[{"$f":"IF('PSD Summary'!E41<>\"\",\"ImprovementSavings\",\"\")","v":""},null,"Electricity",null,null,null,null,null,null,{"$f":"'PSD Summary'!E41*GECO_ELEC_RATIO","v":{"$error":"#VALUE!"}},{"$f":"'PSD Summary'!F41","v":""},{"$f":"'PSD Summary'!G41","v":""}]
[null,null,"ImprovementAttribute"]
[null,null,"AttributeName","Value"]
[{"$f":"IF('PSD Summary'!J41<>\"\",\"ImprovementAttributes\",\"\")","v":""},null,"ENO_Size",{"$f":"'PSD Summary'!J41","v":0}]
[{"$f":"IF('PSD Summary'!K41<>\"\",\"ImprovementAttributes\",\"\")","v":""},null,"ENO_EfficiencyLevel",{"$f":"'PSD Summary'!K41","v":0}]
[{"$f":"IF('PSD Summary'!L41<>\"\",\"ImprovementAttributes\",\"\")","v":""},null,"ENO_UsefulLife",{"$f":"'PSD Summary'!L41","v":0}]
[{"$f":"IF('PSD Summary'!M41<>\"\",\"ImprovementAttributes\",\"\")","v":""},null,"ENO_SerialNumber",{"$f":"'PSD Summary'!M41","v":0}]
[{"$f":"IF('PSD Summary'!N41<>\"\",\"ImprovementAttributes\",\"\")","v":""},null,"ENO_Age",{"$f":"'PSD Summary'!N41","v":0}]
[{"$f":"IF('PSD Summary'!O41<>\"\",\"ImprovementAttributes\",\"\")","v":""},null,"ENO_EquipmentReplaced",{"$f":"'PSD Summary'!O41","v":0}]
[{"$f":"IFERROR(IF('PSD Summary'!I41<>\"\",\"ImprovementAttributes\",\"\"),\"\")","v":""},null,"ENO_SimplePayback",{"$f":"IFERROR('PSD Summary'!I41, 0)","v":""}]
[null,{"$f":"'PSD Summary'!B42","v":"ENERGY STAR Commercial Combination Oven (electric) - Min. heavy load cooking efficiency of 60%"},{"$f":"C478+1","v":33}]
[null,"ImprovementType","ImprovementCost","ImprovementQuantity","Description","AutogeneratedName","Status","TreatmentWorkscope","Savings( $/yr )"]
[{"$f":"IF('PSD Summary'!D42<>0,\"Improvements\",\"\")","v":""},{"$f":"'PSD Summary'!B42","v":"ENERGY STAR Commercial Combination Oven (electric) - Min. heavy load cooking efficiency of 60%"},{"$f":"'PSD Summary'!C42","v":0},{"$f":"'PSD Summary'!D42","v":0},{"$f":"IF('PSD Summary'!P42<>\"\",'PSD Summary'!P42,\"\")","v":""},{"$f":"IF('PSD Summary'!B42<> \"\",'PSD Summary'!B42,\"\")","v":"ENERGY STAR Commercial Combination Oven (electric) - Min. heavy load cooking efficiency of 60%"},{"$f":"IF('Project Information'!$CP$29=\"Pre-Installation\",\"Recommended\",IF('Project Information'!$CP$29=\"Post-Installation\", \"Completed\", \"\"))","v":""},null,{"$f":"'PSD Summary'!G42","v":""}]
[null,null,"ImprovementSavings"]
[null,null,"Fuel","Heating (kBtu/yr)","Cooling (kBtu/yr)","Lighting (kBtu/yr)","Hot Water (kBtu/yr)","Appliance (kBtu/yr)","Other (kBtu/yr)","AnnualTotal(kBtu/yr)","Demand","AnnualCost"]
[{"$f":"IF('PSD Summary'!E42<>\"\",\"ImprovementSavings\",\"\")","v":""},null,"Electricity",null,null,null,null,null,null,{"$f":"'PSD Summary'!E42*GECO_ELEC_RATIO","v":{"$error":"#VALUE!"}},{"$f":"'PSD Summary'!F42","v":""},{"$f":"'PSD Summary'!G42","v":""}]
[null,null,"ImprovementAttribute"]
[null,null,"AttributeName","Value"]
[{"$f":"IF('PSD Summary'!J42<>\"\",\"ImprovementAttributes\",\"\")","v":""},null,"ENO_Size",{"$f":"'PSD Summary'!J42","v":0}]
[{"$f":"IF('PSD Summary'!K42<>\"\",\"ImprovementAttributes\",\"\")","v":""},null,"ENO_EfficiencyLevel",{"$f":"'PSD Summary'!K42","v":0}]
[{"$f":"IF('PSD Summary'!L42<>\"\",\"ImprovementAttributes\",\"\")","v":""},null,"ENO_UsefulLife",{"$f":"'PSD Summary'!L42","v":0}]
[{"$f":"IF('PSD Summary'!M42<>\"\",\"ImprovementAttributes\",\"\")","v":""},null,"ENO_SerialNumber",{"$f":"'PSD Summary'!M42","v":0}]
[{"$f":"IF('PSD Summary'!N42<>\"\",\"ImprovementAttributes\",\"\")","v":""},null,"ENO_Age",{"$f":"'PSD Summary'!N42","v":0}]
[{"$f":"IF('PSD Summary'!O42<>\"\",\"ImprovementAttributes\",\"\")","v":""},null,"ENO_EquipmentReplaced",{"$f":"'PSD Summary'!O42","v":0}]
[{"$f":"IFERROR(IF('PSD Summary'!I42<>\"\",\"ImprovementAttributes\",\"\"),\"\")","v":""},null,"ENO_SimplePayback",{"$f":"IFERROR('PSD Summary'!I42, 0)","v":""}]
[null,{"$f":"'PSD Summary'!B43","v":"PC Power Management"},{"$f":"C493+1","v":34}]
[null,"ImprovementType","ImprovementCost","ImprovementQuantity","Description","AutogeneratedName","Status","TreatmentWorkscope","Savings( $/yr )"]
[{"$f":"IF('PSD Summary'!D43<>0,\"Improvements\",\"\")","v":""},{"$f":"'PSD Summary'!B43","v":"PC Power Management"},{"$f":"'PSD Summary'!C43","v":0},{"$f":"'PSD Summary'!D43","v":0},{"$f":"IF('PSD Summary'!P43<>\"\",'PSD Summary'!P43,\"\")","v":""},{"$f":"IF('PSD Summary'!B43<> \"\",'PSD Summary'!B43,\"\")","v":"PC Power Management"},{"$f":"IF('Project Information'!$CP$29=\"Pre-Installation\",\"Recommended\",IF('Project Information'!$CP$29=\"Post-Installation\", \"Completed\", \"\"))","v":""},null,{"$f":"'PSD Summary'!G43","v":""}]
[null,null,"ImprovementSavings"]
[null,null,"Fuel","Heating (kBtu/yr)","Cooling (kBtu/yr)","Lighting (kBtu/yr)","Hot Water (kBtu/yr)","Appliance (kBtu/yr)","Other (kBtu/yr)","AnnualTotal(kBtu/yr)","Demand","AnnualCost"]
[{"$f":"IF('PSD Summary'!E43<>\"\",\"ImprovementSavings\",\"\")","v":""},null,"Electricity",null,null,null,null,null,null,{"$f":"'PSD Summary'!E43*GECO_ELEC_RATIO","v":{"$error":"#VALUE!"}},{"$f":"'PSD Summary'!F43","v":""},{"$f":"'PSD Summary'!G43","v":""}]
[null,null,"ImprovementAttribute"]
[null,null,"AttributeName","Value"]
[{"$f":"IF('PSD Summary'!J43<>\"\",\"ImprovementAttributes\",\"\")","v":""},null,"ENO_Size",{"$f":"'PSD Summary'!J43","v":0}]
[{"$f":"IF('PSD Summary'!K43<>\"\",\"ImprovementAttributes\",\"\")","v":""},null,"ENO_EfficiencyLevel",{"$f":"'PSD Summary'!K43","v":0}]
[{"$f":"IF('PSD Summary'!L43<>\"\",\"ImprovementAttributes\",\"\")","v":""},null,"ENO_UsefulLife",{"$f":"'PSD Summary'!L43","v":0}]
[{"$f":"IF('PSD Summary'!M43<>\"\",\"ImprovementAttributes\",\"\")","v":""},null,"ENO_SerialNumber",{"$f":"'PSD Summary'!M43","v":0}]
[{"$f":"IF('PSD Summary'!N43<>\"\",\"ImprovementAttributes\",\"\")","v":""},null,"ENO_Age",{"$f":"'PSD Summary'!N43","v":0}]
[{"$f":"IF('PSD Summary'!O43<>\"\",\"ImprovementAttributes\",\"\")","v":""},null,"ENO_EquipmentReplaced",{"$f":"'PSD Summary'!O43","v":0}]
[{"$f":"IFERROR(IF('PSD Summary'!I43<>\"\",\"ImprovementAttributes\",\"\"),\"\")","v":""},null,"ENO_SimplePayback",{"$f":"IFERROR('PSD Summary'!I43, 0)","v":""}]

{"sheet":"Lighting Savings","index":5,"n_rows":78,"n_cols":37,"rows_kept":78,"cut":false,"hidden":true,"merged":[[47,2,47,3],[47,8,48,9],[47,10,48,10],[47,11,48,11],[48,2,48,3],[49,2,49,3],[50,2,50,3],[40,2,40,3],[41,2,41,3],[44,2,44,3],[44,8,44,9],[45,2,45,3],[45,8,46,9],[45,10,46,10],[45,11,46,11],[46,2,46,3],[36,2,36,3],[36,8,37,9],[36,10,37,10],[36,11,37,11],[37,2,37,3],[38,2,38,3],[38,8,39,9],[38,10,39,10],[38,11,39,11],[39,2,39,3],[29,2,29,3],[29,8,30,9],[29,10,30,10],[29,11,30,11],[30,2,30,3],[31,2,31,3],[32,2,32,3],[35,2,35,3],[35,8,35,9],[6,2,6,3],[6,8,6,9],[7,8,8,9],[26,2,26,3],[26,8,26,9],[27,2,27,3],[27,8,28,9],[27,10,28,10],[27,11,28,11],[28,2,28,3],[7,10,8,10],[7,11,8,11],[26,16,26,20],[27,16,27,20],[18,16,18,20],[19,16,19,20],[20,16,20,20],[21,16,21,20],[18,11,19,11],[20,11,21,11],[7,2,7,3],[8,2,8,3],[9,2,9,3],[10,2,10,3],[9,8,10,9],[9,11,10,11],[9,10,10,10],[17,2,17,3],[18,2,18,3],[19,2,19,3],[58,36,58,37],[59,36,59,37],[60,36,60,37],[61,36,61,37],[62,36,62,37],[63,36,63,37],[64,36,64,37],[65,36,65,37],[58,27,58,31],[59,27,59,31],[60,27,60,31],[61,27,61,31],[62,27,62,31],[63,27,63,31],[59,32,59,33],[60,32,60,33],[65,32,65,33],[61,32,61,33],[62,32,62,33],[63,32,63,33],[64,32,64,33],[64,27,64,31],[65,27,65,31],[60,19,60,26],[60,16,60,18],[52,16,52,20],[53,16,53,20],[54,16,54,20],[55,16,55,20],[58,16,58,18],[59,16,59,18],[58,19,58,26],[59,19,59,26],[46,16,46,20],[47,16,47,20],[48,16,48,20],[49,16,49,20],[50,16,50,20],[20,2,20,3],[21,2,21,3],[22,2,22,3],[17,8,17,9],[18,8,19,9],[18,10,19,10],[20,8,21,9],[20,10,21,10],[39,16,39,20],[28,16,28,20],[29,16,29,20],[30,16,30,20],[31,16,31,20],[32,16,32,20],[33,16,33,20],[22,16,22,20],[23,16,23,20],[24,16,24,20],[25,16,25,20],[61,19,61,26],[62,19,62,26],[63,19,63,26],[64,19,64,26],[65,19,65,26],[61,16,61,18],[62,16,62,18],[63,16,63,18],[64,16,64,18],[72,16,72,22],[73,16,73,22],[74,16,74,22],[75,16,75,22],[76,16,76,22],[77,16,77,22],[23,2,23,3],[68,16,68,22],[69,16,69,22],[70,16,70,22],[71,16,71,22],[65,16,65,18],[51,16,51,20],[40,16,40,20],[41,16,41,20],[42,16,42,20],[43,16,43,20],[44,16,44,20],[45,16,45,20],[34,16,34,20],[35,16,35,20],[36,16,36,20],[37,16,37,20],[38,16,38,20]]}
[]
[]
[null,null,"LED Exit Signs",null,null,null,null,null,null,null,null,null,null,null,null,null,"LED Exit Signs References"]
[null,null,"There is not a lot of energy saved from the bulbs. Assumption is that LED lights run 24/7 all year",null,null,null,null,null,null,null,null,null,null,null,null,null,"https://www.energystar.gov/ia/business/bulk.../bpsavings_calc/Calc_Exit_Signs.xls"]
[]
[null,null,"LED Exit Sign Savings ",null,null,null,null,null,null,null,null,null,null,null,null,null,"Formula for Energy Savings is "]
[null,null,"Inputs",null,"Values","Units",null,null,"Output",null,"Value","Units",null,null,null,null,"(Existing Wattage - Proposed Wattage)*(Run Hours)/1000"]
[null,null,"Existing Wattage",null,{"$f":"'Measure Input'!$N$5","v":0},"W",null,null,"Energy Savings (LED Exit Signs)",null,{"$f":"IF(OR(ISBLANK('Measure Input'!N5), ISBLANK('Measure Input'!P5),ISBLANK('Measure Input'!R5)),\"\",($E$8-$E$9)*$E$10*$E$11/1000)","v":""},"kWh/yr",null,null,null,null,"Formula for Demand Savings is "]
[null,null,"Proposed Wattage",null,{"$f":"'Measure Input'!$P$5","v":0},"W",null,null,null,null,null,null,null,null,null,null,"(Existing Wattage - Proposed Wattage)*1/1000"]
[null,null,"Run Hours",null,8760,"hrs/yr",null,null,"Demand Savings (LED Exit Signs)",null,{"$f":"IF(OR(ISBLANK('Measure Input'!N5), ISBLANK('Measure Input'!P5),ISBLANK('Measure Input'!R5)), \"\", ($E$8-$E$9)*$E$11/1000)","v":""},"kW"]
[null,null,"Units Installed",null,{"$f":"'Measure Input'!$R$5","v":0},"N/A",null,null,null,null,null,null,null,null,null,null,"Assuming that peak demand is existing and proposed wattage value"]
[]
[]
[null,null,"LED Screw-Ins",null,null,null,null,null,null,null,null,null,null,null,null,null,"LED Screw-Ins References",null,null,null,null,null,null,null,null,null,null,"LED Screw-Ins Snippets"]
[null,null,"Based on information in previous prescriptive savings analysis; Scaled down version of the tool was created",null,null,null,null,null,null,null,null,null,null,null,null,null,"All information is referenced from the New Orleans TRM. Formnulas C.6.3.4.2 and C.6.3.4.3 are "]
[null,null,null,null,null,null,null,null,null,null,null,null,null,null,null,null,"formulas used to calculate the energy savings"]
[null,null,"LED Screw-Ins (1-6 Watts Replacing Incandescents/CFLs) Savings"]
[null,null,"Inputs",null,"Values","Units",null,null,"Output",null,"Value","Units",null,null,null,null,"Table 1: Annual Operating Hours (AOH) and Coincidence Factors (CF)"]
[null,null,"Existing Wattage",null,{"$f":"'Measure Input'!$N$8","v":0},"W",null,null,"Energy Savings (LED Screw-Ins)",null,{"$f":"IF(OR(ISBLANK('Measure Input'!$N$8), ISBLANK('Measure Input'!$P$8), ISBLANK('Measure Input'!$R$8), ISBLANK('Measure Input'!$T$8), ISBLANK('Measure Input'!$V$8)), \"\", IF($E$22=\"Switch/No Controls\", (($E$19*$E$23/1000)-($E$20*$E$24/1000))*$E$21*VLOOKUP('Project Information'!$BB$25, InteractiveEffects, 20, FALSE), (($E$19*$E$23/1000)-($E$20*$E$24/1000))*$E$21*VLOOKUP('Project Information'!$BB$25, InteractiveEffects, 20, FALSE))*VLOOKUP($E$22, PowerAdjustmentFactors, 8, FALSE))","v":""},"kWh/yr",null,null,null,null,"Building Type",null,null,null,null,"AOH","CF"]
[null,null,"Proposed Wattage",null,{"$f":"'Measure Input'!$P$8","v":0},"W",null,null,null,null,null,null,null,null,null,null,"Bar Area",null,null,null,null,2676,0.81]
[null,null,"Run Hours (AOH)",null,{"$f":"IF('Project Information'!$BB$23= \"\", \"\", VLOOKUP('Project Information'!$BB$23, AnnualOperatingHours, 6,TRUE))","v":""},"hrs/yr",null,null,"Demand Savings (LED Screw-Ins)",null,{"$f":"IF($K$19=\"\", \"\", IF($E$22=\"Switch/No Controls\", $K$19*((VLOOKUP('Project Information'!$BB$23, AnnualOperatingHours, 7,FALSE)*(VLOOKUP('Project Information'!$BB$25, InteractiveEffects, 19, FALSE))))/($E$21*VLOOKUP('Project Information'!$BB$25, InteractiveEffects, 20, FALSE)), $K$19*(VLOOKUP('Project Information'!$BB$25, InteractiveEffects, 19, FALSE)*0.26/(($E$21*VLOOKUP('Project Information'!$BB$25, InteractiveEffects, 20, FALSE)*VLOOKUP($E$22, PowerAdjustmentFactors, 8, FALSE))))))","v":""},"kW",null,null,null,null,"Corridor/Hallway/Stairwell",null,null,null,null,5233,0.9]
[null,null,"Existing Controls",null,{"$f":"'Measure Input'!$V$8","v":0},"N/A",null,null,null,null,null,null,null,null,null,null,"Education: College/University",null,null,null,null,3577,0.69]
[null,null,"Existing Fixture Count",null,{"$f":"'Measure Input'!$R$8","v":0},"N/A",null,null,null,null,null,null,null,null,null,null,"Education: K-12",null,null,null,null,2333,0.47]
[null,null,"Proposed Fixture Count",null,{"$f":"'Measure Input'!$T$8","v":0},"N/A",null,null,null,null,null,null,null,null,null,null,"Education: K-12 (specialized room)",null,null,null,null,2676,0.47]
[null,null,null,null,null,null,null,null,null,null,null,null,null,null,null,null,"Exterior/Outdoors/Parking Lot",null,null,null,null,4319,"-"]
[null,null,"LED Screw-Ins (7-11 Watts Replacing Incandescents/CFLs) Savings",null,null,null,null,null,null,null,null,null,null,null,null,null,"Food Prep (Generic)",null,null,null,null,5543,0.81]
[null,null,"Inputs",null,"Values","Units",null,null,"Output",null,"Value","Units",null,null,null,null,"Food Sales: 24-Hour Supermarket",null,null,null,null,6900,0.95]
[null,null,"Existing Wattage",null,{"$f":"'Measure Input'!$N$9","v":0},"W",null,null,"Energy Savings (LED Screw-Ins)",null,{"$f":"IF(OR(ISBLANK('Measure Input'!$N$9), ISBLANK('Measure Input'!$P$9), ISBLANK('Measure Input'!$R$9), ISBLANK('Measure Input'!$T$9), ISBLANK('Measure Input'!$V$9)), \"\", IF($E$31=\"Switch/No Controls\", (($E$28*$E$32/1000)-($E$29*$E$33/1000))*$E$30*VLOOKUP('Project Information'!$BB$25, InteractiveEffects, 20, FALSE), (($E$28*$E$32/1000)-($E$29*$E$33/1000))*$E$30*VLOOKUP('Project Information'!$BB$25, InteractiveEffects, 20, FALSE))*VLOOKUP($E$31, PowerAdjustmentFactors, 8, FALSE))","v":""},"kWh/yr",null,null,null,null,"Food Sales: Non 24-Hour Supermarket",null,null,null,null,2058,0.95]
[null,null,"Proposed Wattage",null,{"$f":"'Measure Input'!$P$9","v":0},"W",null,null,null,null,null,null,null,null,null,null,"Food Service: Fast Food",null,null,null,null,6473,0.81]
[null,null,"Run Hours (AOH)",null,{"$f":"IF('Project Information'!$BB$23= \"\", \"\", VLOOKUP('Project Information'!$BB$23, AnnualOperatingHours, 6,TRUE))","v":""},"hrs/yr",null,null,"Demand Savings (LED Screw-Ins)",null,{"$f":"IF($K$28=\"\", \"\", IF($E$31=\"Switch/No Controls\", $K$28*((VLOOKUP('Project Information'!$BB$23, AnnualOperatingHours, 7,FALSE)*(VLOOKUP('Project Information'!$BB$25, InteractiveEffects, 19, FALSE))))/($E$30*VLOOKUP('Project Information'!$BB$25, InteractiveEffects, 20, FALSE)), $K$28*(VLOOKUP('Project Information'!$BB$25, InteractiveEffects, 19, FALSE)*0.26/(($E$30*VLOOKUP('Project Information'!$BB$25, InteractiveEffects, 20, FALSE)*VLOOKUP($E$31, PowerAdjustmentFactors, 8, FALSE))))))","v":""},"kW",null,null,null,null,"Food Service: Sit-Down Restaurant",null,null,null,null,4731,0.81]
[null,null,"Existing Controls",null,{"$f":"'Measure Input'!$V$9","v":0},"N/A",null,null,null,null,null,null,null,null,null,null,"Health Care: In-Patient",null,null,null,null,4019,0.78]
[null,null,"Existing Fixture Count",null,{"$f":"'Measure Input'!$R$9","v":0},"N/A",null,null,null,null,null,null,null,null,null,null,"Health Care: Nursing Home",null,null,null,null,4271,0.78]
[null,null,"Proposed Fixture Count",null,{"$f":"'Measure Input'!$T$9","v":0},"N/A",null,null,null,null,null,null,null,null,null,null,"Health Care: Out-Patient",null,null,null,null,3386,0.77]
[null,null,null,null,null,null,null,null,null,null,null,null,null,null,null,null,"Kwik-E-Mart",null,null,null,null,4245,0.9]
[null,null,"LED Screw-Ins (12-17 Watts Replacing Incandescents/CFLs) Savings",null,null,null,null,null,null,null,null,null,null,null,null,null,"Lodging (Hotel/Motel/Dorm): Common Areas",null,null,null,null,4127,0.82]
[null,null,"Inputs",null,"Values","Units",null,null,"Output",null,"Value","Units",null,null,null,null,"Lodging (Hotel/Motel/Dorm): Room",null,null,null,null,3370,0.25]
[null,null,"Existing Wattage",null,{"$f":"'Measure Input'!$N$10","v":0},"W",null,null,"Energy Savings (LED Screw-Ins)",null,{"$f":"IF(OR(ISBLANK('Measure Input'!$N$10), ISBLANK('Measure Input'!$P$10), ISBLANK('Measure Input'!$R$10), ISBLANK('Measure Input'!$T$10), ISBLANK('Measure Input'!$V$10)), \"\", IF($E$40=\"Switch/No Controls\", (($E$37*$E$41/1000)-($E$38*$E$42/1000))*$E$39*VLOOKUP('Project Information'!$BB$25, InteractiveEffects, 20, FALSE), (($E$37*$E$41/1000)-($E$38*$E$42/1000))*$E$39*VLOOKUP('Project Information'!$BB$25, InteractiveEffects, 20, FALSE))*VLOOKUP($E$40, PowerAdjustmentFactors, 8, FALSE))","v":""},"kWh/yr",null,null,null,null,"Manufacturing",null,null,null,null,5740,0.73]
[null,null,"Proposed Wattage",null,{"$f":"'Measure Input'!$P$10","v":0},"W",null,null,null,null,null,null,null,null,null,null,"Multi-family Housing: Common Areas",null,null,null,null,5703,0.87]
[null,null,"Run Hours (AOH)",null,{"$f":"IF('Project Information'!$BB$23= \"\", \"\", VLOOKUP('Project Information'!$BB$23, AnnualOperatingHours, 6,TRUE))","v":""},"hrs/yr",null,null,"Demand Savings (LED Screw-Ins)",null,{"$f":"IF($K$37=\"\", \"\", IF($E$40=\"Switch/No Controls\", $K$37*((VLOOKUP('Project Information'!$BB$23, AnnualOperatingHours, 7,FALSE)*(VLOOKUP('Project Information'!$BB$25, InteractiveEffects, 19, FALSE))))/($E$39*VLOOKUP('Project Information'!$BB$25, InteractiveEffects, 20, FALSE)), $K$37*(VLOOKUP('Project Information'!$BB$25, InteractiveEffects, 19, FALSE)*0.26/(($E$39*VLOOKUP('Project Information'!$BB$25, InteractiveEffects, 20, FALSE)*VLOOKUP($E$40, PowerAdjustmentFactors, 8, FALSE))))))","v":""},"kW",null,null,null,null,"Non-Warehouse Storage (Generic)",null,null,null,null,4207,0.77]
[null,null,"Existing Controls",null,{"$f":"'Measure Input'!$V$10","v":0},"N/A",null,null,null,null,null,null,null,null,null,null,"Office",null,null,null,null,5159,0.77]
[null,null,"Existing Fixture Count",null,{"$f":"'Measure Input'!$R$10","v":0},"N/A",null,null,null,null,null,null,null,null,null,null,"Office (attached to other facility)",null,null,null,null,4728,0.77]
[null,null,"Proposed Fixture Count",null,{"$f":"'Measure Input'!$T$10","v":0},"N/A",null,null,null,null,null,null,null,null,null,null,"Parking Structure",null,null,null,null,7884,1]
[null,null,null,null,null,null,null,null,null,null,null,null,null,null,null,null,"Public Assembly",null,null,null,null,2638,0.56000000000000005]
[null,null,"LED Screw-Ins (>18 Watts Replacing Incandescents/CFLs) Savings",null,null,null,null,null,null,null,null,null,null,null,null,null,"Public Order and Safety",null,null,null,null,3472,0.75]
[null,null,"Inputs",null,"Values","Units",null,null,"Output",null,"Value","Units",null,null,null,null,"Religious Gathering",null,null,null,null,3174,0.53]
[null,null,"Existing Wattage",null,{"$f":"'Measure Input'!$N$11","v":0},"W",null,null,"Energy Savings (LED Screw-Ins)",null,{"$f":"IF(OR(ISBLANK('Measure Input'!$N$11), ISBLANK('Measure Input'!$P$11), ISBLANK('Measure Input'!$R$11), ISBLANK('Measure Input'!$T$11), ISBLANK('Measure Input'!$V$11)), \"\", IF($E$49=\"Switch/No Controls\", (($E$46*$E$50/1000)-($E$47*$E$51/1000))*$E$48*VLOOKUP('Project Information'!$BB$25, InteractiveEffects, 20, FALSE), (($E$46*$E$50/1000)-($E$47*$E$51/1000))*$E$48*VLOOKUP('Project Information'!$BB$25, InteractiveEffects, 20, FALSE))*VLOOKUP($E$49, PowerAdjustmentFactors, 8, FALSE))","v":""},"kWh/yr",null,null,null,null,"Restroom (Generic)",null,null,null,null,3516,0.9]
[null,null,"Proposed Wattage",null,{"$f":"'Measure Input'!$P$11","v":0},"W",null,null,null,null,null,null,null,null,null,null,"Retail: Enclosed Mall",null,null,null,null,4813,0.93]
[null,null,"Run Hours (AOH)",null,{"$f":"IF('Project Information'!$BB$23= \"\", \"\", VLOOKUP('Project Information'!$BB$23, AnnualOperatingHours, 6,TRUE))","v":""},"hrs/yr",null,null,"Demand Savings (LED Screw-Ins)",null,{"$f":"IF($K$46=\"\", \"\", IF($E$49=\"Switch/No Controls\", $K$46*((VLOOKUP('Project Information'!$BB$23, AnnualOperatingHours, 7,FALSE)*(VLOOKUP('Project Information'!$BB$25, InteractiveEffects, 19, FALSE))))/($E$48*VLOOKUP('Project Information'!$BB$25, InteractiveEffects, 20, FALSE)), $K$46*(VLOOKUP('Project Information'!$BB$25, InteractiveEffects, 19, FALSE)*0.26/(($E$48*VLOOKUP('Project Information'!$BB$25, InteractiveEffects, 20, FALSE)*VLOOKUP($E$49, PowerAdjustmentFactors, 8, FALSE))))))","v":""},"kW",null,null,null,null,"Retail: Freestanding",null,null,null,null,3515,0.9]
[null,null,"Existing Controls",null,{"$f":"'Measure Input'!$V$11","v":0},"N/A",null,null,null,null,null,null,null,null,null,null,"Retail: Other",null,null,null,null,4312,0.9]
[null,null,"Existing Fixture Count",null,{"$f":"'Measure Input'!$R$11","v":0},"N/A",null,null,null,null,null,null,null,null,null,null,"Retail: Strip Mall",null,null,null,null,3965,0.9]
[null,null,"Proposed Fixture Count",null,{"$f":"'Measure Input'!$T$11","v":0},"N/A",null,null,null,null,null,null,null,null,null,null,"Security Booth",null,null,null,null,4389,0.75]
[null,null,null,null,null,null,null,null,null,null,null,null,null,null,null,null,"Service: Excluding Food",null,null,null,null,3406,0.9]
[null,null,null,null,null,null,null,null,null,null,null,null,null,null,null,null,"Showroom Floor",null,null,null,null,4057,0.9]
[null,null,null,null,null,null,null,null,null,null,null,null,null,null,null,null,"Walk-In Cooler (Generic)",null,null,null,null,792,0.25]
[null,null,null,null,null,null,null,null,null,null,null,null,null,null,null,null,"Warehouse: Non-Refrigerated",null,null,null,null,2417,0.77]
[null,null,null,null,null,null,null,null,null,null,null,null,null,null,null,null,"Warehouse: Refrigerated",null,null,null,null,3798,0.84]
[]
[null,null,null,null,null,null,null,null,null,null,null,null,null,null,null,null,"Table 2: Commercial Conditioned and Refrigerated Space Interactive Effects Factors"]
[null,null,null,null,null,null,null,null,null,null,null,null,null,null,null,null,"Space Conditions",null,null,"Building Type",null,null,null,null,null,null,null,"Cooling Conditions",null,null,null,null,"Heating Type",null,"IEFD","IEFE","Adjusted IEFe"]
[null,null,null,null,null,null,null,null,null,null,null,null,null,null,null,null,"A/C with gas heat",null,null,"All building types (Except Outdoor & Parking Structure)",null,null,null,null,null,null,null,"Air Conditioned Space – Normal Temps. (> 41°F)",null,null,null,null,"Gas",null,1.2,1.0900000000000001,1.5914000000000001]
[null,null,null,null,null,null,null,null,null,null,null,null,null,null,null,null,"A/C with electric resistance heat",null,null,"All building types (Except Outdoor & Parking Structure)",null,null,null,null,null,null,null,"Air Conditioned Space – Normal Temps. (> 41°F)",null,null,null,null,"Electric Resistance",null,1.2,0.87,1.2702]
[null,null,null,null,null,null,null,null,null,null,null,null,null,null,null,null,"A/C with heat pump heat",null,null,"All building types (Except Outdoor & Parking Structure)",null,null,null,null,null,null,null,"Air Conditioned Space – Normal Temps. (> 41°F)",null,null,null,null,"Heat Pump",null,1.2,1.02,1.4892000000000001]
[null,null,null,null,null,null,null,null,null,null,null,null,null,null,null,null,"A/C with no heat",null,null,"All building types (Except Outdoor & Parking Structure)",null,null,null,null,null,null,null,"Air Conditioned Space – Normal Temps. (> 41°F)",null,null,null,null,"N/A",null,1.2,0.98,1.4307999999999998]
[null,null,null,null,null,null,null,null,null,null,null,null,null,null,null,null,"Refrigerated space (33-41°F)",null,null,"All building types (Except Outdoor & Parking Structure)",null,null,null,null,null,null,null,"Refrigerated Space – Med. Temps. (33-41°F)",null,null,null,null,"All",null,1.25,1.25]
[null,null,null,null,null,null,null,null,null,null,null,null,null,null,null,null,"Freezer space (-10-10°F)",null,null,"All building types (Except Outdoor & Parking Structure)",null,null,null,null,null,null,null,"Refrigerated Space – Low Temps. (-10-10°F)",null,null,null,null,"All",null,1.3,1.3]
[null,null,null,null,null,null,null,null,null,null,null,null,null,null,null,null,"N/A (Unconditioned)",null,null,"Outdoor/Parking Structure/Unconditioned Warehouse or Manufacturing Area",null,null,null,null,null,null,null,"N/A",null,null,null,null,"N/A",null,1,1]
[]
[null,null,null,null,null,null,null,null,null,null,null,null,null,null,null,null,"Table 3: Lighting Controls – Power Adjustment Factors"]
[null,null,null,null,null,null,null,null,null,null,null,null,null,null,null,null,"Control Type",null,null,null,null,null,null,"PAF"]
[null,null,null,null,null,null,null,null,null,null,null,null,null,null,null,null,"Switch/No Controls",null,null,null,null,null,null,1]
[null,null,null,null,null,null,null,null,null,null,null,null,null,null,null,null,"Daylighting Control – Continuous Dimming",null,null,null,null,null,null,0.7]
[null,null,null,null,null,null,null,null,null,null,null,null,null,null,null,null,"Daylighting Control – Multiple Step Dimming",null,null,null,null,null,null,0.8]
[null,null,null,null,null,null,null,null,null,null,null,null,null,null,null,null,"Daylighting Control – ON/OFF (Indoor)",null,null,null,null,null,null,0.9]
[null,null,null,null,null,null,null,null,null,null,null,null,null,null,null,null,"Daylighting Control – ON/OFF (Outdoor)",null,null,null,null,null,null,1]
[null,null,null,null,null,null,null,null,null,null,null,null,null,null,null,null,"Occupancy Sensor",null,null,null,null,null,null,0.7]
[null,null,null,null,null,null,null,null,null,null,null,null,null,null,null,null,"Occupancy Sensor w/ Daylighting Control – Continuous Dimming",null,null,null,null,null,null,0.6]
[null,null,null,null,null,null,null,null,null,null,null,null,null,null,null,null,"Occupancy Sensor w/ Daylighting Control – Multiple Step Dimming",null,null,null,null,null,null,0.65]
[null,null,null,null,null,null,null,null,null,null,null,null,null,null,null,null,"Occupancy Sensor w/ Daylighting Control – ON/OFF",null,null,null,null,null,null,0.65]

{"sheet":"Lighting Controls Savings","index":6,"n_rows":64,"n_cols":17,"rows_kept":64,"cut":false,"hidden":true,"merged":[[57,10,58,10],[57,11,58,11],[58,2,58,3],[59,2,59,3],[59,8,60,9],[59,10,60,10],[59,11,60,11],[60,2,60,3],[57,2,57,3],[57,8,58,9],[61,2,61,3],[62,2,62,3],[63,2,63,3],[52,2,52,3],[53,2,53,3],[51,2,51,3],[56,2,56,3],[56,8,56,9],[47,8,48,9],[49,2,49,3],[49,8,50,9],[49,10,50,10],[49,11,50,11],[50,2,50,3],[47,10,48,10],[47,11,48,11],[48,2,48,3],[47,2,47,3],[37,11,38,11],[38,2,38,3],[39,2,39,3],[39,8,40,9],[39,11,40,11],[40,2,40,3],[42,2,42,3],[43,2,43,3],[37,10,38,10],[39,10,40,10],[46,2,46,3],[46,8,46,9],[36,2,36,3],[36,8,36,9],[37,2,37,3],[37,8,38,9],[41,2,41,3],[31,2,31,3],[32,2,32,3],[33,2,33,3],[27,10,28,10],[27,11,28,11],[28,2,28,3],[29,2,29,3],[29,8,30,9],[29,10,30,10],[29,11,30,11],[30,2,30,3],[27,2,27,3],[27,8,28,9],[21,2,21,3],[22,2,22,3],[23,2,23,3],[26,2,26,3],[26,8,26,9],[17,10,18,10],[17,11,18,11],[18,2,18,3],[19,2,19,3],[19,8,20,9],[19,10,20,10],[19,11,20,11],[20,2,20,3],[12,2,12,3],[13,2,13,3],[16,2,16,3],[16,8,16,9],[17,2,17,3],[17,8,18,9],[7,10,8,10],[7,11,8,11],[8,2,8,3],[11,2,11,3],[6,2,6,3],[6,8,6,9],[7,2,7,3],[7,8,8,9],[9,2,9,3],[9,8,10,9],[9,10,10,10],[9,11,10,11],[10,2,10,3]]}
[]
[]
[null,null,"Lighting Controls",null,null,null,null,null,null,null,null,null,null,null,null,null,"Lighting Controls References"]
[null,null,"Based on information in previous prescriptive savings analysis; Scaled down version of the tool was created",null,null,null,null,null,null,null,null,null,null,null,null,null,"Refering to table 3 in the \"lighting savings\" tab,  a conservative PAF was chosen for each lighting control measure"]
[null,null,null,null,null,null,null,null,null,null,null,null,null,null,null,null,"Daylighting Controller - 0.9"]
[null,null,"Lighting Controls - Daylighting Controller <500W Savings",null,null,null,null,null,null,null,null,null,null,null,null,null,"Occupancy Sensor - 0.7"]
[null,null,"Inputs",null,"Values","Units",null,null,"Output",null,"Value","Units",null,null,null,null,"Occupancy Sensor with Daylighting Control - 0.65"]
[null,null,"Fixture Wattage",null,{"$f":"'Measure Input'!$N$15","v":0},"W",null,null,"Energy Savings (Controls)",null,{"$f":"IF(OR(ISBLANK('Measure Input'!$N$15),ISBLANK('Measure Input'!$P$15), ISBLANK('Measure Input'!$R$15), ISBLANK($E$10),ISBLANK($E$13)),\"\",$E$8*$E$9/1000*(1-$E$14)*$E$10*$E$13)","v":""},"kWh/yr",null,null,null,null,"Also, I am assuming that existing control condition was \"Switch/No Controls\". "]
[null,null,"Fixture Count ",null,{"$f":"'Measure Input'!$P$15","v":0},"W"]
[null,null,"Run Hours (AOH)",null,{"$f":"IF('Project Information'!$BB$23 = \"\", \"\", VLOOKUP('Project Information'!$BB$23, AnnualOperatingHours, 6,TRUE))","v":""},"hrs/yr",null,null,"Demand Savings (Controls)",null,{"$f":"IF(OR(ISBLANK('Measure Input'!$N$15),ISBLANK('Measure Input'!$P$15),ISBLANK('Measure Input'!$R$15),ISBLANK($E$12)),\"\",$E$8*$E$9/1000*($E$11)*$E$12)","v":""},"kW",null,null,null,null,"Formula for Demand Savings is"]
[null,null,"CF",null,0.26,"N/A"]
[null,null,"IEFD",null,{"$f":"VLOOKUP('Project Information'!$BB$25, InteractiveEffects, 19, FALSE)","v":{"$error":"#N/A"}},"N/A"]
[null,null,"IEFE",null,{"$f":"VLOOKUP('Project Information'!$BB$25, InteractiveEffects, 20, FALSE)","v":{"$error":"#N/A"}},"N/A"]
[null,null,"PAF",null,0.9,"N/A"]
[]
[null,null,"Lighting Controls - Daylighting Controller >500W Savings"]
[null,null,"Inputs",null,"Values","Units",null,null,"Output",null,"Value","Units"]
[null,null,"Fixture Wattage",null,{"$f":"'Measure Input'!$N$16","v":0},"W",null,null,"Energy Savings (Controls)",null,{"$f":"IF(OR(ISBLANK('Measure Input'!$N$16),ISBLANK('Measure Input'!$P$16),ISBLANK('Measure Input'!$R$16),ISBLANK($E$20),ISBLANK($E$23)),\"\",$E$18*$E$19/1000*(1-$E$24)*$E$20*$E$23)","v":""},"kWh/yr",null,null,null,null,"Formula for Energy Savings is "]
[null,null,"Fixture Count ",null,{"$f":"'Measure Input'!$P$16","v":0},"W"]
[null,null,"Run Hours (AOH)",null,{"$f":"IF('Project Information'!$BB$23 = \"\", \"\", VLOOKUP('Project Information'!$BB$23, AnnualOperatingHours, 6,TRUE))","v":""},"hrs/yr",null,null,"Demand Savings (Controls)",null,{"$f":"IF(OR(ISBLANK('Measure Input'!$N$16),ISBLANK('Measure Input'!$P$16),ISBLANK('Measure Input'!$R$16),ISBLANK($E$22)),\"\",$E$18*$E$19/1000*($E$21)*$E$22)","v":""},"kW"]
[null,null,"CF",null,0.26,"N/A"]
[null,null,"IEFD",null,{"$f":"VLOOKUP('Project Information'!$BB$25, InteractiveEffects, 19, FALSE)","v":{"$error":"#N/A"}},"N/A"]
[null,null,"IEFE",null,{"$f":"VLOOKUP('Project Information'!$BB$25, InteractiveEffects, 20, FALSE)","v":{"$error":"#N/A"}},"N/A"]
[null,null,"PAF",null,0.9,"N/A"]
[]
[null,null,"Lighting Controls - Occupancy Sensors <500W Savings"]
[null,null,"Inputs",null,"Values","Units",null,null,"Output",null,"Value","Units"]
[null,null,"Fixture Wattage",null,{"$f":"'Measure Input'!$N$17","v":0},"W",null,null,"Energy Savings (Controls)",null,{"$f":"IF(OR(ISBLANK('Measure Input'!$N$17),ISBLANK('Measure Input'!$P$17),ISBLANK('Measure Input'!$R$17),ISBLANK($E$30),ISBLANK($E$33)),\"\",$E$28*$E$29/1000*(1-$E$34)*$E$30*$E$33)","v":""},"kWh/yr"]
[null,null,"Fixture Count ",null,{"$f":"'Measure Input'!$P$17","v":0},"W"]
[null,null,"Run Hours (AOH)",null,{"$f":"IF('Project Information'!$BB$23 = \"\", \"\", VLOOKUP('Project Information'!$BB$23, AnnualOperatingHours, 6,TRUE))","v":""},"hrs/yr",null,null,"Demand Savings (Controls)",null,{"$f":"IF(OR(ISBLANK('Measure Input'!$N$17),ISBLANK('Measure Input'!$P$17),ISBLANK('Measure Input'!$R$17),ISBLANK($E$32)),\"\",$E$28*$E$29/1000*($E$31)*$E$32)","v":""},"kW"]
[null,null,"CF",null,0.26,"N/A"]
[null,null,"IEFD",null,{"$f":"VLOOKUP('Project Information'!$BB$25, InteractiveEffects, 19, FALSE)","v":{"$error":"#N/A"}},"N/A"]
[null,null,"IEFE",null,{"$f":"VLOOKUP('Project Information'!$BB$25, InteractiveEffects, 20, FALSE)","v":{"$error":"#N/A"}},"N/A"]
[null,null,"PAF",null,0.7,"N/A"]
[]
[null,null,"Lighting Controls - Occupancy Sensors >500W Savings"]
[null,null,"Inputs",null,"Values","Units",null,null,"Output",null,"Value","Units"]
[null,null,"Fixture Wattage",null,{"$f":"'Measure Input'!$N$18","v":0},"W",null,null,"Energy Savings (Controls)",null,{"$f":"IF(OR(ISBLANK('Measure Input'!$N$18),ISBLANK('Measure Input'!$P$18),ISBLANK('Measure Input'!$R$18),ISBLANK($E$40),ISBLANK($E$43)),\"\",$E$38*$E$39/1000*(1-$E$44)*$E$40*$E$43)","v":""},"kWh/yr"]
[null,null,"Fixture Count ",null,{"$f":"'Measure Input'!$P$18","v":0},"W"]
[null,null,"Run Hours (AOH)",null,{"$f":"IF('Project Information'!$BB$23 = \"\", \"\", VLOOKUP('Project Information'!$BB$23, AnnualOperatingHours, 6,TRUE))","v":""},"hrs/yr",null,null,"Demand Savings (Controls)",null,{"$f":"IF(OR(ISBLANK('Measure Input'!$N$18),ISBLANK('Measure Input'!$P$18),ISBLANK('Measure Input'!$R$18),ISBLANK($E$42)),\"\",$E$38*$E$39/1000*($E$41)*$E$42)","v":""},"kW"]
[null,null,"CF",null,0.26,"N/A"]
[null,null,"IEFD",null,{"$f":"VLOOKUP('Project Information'!$BB$25, InteractiveEffects, 19, FALSE)","v":{"$error":"#N/A"}},"N/A"]
[null,null,"IEFE",null,{"$f":"VLOOKUP('Project Information'!$BB$25, InteractiveEffects, 20, FALSE)","v":{"$error":"#N/A"}},"N/A"]
[null,null,"PAF",null,0.7,"N/A"]
[]
[null,null,"Lighting Controls - Occupancy Sensors w/Daylighting Control <500W Savings"]
[null,null,"Inputs",null,"Values","Units",null,null,"Output",null,"Value","Units"]
[null,null,"Fixture Wattage",null,{"$f":"'Measure Input'!$N$19","v":0},"W",null,null,"Energy Savings (Controls)",null,{"$f":"IF(OR(ISBLANK('Measure Input'!$N$19),ISBLANK('Measure Input'!$P$19),ISBLANK('Measure Input'!$R$19),ISBLANK($E$50),ISBLANK($E$53)),\"\",$E$48*$E$49/1000*(1-$E$54)*$E$50*$E$53)","v":""},"kWh/yr"]
[null,null,"Fixture Count ",null,{"$f":"'Measure Input'!$P$19","v":0},"W"]
[null,null,"Run Hours (AOH)",null,{"$f":"IF('Project Information'!$BB$23 = \"\", \"\", VLOOKUP('Project Information'!$BB$23, AnnualOperatingHours, 6,TRUE))","v":""},"hrs/yr",null,null,"Demand Savings (Controls)",null,{"$f":"IF(OR(ISBLANK('Measure Input'!$N$19),ISBLANK('Measure Input'!$P$19),ISBLANK('Measure Input'!$R$19),ISBLANK($E$52)),\"\",$E$48*$E$49/1000*($E$51)*$E$52)","v":""},"kW"]
[null,null,"CF",null,0.26,"N/A"]
[null,null,"IEFD",null,{"$f":"VLOOKUP('Project Information'!$BB$25, InteractiveEffects, 19, FALSE)","v":{"$error":"#N/A"}},"N/A"]
[null,null,"IEFE",null,{"$f":"VLOOKUP('Project Information'!$BB$25, InteractiveEffects, 20, FALSE)","v":{"$error":"#N/A"}},"N/A"]
[null,null,"PAF",null,0.65,"N/A"]
[]
[null,null,"Lighting Controls - Occupancy Sensors w/Daylighting Control <500W Savings"]
[null,null,"Inputs",null,"Values","Units",null,null,"Output",null,"Value","Units"]
[null,null,"Fixture Wattage",null,{"$f":"'Measure Input'!$N$20","v":0},"W",null,null,"Energy Savings (Controls)",null,{"$f":"IF(OR(ISBLANK('Measure Input'!$N$20),ISBLANK('Measure Input'!$P$20),ISBLANK('Measure Input'!$R$20),ISBLANK($E$60),ISBLANK($E$63)),\"\",$E$58*$E$59/1000*(1-$E$64)*$E$60*$E$63)","v":""},"kWh/yr"]
[null,null,"Fixture Count ",null,{"$f":"'Measure Input'!$P$20","v":0},"W"]
[null,null,"Run Hours (AOH)",null,{"$f":"IF('Project Information'!$BB$23 = \"\", \"\", VLOOKUP('Project Information'!$BB$23, AnnualOperatingHours, 6,TRUE))","v":""},"hrs/yr",null,null,"Demand Savings (Controls)",null,{"$f":"IF(OR(ISBLANK('Measure Input'!$N$20),ISBLANK('Measure Input'!$P$20),ISBLANK('Measure Input'!$R$20),ISBLANK($E$62)),\"\",$E$58*$E$59/1000*($E$61)*$E$62)","v":""},"KW/yr"]
[null,null,"CF",null,0.26,"N/A"]
[null,null,"IEFD",null,{"$f":"VLOOKUP('Project Information'!$BB$25, InteractiveEffects, 19, FALSE)","v":{"$error":"#N/A"}},"N/A"]
[null,null,"IEFE",null,{"$f":"VLOOKUP('Project Information'!$BB$25, InteractiveEffects, 20, FALSE)","v":{"$error":"#N/A"}},"N/A"]
[null,null,"PAF",null,0.65,"N/A"]

{"sheet":"HVAC Savings","index":7,"n_rows":123,"n_cols":31,"rows_kept":123,"cut":false,"hidden":true,"merged":[[87,13,87,14],[75,13,75,14],[76,13,76,14],[77,13,77,14],[83,13,83,14],[84,13,84,14],[85,13,85,14],[86,13,86,14],[60,13,60,14],[69,13,69,14],[78,13,78,14],[56,13,56,14],[57,13,57,14],[58,13,58,14],[59,13,59,14],[65,13,65,14],[66,13,66,14],[67,13,67,14],[68,13,68,14],[74,13,74,14],[85,19,85,23],[86,19,86,23],[15,2,15,3],[15,8,15,9],[16,2,16,3],[16,8,17,9],[6,8,6,9],[7,8,8,9],[7,10,8,10],[9,10,10,10],[7,11,8,11],[9,11,10,11],[6,2,6,3],[7,2,7,3],[8,2,8,3],[9,2,9,3],[16,10,17,10],[16,11,17,11],[17,2,17,3],[18,2,18,3],[18,10,19,10],[18,11,19,11],[25,10,26,10],[25,11,26,11],[96,19,96,23],[97,19,97,23],[98,19,98,23],[87,19,87,23],[88,19,88,23],[89,19,89,23],[90,19,90,23],[91,19,91,23],[92,19,92,23],[93,19,93,23],[94,19,94,23],[95,19,95,23],[120,19,120,23],[121,19,121,23],[122,19,122,23],[111,19,111,23],[112,19,112,23],[113,19,113,23],[114,19,114,23],[115,19,115,23],[116,19,116,23],[117,19,117,23],[118,19,118,23],[119,19,119,23],[105,19,105,23],[106,19,106,23],[107,19,107,23],[108,19,108,23],[109,19,109,23],[110,19,110,23],[99,19,99,23],[100,19,100,23],[101,19,101,23],[102,19,102,23],[103,19,103,23],[104,19,104,23],[34,10,35,10],[34,11,35,11],[35,2,35,3],[36,2,36,3],[36,10,37,10],[36,11,37,11],[28,2,28,3],[29,2,29,3],[33,2,33,3],[33,8,33,9],[34,2,34,3],[34,8,35,9],[27,10,28,10],[27,11,28,11],[43,10,44,10],[43,11,44,11],[44,2,44,3],[45,2,45,3],[45,10,46,10],[45,11,46,11],[37,2,37,3],[38,2,38,3],[42,2,42,3],[42,8,42,9],[43,2,43,3],[43,8,44,9],[48,2,48,3],[9,8,10,9],[18,8,19,9],[27,8,28,9],[36,8,37,9],[45,8,46,9],[46,2,46,3],[47,2,47,3],[12,2,12,3],[21,2,21,3],[30,2,30,3],[39,2,39,3],[10,2,10,3],[11,2,11,3],[26,2,26,3],[27,2,27,3],[19,2,19,3],[20,2,20,3],[24,2,24,3],[24,8,24,9],[25,2,25,3],[25,8,26,9],[59,11,60,11],[60,2,60,3],[61,2,61,3],[56,2,56,3],[56,8,56,9],[57,2,57,3],[57,8,58,9],[57,10,58,10],[57,11,58,11],[58,2,58,3],[61,8,61,9],[62,2,62,3],[65,2,65,3],[65,8,65,9],[66,2,66,3],[66,8,67,9],[66,10,67,10],[59,2,59,3],[59,8,60,9],[59,10,60,10],[62,8,62,9],[70,2,70,3],[71,2,71,3],[74,2,74,3],[74,8,74,9],[75,2,75,3],[75,8,76,9],[66,11,67,11],[67,2,67,3],[68,2,68,3],[68,8,69,9],[68,10,69,10],[68,11,69,11],[69,2,69,3],[79,2,79,3],[80,2,80,3],[83,2,83,3],[83,8,83,9],[84,2,84,3],[84,8,85,9],[75,10,76,10],[75,11,76,11],[76,2,76,3],[77,2,77,3],[77,8,78,9],[77,10,78,10],[77,11,78,11],[78,2,78,3],[88,2,88,3],[89,2,89,3],[84,10,85,10],[84,11,85,11],[85,2,85,3],[86,2,86,3],[86,8,87,9],[86,10,87,10],[86,11,87,11],[87,2,87,3]]}
[]
[]
[null,null,"Air Conditioning Systems",null,null,null,null,null,null,null,null,null,null,null,null,null,null,null,null,"Air Conditioning Systems and Heat Pump References"]
[null,null,"Based on information in New Orleans TRM, savings analysis tools and formulas were created",null,null,null,null,null,null,null,null,null,null,null,null,null,null,null,null,"All information is referenced from the New Orleans TRM. Formnulas C.3.1.5"]
[]
[null,null,"Air Conditioning Systems (< 5.42 tons) Savings "]
[null,null,"Inputs",null,"Values","Units",null,null,"Output",null,"Value","Units"]
[null,null,"Tons of Cooling",null,{"$f":"12000*'Measure Input'!$N$24","v":0},"Btu/hr",null,null,"Energy Savings (AC Systems)",null,{"$f":"IF(OR(ISBLANK('Measure Input'!$N$24), ISBLANK('Measure Input'!$R$24), ISBLANK($E$12), ISBLANK('Measure Input'!$P$24)), \"\", $E$8*1/1000*$E$12*((1/$E$9)-(1/$E$10))*$E$13)","v":""},"kWh/yr"]
[null,null,"EER nbase",null,{"$f":"IF('Project Information'!$BB$30=\"Electric Resistance\", 11.2, 11.2)","v":11.2},"EER"]
[null,null,"EER npost",null,{"$f":"'Measure Input'!$P$24","v":0},"EER",null,null,"Demand Savings (AC Systems)",null,{"$f":"IF(OR(ISBLANK('Measure Input'!$N$24), ISBLANK('Measure Input'!$P$24), ISBLANK($E$11), ISBLANK('Measure Input'!$P$24)), \"\", $E$8*1/1000*((1/$E$9)-(1/$E$10))*$E$11*$E$13)","v":""},"kW"]
[null,null,"CF",null,{"$f":"VLOOKUP('Project Information'!$BB$23, HVACSavings, 8, FALSE)","v":{"$error":"#N/A"}},"N/A"]
[null,null,"EFLHc",null,{"$f":"VLOOKUP('Project Information'!$BB$23, HVACSavings, 6, FALSE)","v":{"$error":"#N/A"}},"AOH"]
[null,null,"Units Installed",null,{"$f":"'Measure Input'!$R$24","v":0},"N/A"]
[]
[null,null,"Air Conditioning Systems (5.42 - 11.24 tons) Savings"]
[null,null,"Inputs",null,"Values","Units",null,null,"Output",null,"Value","Units"]
[null,null,"Tons of Cooling",null,{"$f":"12000*'Measure Input'!$N$25","v":0},"Btu/hr",null,null,"Energy Savings (AC Systems)",null,{"$f":"IF(OR(ISBLANK('Measure Input'!$N$25), ISBLANK('Measure Input'!$R$25), ISBLANK($E$21), ISBLANK('Measure Input'!$P$25)), \"\", $E$17*1/1000*$E$21*((1/$E$18)-(1/$E$19))*$E$22)","v":""},"kWh/yr"]
[null,null,"EER nbase",null,{"$f":"IF('Project Information'!$BB$30=\"Electric Resistance\", 11.2, 11)","v":11},"EER"]
[null,null,"EER npost",null,{"$f":"'Measure Input'!$P$25","v":0},"EER",null,null,"Demand Savings (AC Systems)",null,{"$f":"IF(OR(ISBLANK('Measure Input'!$N$25), ISBLANK('Measure Input'!$P$25), ISBLANK('Measure Input'!$R$25), ISBLANK($E$20)), \"\", $E$17*1/1000*((1/$E$18)-(1/$E$19))*$E$20*$E$22)","v":""},"kW"]
[null,null,"CF",null,{"$f":"VLOOKUP('Project Information'!$BB$23, HVACSavings, 8, FALSE)","v":{"$error":"#N/A"}},"N/A"]
[null,null,"EFLHc",null,{"$f":"VLOOKUP('Project Information'!$BB$23, HVACSavings, 6, FALSE)","v":{"$error":"#N/A"}},"AOH"]
[null,null,"Units Installed",null,{"$f":"'Measure Input'!$R$25","v":0},"N/A"]
[]
[null,null,"Air Conditioning Systems (11.25 - 20 tons) Savings"]
[null,null,"Inputs",null,"Values","Units",null,null,"Output",null,"Value","Units",null,null,null,null,null,null,null,null,null,null,null,null,null,null,null,null,null,null,"This formula above is the correct formula for heat pumps"]
[null,null,"Tons of Cooling",null,{"$f":"12000*'Measure Input'!$N$26","v":0},"Btu/hr",null,null,"Energy Savings (AC Systems)",null,{"$f":"IF(OR(ISBLANK('Measure Input'!$N$26), ISBLANK('Measure Input'!$R$26), ISBLANK('Measure Input'!$P$26), ISBLANK($E$30)), \"\", $E$26*1/1000*$E$30*((1/$E$27)-(1/$E$28))*$E$31)","v":""},"kWh/yr"]
[null,null,"EER nbase",null,{"$f":"IF('Project Information'!$BB$30=\"Electric Resistance\", 11, 10.8)","v":10.8},"EER"]
[null,null,"EER npost",null,{"$f":"'Measure Input'!$P$26","v":0},"EER",null,null,"Demand Savings (AC Systems)",null,{"$f":"IF(OR(ISBLANK('Measure Input'!$N$26), ISBLANK('Measure Input'!$P$26), ISBLANK('Measure Input'!$R$26), ISBLANK($E$29)), \"\", $E$26*1/1000*((1/$E$27)-(1/$E$28))*$E$29*$E$31)","v":""},"kW"]
[null,null,"CF",null,{"$f":"VLOOKUP('Project Information'!$BB$23, HVACSavings, 8, FALSE)","v":{"$error":"#N/A"}},"N/A"]
[null,null,"EFLHc",null,{"$f":"VLOOKUP('Project Information'!$BB$23, HVACSavings, 6, FALSE)","v":{"$error":"#N/A"}},"AOH"]
[null,null,"Units Installed",null,{"$f":"'Measure Input'!$R$26","v":0},"N/A"]
[]
[null,null,"Air Conditioning Systems (20.1 - 63.3 tons) Savings"]
[null,null,"Inputs",null,"Values","Units",null,null,"Output",null,"Value","Units"]
[null,null,"Tons of Cooling",null,{"$f":"12000*'Measure Input'!$N$27","v":0},"Btu/hr",null,null,"Energy Savings (AC Systems)",null,{"$f":"IF(OR(ISBLANK('Measure Input'!$N$27), ISBLANK('Measure Input'!$R$27), ISBLANK('Measure Input'!$P$27), ISBLANK($E$39)), \"\", $E$35*1/1000*$E$39*((1/$E$36)-(1/$E$37))*$E$40)","v":""},"kWh/yr"]
[null,null,"EER nbase",null,{"$f":"IF('Project Information'!$BB$30=\"Electric Resistance\", 10, 9.8)","v":9.8000000000000007},"EER"]
[null,null,"EER npost",null,{"$f":"'Measure Input'!$P$27","v":0},"EER",null,null,"Demand Savings (AC Systems)",null,{"$f":"IF(OR(ISBLANK('Measure Input'!$N$27), ISBLANK('Measure Input'!$P$27), ISBLANK('Measure Input'!$R$27), ISBLANK($E$38)), \"\", $E$35*1/1000*((1/$E$36)-(1/$E$37))*$E$38*$E$40)","v":""},"kW"]
[null,null,"CF",null,{"$f":"VLOOKUP('Project Information'!$BB$23, HVACSavings, 8, FALSE)","v":{"$error":"#N/A"}},"N/A"]
[null,null,"EFLHc",null,{"$f":"VLOOKUP('Project Information'!$BB$23, HVACSavings, 6, FALSE)","v":{"$error":"#N/A"}},"AOH"]
[null,null,"Units Installed",null,{"$f":"'Measure Input'!$R$27","v":0},"N/A"]
[]
[null,null,"Air Conditioning Systems (> 63.3 tons) Savings"]
[null,null,"Inputs",null,"Values","Units",null,null,"Output",null,"Value","Units"]
[null,null,"Tons of Cooling",null,{"$f":"12000*'Measure Input'!$N$28","v":0},"Btu/hr",null,null,"Energy Savings (AC Systems)",null,{"$f":"IF(OR(ISBLANK('Measure Input'!$N$28), ISBLANK('Measure Input'!$R$28), ISBLANK('Measure Input'!$P$28), ISBLANK($E$48)), \"\", $E$44*1/1000*$E$48*((1/$E$45)-(1/$E$46))*$E$49)","v":""},"kWh/yr"]
[null,null,"EER nbase",null,{"$f":"IF('Project Information'!$BB$30=\"Electric Resistance\", 9.7, 9.5)","v":9.5},"EER"]
[null,null,"EER npost",null,{"$f":"'Measure Input'!$P$28","v":0},"EER",null,null,"Demand Savings (AC Systems)",null,{"$f":"IF(OR(ISBLANK('Measure Input'!$N$28), ISBLANK('Measure Input'!$P$28), ISBLANK('Measure Input'!$R$28), ISBLANK($E$47)), \"\", $E$44*1/1000*((1/$E$45)-(1/$E$46))*$E$47*$E$49)","v":""},"kW"]
[null,null,"CF",null,{"$f":"VLOOKUP('Project Information'!$BB$23, HVACSavings, 8, FALSE)","v":{"$error":"#N/A"}},"N/A"]
[null,null,"EFLHc",null,{"$f":"VLOOKUP('Project Information'!$BB$23, HVACSavings, 6, FALSE)","v":{"$error":"#N/A"}},"AOH"]
[null,null,"Units Installed",null,{"$f":"'Measure Input'!$R$28","v":0},"N/A"]
[]
[]
[]
[null,null,"Heat Pump Systems "]
[null,null,"Based on information in New Orleans TRM, savings analysis tools and formulas were created"]
[]
[null,null,"Heat Pump Systems (Less than 5.42 Tons) Savings"]
[null,null,"Inputs",null,"Values","Units",null,null,"Output",null,"Value","Units",null,"Cooling Inputs",null,"Value","Units"]
[null,null,"Tons of Heating",null,{"$f":"12000*'Measure Input'!$N$30","v":0},"Btu/hr",null,null,"Energy Savings (HP Systems)",null,{"$f":"IF(OR(ISBLANK('Measure Input'!$N$30), ISBLANK('Measure Input'!$R$30), ISBLANK('Measure Input'!$P$30), ISBLANK('Measure Input'!$T$30), ISBLANK($E$62), ISBLANK($P$61)), \"\", ($E$58*$E$62*((1/$E$59)-(1/$E$60))*$E$63*1/1000)+($P$58*1/1000*$P$61*((1/$P$59)-(1/$P$60))*$E$63))","v":""},"kWh/yr",null,"Tons of Cooling",null,{"$f":"12000*'Measure Input'!$N$30","v":0},"Btu/hr"]
[null,null,"HSPF nbase",null,8.1999999999999993,"HSPF",null,null,null,null,null,null,null,"EER nbase",null,{"$f":"IF('Project Information'!$BB$30=\"Electric Resistance\", 11.8, 11.8)","v":11.8},"EER"]
[null,null,"HSPF npost",null,{"$f":"'Measure Input'!$R$30","v":0},"HSPF",null,null,"Demand Savings (HP Systems)",null,{"$f":"IF(OR(ISBLANK('Measure Input'!$T$30), ISBLANK('Measure Input'!$R$30), ISBLANK($E$61)), \"\", $P$58*1/1000*((1/$P$59)-(1/$P$60))*$E$61*$E$63)","v":""},"kW",null,"EER npost",null,{"$f":"'Measure Input'!$P$30","v":0},"EER"]
[null,null,"CF",null,{"$f":"VLOOKUP('Project Information'!$BB$23, HVACSavings, 8, FALSE)","v":{"$error":"#N/A"}},"N/A",null,null,null,null,null,null,null,"EFLHc",null,{"$f":"VLOOKUP('Project Information'!$BB$23, HVACSavings, 6, FALSE)","v":{"$error":"#N/A"}},"AOH"]
[null,null,"EFLHH",null,{"$f":"VLOOKUP('Project Information'!$BB$23, HVACSavings, 7, FALSE)","v":{"$error":"#N/A"}},"AOH"]
[null,null,"Units Installed",null,{"$f":"'Measure Input'!$T$30","v":0},"N/A"]
[]
[null,null,"Heat Pump Systems (5.42 - 11.24 Tons) Savings"]
[null,null,"Inputs",null,"Values","Units",null,null,"Output",null,"Value","Units",null,"Cooling Inputs",null,"Value","Units"]
[null,null,"Tons of Heating",null,{"$f":"12000*'Measure Input'!$N$31","v":0},"Btu/hr",null,null,"Energy Savings (HP Systems)",null,{"$f":"IF(OR(ISBLANK('Measure Input'!$N$31), ISBLANK('Measure Input'!$R$31), ISBLANK('Measure Input'!$P$31), ISBLANK('Measure Input'!$T$31), ISBLANK($P$70), ISBLANK($E$71)), \"\", ($E$67*1/1000*$E$71*((1/$E$68)-(1/$E$69))*$E$72)+($P$67*1/1000*$P$70*((1/$P$68)-(1/$P$69))*$E$72))","v":""},"kWh/yr",null,"Tons of Cooling",null,{"$f":"12000*'Measure Input'!$N$31","v":0},"Btu/hr"]
[null,null,"HSPF nbase",null,{"$f":"3.3*3.412","v":11.259599999999999},"HSPF",null,null,null,null,null,null,null,"EER nbase",null,{"$f":"IF('Project Information'!$BB$30=\"Electric Resistance\", 11, 10.8)","v":10.8},"EER"]
[null,null,"HSPF npost",null,{"$f":"'Measure Input'!$R$31","v":0},"HSPF",null,null,"Demand Savings (HP Systems)",null,{"$f":"IF(OR(ISBLANK('Measure Input'!$T$31), ISBLANK('Measure Input'!$R$31), ISBLANK($E$70)), \"\", $P$67*1/1000*((1/$P$68)-(1/$P$69))*$E$70*$E$72)","v":""},"kW",null,"EER npost",null,{"$f":"'Measure Input'!$P$31","v":0},"EER",null,null,null,null,null,null,null,null,null,null,"ADM Created this table above"]
[null,null,"CF",null,{"$f":"VLOOKUP('Project Information'!$BB$23, HVACSavings, 8, FALSE)","v":{"$error":"#N/A"}},"N/A",null,null,null,null,null,null,null,"EFLHc",null,{"$f":"VLOOKUP('Project Information'!$BB$23, HVACSavings, 6, FALSE)","v":{"$error":"#N/A"}},"AOH",null,null,null,null,null,null,null,null,null,null,"Email was send 5.2.18 at 9.16PM from Zeph"]
[null,null,"EFLHH",null,{"$f":"VLOOKUP('Project Information'!$BB$23, HVACSavings, 7, FALSE)","v":{"$error":"#N/A"}},"AOH"]
[null,null,"Units Installed",null,{"$f":"'Measure Input'!$T$31","v":0},"N/A",null,null,null,null,null,null,null,null,null,null,null,null,null,null,null,null,null,null,null,null,null,"Based on ADM methodology of doing an average"]
[null,null,null,null,null,null,null,null,null,null,null,null,null,null,null,null,null,null,null,null,null,null,null,null,null,null,null,"and applied it to the coincidence factor"]
[null,null,"Heat Pump Systems (11.25 - 20 Tons) Savings",null,null,null,null,null,null,null,null,null,null,null,null,null,null,null,null,null,null,null,null,null,null,null,null,"Average came out to be approximately 0.83"]
[null,null,"Inputs",null,"Values","Units",null,null,"Output",null,"Value","Units",null,"Cooling Inputs",null,"Value","Units"]
[null,null,"Tons of Heating",null,{"$f":"12000*'Measure Input'!$N$32","v":0},"Btu/hr",null,null,"Energy Savings (HP Systems)",null,{"$f":"IF(OR(ISBLANK('Measure Input'!$N$32), ISBLANK('Measure Input'!$R$32), ISBLANK('Measure Input'!$P$32), ISBLANK('Measure Input'!$T$32), ISBLANK($P$79), ISBLANK($E$80)), \"\", ($E$76*1/1000*$E$80*((1/$E$77)-(1/$E$78))*$E$81) + ($P$76*1/1000*$P$79*((1/$P$77)-(1/$P$78))*$E$81))","v":""},"kWh/yr",null,"Tons of Cooling",null,{"$f":"12000*'Measure Input'!$N$32","v":0},"Btu/hr"]
[null,null,"HSPF nbase",null,{"$f":"3.2*3.412","v":10.9184},"HSPF",null,null,null,null,null,null,null,"EER nbase",null,{"$f":"IF('Project Information'!$BB$30=\"Electric Resistance\", 10.6, 10.4)","v":10.4},"EER"]
[null,null,"HSPF npost",null,{"$f":"'Measure Input'!$R$32","v":0},"HSPF",null,null,"Demand Savings (HP Systems)",null,{"$f":"IF(OR(ISBLANK('Measure Input'!$T$32), ISBLANK('Measure Input'!$R$32), ISBLANK($E$79)), \"\", $P$76*1/1000*((1/$P$77)-(1/$P$78))*$E$79*$E$81)","v":""},"kW",null,"EER npost",null,{"$f":"'Measure Input'!$P$32","v":0},"EER"]
[null,null,"CF",null,{"$f":"VLOOKUP('Project Information'!$BB$23, HVACSavings, 8, FALSE)","v":{"$error":"#N/A"}},"N/A",null,null,null,null,null,null,null,"EFLHc",null,{"$f":"VLOOKUP('Project Information'!$BB$23, HVACSavings, 6, FALSE)","v":{"$error":"#N/A"}},"AOH"]
[null,null,"EFLHH",null,{"$f":"VLOOKUP('Project Information'!$BB$23, HVACSavings, 7, FALSE)","v":{"$error":"#N/A"}},"AOH"]
[null,null,"Units Installed",null,{"$f":"'Measure Input'!$T$32","v":0},"N/A"]
[]
[null,null,"Heat Pump Systems (20.1 - 63.3 Tons) Savings",null,null,null,null,null,null,null,null,null,null,null,null,null,null,null,null,"Table 4: Equivalent Full Load Hours for cooling and heating with Commercial Coincidence Factors"]
[null,null,"Inputs",null,"Values","Units",null,null,"Output",null,"Value","Units",null,"Cooling Inputs",null,"Value","Units",null,null,"Since we have an extensive list from the lighting building type, we would try to match up Table 137 and 138 above with the list below. "]
[null,null,"Tons of Heating",null,{"$f":"12000*'Measure Input'!$N$33","v":0},"Btu/hr",null,null,"Energy Savings (HP Systems)",null,{"$f":"IF(OR(ISBLANK('Measure Input'!$N$33), ISBLANK('Measure Input'!$R$33), ISBLANK('Measure Input'!$P$33), ISBLANK('Measure Input'!$T$33), ISBLANK($P$88), ISBLANK($E$89)), \"\", ($E$85*1/1000*$E$89*((1/$E$86)-(1/$E$87))*$E$90)+($P$85*1/1000*$P$88*((1/$P$86)-(1/$P$87))*$E$90))","v":""},"kWh/yr",null,"Tons of Cooling",null,{"$f":"12000*'Measure Input'!$N$33","v":0},"Btu/hr",null,null,"For factors unknown, we would reach out to ADM to see if we could come up with a way to estimate the rest. "]
[null,null,"HSPF nbase",null,{"$f":"3.2*3.412","v":10.9184},"HSPF",null,null,null,null,null,null,null,"EER nbase",null,{"$f":"IF('Project Information'!$BB$30=\"Electric Resistance\", 9.5, 9.3)","v":9.3000000000000007},"EER",null,null,"Building Type",null,null,null,null,"EFLHc","EFLHH","CF","Building Type from Table 137 and 138"]
[null,null,"HSPF npost",null,{"$f":"'Measure Input'!$R$33","v":0},"HSPF",null,null,"Demand Savings (HP Systems)",null,{"$f":"IF(OR(ISBLANK('Measure Input'!$T$33), ISBLANK('Measure Input'!$R$33), ISBLANK($E$88)), \"\", $P$85*1/1000*((1/$P$86)-(1/$P$87))*$E$88*$E$90)","v":""},"kW",null,"EER npost",null,{"$f":"'Measure Input'!$P$33","v":0},"EER",null,null,"Bar Area",null,null,null,null,2056,302,0.83,"Default from ADM and use methodology from ADM to determine CF"]
[null,null,"CF",null,{"$f":"VLOOKUP('Project Information'!$BB$23, HVACSavings, 8, FALSE)","v":{"$error":"#N/A"}},"N/A",null,null,null,null,null,null,null,"EFLHc",null,{"$f":"VLOOKUP('Project Information'!$BB$23, HVACSavings, 6, FALSE)","v":{"$error":"#N/A"}},"AOH",null,null,"Corridor/Hallway/Stairwell",null,null,null,null,2056,302,0.83,"Default from ADM and use methodology from ADM to determine CF"]
[null,null,"EFLHH",null,{"$f":"VLOOKUP('Project Information'!$BB$23, HVACSavings, 7, FALSE)","v":{"$error":"#N/A"}},"AOH",null,null,null,null,null,null,null,null,null,null,null,null,null,"Education: College/University",null,null,null,null,1510,604,0.84,"College"]
[null,null,"Units Installed",null,{"$f":"'Measure Input'!$T$33","v":0},"N/A",null,null,null,null,null,null,null,null,null,null,null,null,null,"Education: K-12",null,null,null,null,2329,140,0.71,"School"]
[null,null,null,null,null,null,null,null,null,null,null,null,null,null,null,null,null,null,null,"Education: K-12 (specialized room)",null,null,null,null,2329,140,0.71,"School"]
[null,null,null,null,null,null,null,null,null,null,null,null,null,null,null,null,null,null,null,"Exterior/Outdoors/Parking Lot",null,null,null,null,2056,302,0.83,"Default from ADM and use methodology from ADM to determine CF"]
[null,null,null,null,null,null,null,null,null,null,null,null,null,null,null,null,null,null,null,"Food Prep (Generic)",null,null,null,null,1997,166,0.85,"Full Menu Restaurant"]
[null,null,null,null,null,null,null,null,null,null,null,null,null,null,null,null,null,null,null,"Food Sales: 24-Hour Supermarket",null,null,null,null,1526,153,0.9,"Grocery"]
[null,null,null,null,null,null,null,null,null,null,null,null,null,null,null,null,null,null,null,"Food Sales: Non 24-Hour Supermarket",null,null,null,null,1526,153,0.9,"Grocery"]
[null,null,null,null,null,null,null,null,null,null,null,null,null,null,null,null,null,null,null,"Food Service: Fast Food",null,null,null,null,2375,272,0.78,"Fast Food"]
[null,null,null,null,null,null,null,null,null,null,null,null,null,null,null,null,null,null,null,"Food Service: Sit-Down Restaurant",null,null,null,null,1997,166,0.85,"Full Menu Restaurant"]
[null,null,null,null,null,null,null,null,null,null,null,null,null,null,null,null,null,null,null,"Health Care: In-Patient",null,null,null,null,1989,115,0.85,"Health Clinic"]
[null,null,null,null,null,null,null,null,null,null,null,null,null,null,null,null,null,null,null,"Health Care: Nursing Home",null,null,null,null,1989,115,0.85,"Health Clinic"]
[null,null,null,null,null,null,null,null,null,null,null,null,null,null,null,null,null,null,null,"Health Care: Out-Patient",null,null,null,null,1989,115,0.85,"Health Clinic"]
[null,null,null,null,null,null,null,null,null,null,null,null,null,null,null,null,null,null,null,"Kwik-E-Mart",null,null,null,null,1526,153,0.9,"Grocery"]
[null,null,null,null,null,null,null,null,null,null,null,null,null,null,null,null,null,null,null,"Lodging (Hotel/Motel/Dorm): Common Areas",null,null,null,null,2095,409,0.77,"Lodging"]
[null,null,null,null,null,null,null,null,null,null,null,null,null,null,null,null,null,null,null,"Lodging (Hotel/Motel/Dorm): Room",null,null,null,null,2095,409,0.77,"Lodging"]
[null,null,null,null,null,null,null,null,null,null,null,null,null,null,null,null,null,null,null,"Manufacturing",null,null,null,null,2056,302,0.83,"Default from ADM and use methodology from ADM to determine CF"]
[null,null,null,null,null,null,null,null,null,null,null,null,null,null,null,null,null,null,null,"Multi-family Housing: Common Areas",null,null,null,null,2056,302,0.83,"Default from ADM and use methodology from ADM to determine CF"]
[null,null,null,null,null,null,null,null,null,null,null,null,null,null,null,null,null,null,null,"Non-Warehouse Storage (Generic)",null,null,null,null,2056,302,0.83,"Default from ADM and use methodology from ADM to determine CF"]
[null,null,null,null,null,null,null,null,null,null,null,null,null,null,null,null,null,null,null,"Office",null,null,null,null,1483,392,0.84,"Large Office"]
[null,null,null,null,null,null,null,null,null,null,null,null,null,null,null,null,null,null,null,"Office (attached to other facility)",null,null,null,null,2060,225,0.84,"Small Office"]
[null,null,null,null,null,null,null,null,null,null,null,null,null,null,null,null,null,null,null,"Parking Structure",null,null,null,null,2056,302,0.83,"Default from ADM and use methodology from ADM to determine CF"]
[null,null,null,null,null,null,null,null,null,null,null,null,null,null,null,null,null,null,null,"Public Assembly",null,null,null,null,2056,302,0.82,"From Table 108 in New Orleans TRM"]
[null,null,null,null,null,null,null,null,null,null,null,null,null,null,null,null,null,null,null,"Public Order and Safety",null,null,null,null,2056,302,0.83,"Default from ADM and use methodology from ADM to determine CF"]
[null,null,null,null,null,null,null,null,null,null,null,null,null,null,null,null,null,null,null,"Religious Gathering",null,null,null,null,2056,302,0.82,"From Table 108 in New Orleans TRM"]
[null,null,null,null,null,null,null,null,null,null,null,null,null,null,null,null,null,null,null,"Restroom (Generic)",null,null,null,null,2056,302,0.83,"Default from ADM and use methodology from ADM to determine CF"]
[null,null,null,null,null,null,null,null,null,null,null,null,null,null,null,null,null,null,null,"Retail: Enclosed Mall",null,null,null,null,3191,513,0.88,"Retail"]
[null,null,null,null,null,null,null,null,null,null,null,null,null,null,null,null,null,null,null,"Retail: Freestanding",null,null,null,null,3191,513,0.88,"Retail"]
[null,null,null,null,null,null,null,null,null,null,null,null,null,null,null,null,null,null,null,"Retail: Other",null,null,null,null,3191,513,0.88,"Retail"]
[null,null,null,null,null,null,null,null,null,null,null,null,null,null,null,null,null,null,null,"Retail: Strip Mall",null,null,null,null,3191,513,0.88,"Retail"]
[null,null,null,null,null,null,null,null,null,null,null,null,null,null,null,null,null,null,null,"Security Booth",null,null,null,null,2056,302,0.83,"Default from ADM and use methodology from ADM to determine CF"]
[null,null,null,null,null,null,null,null,null,null,null,null,null,null,null,null,null,null,null,"Service: Excluding Food",null,null,null,null,2056,302,0.83,"Default from ADM and use methodology from ADM to determine CF"]
[null,null,null,null,null,null,null,null,null,null,null,null,null,null,null,null,null,null,null,"Showroom Floor",null,null,null,null,2056,302,0.83,"Default from ADM and use methodology from ADM to determine CF"]
[null,null,null,null,null,null,null,null,null,null,null,null,null,null,null,null,null,null,null,"Walk-In Cooler (Generic)",null,null,null,null,2056,302,0.83,"Default from ADM and use methodology from ADM to determine CF"]
[null,null,null,null,null,null,null,null,null,null,null,null,null,null,null,null,null,null,null,"Warehouse: Non-Refrigerated",null,null,null,null,2056,302,0.83,"Default from ADM and use methodology from ADM to determine CF"]
[null,null,null,null,null,null,null,null,null,null,null,null,null,null,null,null,null,null,null,"Warehouse: Refrigerated",null,null,null,null,2056,302,0.83,"Default from ADM and use methodology from ADM to determine CF"]

{"sheet":"HVAC Controls Savings","index":8,"n_rows":9,"n_cols":17,"rows_kept":9,"cut":false,"hidden":true,"merged":[[6,2,6,3],[7,2,7,3],[8,2,8,3],[6,8,6,9],[7,8,7,9],[8,8,8,9]]}
[]
[]
[null,null,"Guest Room Management Controls",null,null,null,null,null,null,null,null,null,null,null,null,null,"Guest Room Management Controls References"]
[null,null,"No calculations available so it will be directly referenced",null,null,null,null,null,null,null,null,null,null,null,null,null,"Information was obtained from the New Orleans TRM Section C.3.5.4"]
[]
[null,null,"Guest Room Management Controls Analysis"]
[null,null,"Inputs",null,"Values","Units",null,null,"Outputs",null,"Values","Units"]
[null,null,"Units Installed",null,{"$f":"'Measure Input'!$N$37","v":0},"N/A",null,null,"Energy Savings",null,{"$f":"IF(OR(ISBLANK('Measure Input'!$N$37)),\"\", $E$8*$E$9)","v":""},"kWh/yr"]
[null,null,"Energy Savings",null,355,"kWh/unit",null,null,"Demand Savings",null,0,"kW "]

{"sheet":"REC Savings","index":9,"n_rows":78,"n_cols":17,"rows_kept":78,"cut":false,"hidden":true,"merged":[[6,2,6,3],[6,8,6,9],[7,2,7,3],[8,2,8,3],[9,2,9,3],[7,8,8,9],[9,8,10,9],[46,2,46,3],[46,8,46,9],[13,2,13,3],[15,2,15,3],[15,5,15,7],[16,5,16,7],[16,2,16,3],[7,10,8,10],[9,10,10,10],[9,11,10,11],[7,11,8,11],[12,2,12,3],[11,2,11,3],[10,2,10,3],[47,2,47,3],[47,8,48,9],[47,10,48,10],[47,11,48,11],[49,8,50,9],[49,10,50,10],[49,11,50,11],[48,2,48,3],[49,2,49,3],[50,2,50,3],[51,2,51,3],[61,2,61,3],[61,8,61,9],[62,2,62,3],[63,2,63,3],[62,8,62,9],[63,8,63,9],[75,2,75,3],[76,2,76,3],[77,2,77,3],[75,8,75,9],[76,8,76,9],[64,2,64,3],[65,2,65,3],[66,2,66,3],[74,2,74,3],[74,8,74,9]]}
[]
[]
[null,null,"ECM Motors",null,null,null,null,null,null,null,null,null,null,null,null,null,"ECM Motors References"]
[null,null,"Based on information in New Orleans TRM, savings analysis tools and formulas were created",null,null,null,null,null,null,null,null,null,null,null,null,null,"Calculations were based on New Orleans TRM C.1.1.5. "]
[]
[null,null,"ECM Motors Energy Savings"]
[null,null,"Inputs",null,"Values","Units",null,null,"Outputs",null,"Values","Units"]
[null,null,"Cooler or Freezer",null,{"$f":"'Measure Input'!$N$41","v":0},"N/A",null,null,"Energy Savings (ECM Motors)",null,{"$f":"IF(OR(ISBLANK('Measure Input'!$N$41), ISBLANK('Measure Input'!$P$41), ISBLANK('Measure Input'!$S$41)), \"\", IF($E$9=$F$16, (0.132-0.04)*$E$13*$E$10*(1+1/$E$11)*$E$14, (0.072-0.04)*$E$13*$E$10*(1+1/$E$11)*$E$14))","v":""},"kWh/yr"]
[null,null,"SP or PSC Motors",null,{"$f":"'Measure Input'!$P$41","v":0},"N/A"]
[null,null,"Duty Cycle",null,{"$f":"IF($E$8=$E$16, 1, 0.94)","v":0.94},"N/A",null,null,"Demand Savings (ECM Motors)",null,{"$f":"IF($K$8=\"\", \"\", $K$8/$E$13)","v":""},"kW"]
[null,null,"COP",null,{"$f":"IF($E$8=$E$16, 2.5, 1.3)","v":1.3},"N/A"]
[null,null,"CF",null,1,"N/A"]
[null,null,"Operating Hours",null,8760,"AOH"]
[null,null,"Units Installed",null,{"$f":"'Measure Input'!$S$41","v":0},"N/A"]
[]
[null,null,"Customer Inputs",null,"Cooler ","Shaded-Pole Motor"]
[null,null,"(DON'T DELETE)",null,"Freezer","Split-Capacitor Motor"]
[]
[]
[]
[]
[]
[]
[]
[]
[]
[]
[]
[]
[]
[]
[]
[]
[]
[]
[]
[]
[]
[null,null,null,null,null,null,null,null,null,null,null,null,null,null,null,null,"Table 108 is the same as table 142 and 143 in the TRM so I linked the table referenec to Table_4 in the \"HVAC Savings\" Tab"]
[]
[]
[]
[null,null,"Evaporator Fan Controls",null,null,null,null,null,null,null,null,null,null,null,null,null,"Evaporator Fan Controls References"]
[null,null,"Based on information in New Orleans TRM, savings analysis tools and formulas were created",null,null,null,null,null,null,null,null,null,null,null,null,null,"Calculations were based on New Orleans TRM C.4.6.5"]
[]
[null,null,"Evaporator Fan Controls Savings"]
[null,null,"Inputs",null,"Values","Units",null,null,"Outputs",null,"Values","Units"]
[null,null,"Cooler or Freezer",null,{"$f":"'Measure Input'!$N$42","v":0},"N/A",null,null,"Energy Savings (EFC Controls)",null,{"$f":"IF(OR(ISBLANK('Measure Input'!$N$42), ISBLANK('Measure Input'!$S$42)), \"\", ((0.123*$E$52)-0.035)*(1-0.5)*$E$49*1.2*$E$51*$E$50)","v":""},"kWh/yr"]
[null,null,"Duty Cycle",null,{"$f":"IF($E$48=$E$16, 1, 0.94)","v":0.94},"N/A"]
[null,null,"Operating Hours",null,8760,"AOH",null,null,"Demand Savings (EFC Controls)",null,{"$f":"IF($K$48=\"\", \"\", $K$48/$E$50)","v":""},"kW"]
[null,null,"Units Installed",null,{"$f":"'Measure Input'!$S$42","v":0},"N/A"]
[null,null,"No of Evaporator Fans",null,1,"N/A"]
[]
[null,null,"Assumed a BF Value of 1.2 "]
[]
[]
[]
[null,null,"Anti-Sweat Heater Controls",null,null,null,null,null,null,null,null,null,null,null,null,null,"Anti-Sweat Heater Controls References"]
[null,null,"Based on information in New Orleans TRM, savings analysis tools and formulas were created",null,null,null,null,null,null,null,null,null,null,null,null,null,"Calculations were based on New Orleans TRM C.4.1.5. "]
[]
[null,null,"Anti-Sweat Heater Controls Savings"]
[null,null,"Inputs",null,"Values","Units",null,null,"Outputs",null,"Values","Units"]
[null,null,"Linear Foot (1 case)",null,{"$f":"'Measure Input'!$U$43","v":0},"ft",null,null,"Energy Savings",null,{"$f":"IF(OR(ISBLANK('Measure Input'!$S$43),ISBLANK('Measure Input'!$U$43), ISBLANK('Measure Input'!$W$43)),\"\", IF($E$65=$E$66, $E$63*$E$64*248, $E$63*$E$64*259))","v":""},"kWh/yr"]
[null,null,"Units Installed",null,{"$f":"'Measure Input'!$S$43","v":0},"N/A",null,null,"Demand Savings",null,{"$f":"IF(OR(ISBLANK('Measure Input'!$S$43),ISBLANK('Measure Input'!$U$43), ISBLANK('Measure Input'!$W$43)),\"\", IF($E$65=$E$66, $E$63*$E$64*0.0046, $E$63*$E$64*0.006))","v":""},"kW"]
[null,null,"Temperature Range",null,{"$f":"'Measure Input'!$W$43","v":0},"N/A"]
[null,null,"Customer Inputs",null,"Low Temperature"]
[null,null,"(DON'T DELETE)",null,"Medium Temperature"]
[]
[]
[]
[null,null,"Door Gaskets",null,null,null,null,null,null,null,null,null,null,null,null,null,"Door Gasket References"]
[null,null,"This was not in the New Orleans TRM so I referred to the previous entergy prescriptive energy savings calculator",null,null,null,null,null,null,null,null,null,null,null,null,null,"Calculations were based on previous energy savings analysis which referenced the Arkansas TRM v7.0 Table 407 and 408"]
[]
[null,null,"Door Gaskets Savings"]
[null,null,"Inputs",null,"Values","Units",null,null,"Outputs",null,"Values","Units"]
[null,null,"Cooler or Freezer",null,{"$f":"'Measure Input'!$N$44","v":0},"N/A",null,null,"Energy Savings",null,{"$f":"IF(OR(ISBLANK('Measure Input'!$N$44), ISBLANK('Measure Input'!$S$44),ISBLANK('Measure Input'!$U$44)),\"\", IF($E$76=$E$16, 15*$E$77*$E$78, 115*$E$77*$E$78))","v":""},"kWh/yr"]
[null,null,"Linear Foot (1 case)",null,{"$f":"'Measure Input'!$U$44","v":0},"ft",null,null,"Demand Savings",null,{"$f":"IF(OR(ISBLANK('Measure Input'!$N$44), ISBLANK('Measure Input'!$S$44),ISBLANK('Measure Input'!$U$44)),\"\", IF($E$76=$E$16, 0.0017*$E$77*$E$78, 0.0131*$E$77*$E$78))","v":""},"kW"]
[null,null,"Units Installed",null,{"$f":"'Measure Input'!$S$44","v":0},"N/A"]

{"sheet":"Low-Flow Fixture Savings","index":10,"n_rows":75,"n_cols":42,"rows_kept":75,"cut":false,"hidden":true,"merged":[[6,2,6,3],[6,8,6,9],[37,16,37,20],[38,16,38,20],[39,16,39,20],[40,16,40,20],[9,10,10,10],[7,11,8,11],[9,11,10,11],[9,5,10,5],[9,2,10,3],[9,4,10,4],[11,2,11,3],[12,2,12,3],[22,2,22,3],[22,8,22,9],[74,16,74,20],[7,2,7,3],[8,2,8,3],[7,8,8,9],[9,8,10,9],[7,10,8,10],[65,16,65,20],[66,16,66,20],[67,16,67,20],[68,16,68,20],[69,16,69,20],[70,16,70,20],[59,16,59,20],[60,16,60,20],[61,16,61,20],[62,16,62,20],[63,16,63,20],[64,16,64,20],[53,16,53,20],[54,16,54,20],[55,16,55,20],[56,16,56,20],[57,16,57,20],[58,16,58,20],[71,16,71,20],[72,16,72,20],[73,16,73,20],[47,16,47,20],[48,16,48,20],[49,16,49,20],[50,16,50,20],[51,16,51,20],[52,16,52,20],[41,16,41,20],[42,16,42,20],[43,16,43,20],[44,16,44,20],[45,16,45,20],[46,16,46,20],[25,11,26,11],[27,2,27,3],[28,2,28,3],[33,33,33,37],[34,33,34,37],[35,33,35,37],[23,2,23,3],[23,8,24,9],[23,10,24,10],[23,11,24,11],[24,2,24,3],[25,2,26,3],[25,4,26,4],[25,5,26,5],[25,8,26,9],[25,10,26,10],[42,33,42,37],[43,33,43,37],[44,33,44,37],[45,33,45,37],[46,33,46,37],[47,33,47,37],[36,33,36,37],[37,33,37,37],[38,33,38,37],[39,33,39,37],[40,33,40,37],[41,33,41,37],[54,33,54,37],[55,33,55,37],[56,33,56,37],[57,33,57,37],[58,33,58,37],[59,33,59,37],[48,33,48,37],[49,33,49,37],[50,33,50,37],[51,33,51,37],[52,33,52,37],[53,33,53,37],[66,33,66,37],[67,33,67,37],[68,33,68,37],[69,33,69,37],[70,33,70,37],[60,33,60,37],[61,33,61,37],[62,33,62,37],[63,33,63,37],[64,33,64,37],[65,33,65,37]]}
[]
[]
[null,null,"Low-Flow Sink Aerators",null,null,null,null,null,null,null,null,null,null,null,null,null,"Low-Flow Sink Aerators References",null,null,null,null,null,null,null,null,null,null,null,null,null,null,null,null,"Pre-Rinse Spray Valves References"]
[null,null,"Based on information in New Orleans TRM, savings analysis tools and formulas were created",null,null,null,null,null,null,null,null,null,null,null,null,null,"Calculator was referenced from New Orleans TRM C.2.25",null,null,null,null,null,null,null,null,null,null,null,null,null,null,null,null,"Calculator was referenced from New Orleans TRM C.5.6.5"]
[]
[null,null,"Low-Flow Sink Aerators Savings"]
[null,null,"Inputs",null,"Values","Units",null,null,"Outputs",null,"Values","Units"]
[null,null,"Gallons Per Minute",null,{"$f":"'Measure Input'!$N$48","v":0},"GPM",null,null,"Energy Savings (Aerators)",null,{"$f":"IF(OR(ISBLANK('Measure Input'!$N$48), ISBLANK('Measure Input'!$P$48)), \"\", $E$13*8.33*1*$E$10*(2.2-$E$8)*(120-74.8)*(1/0.98)*$E$9/3412)","v":""},"kWh/yr"]
[null,null,"Days/yr",null,{"$f":"VLOOKUP('Project Information'!$BB$23, LowFlowFixtureSavings1, 6, FALSE)","v":{"$error":"#N/A"}},"Days/yr"]
[null,null,"Baseline Water Usage",null,{"$f":"VLOOKUP('Project Information'!$BB$23, LowFlowFixtureSavings1, 7, FALSE)","v":{"$error":"#N/A"}},"min/day/unit",null,null,"Demand Savings (Aerators)",null,{"$f":"IF(OR(ISBLANK('Measure Input'!$N$48), ISBLANK('Measure Input'!$P$48)), \"\", $E$13*8.33*1*$E$10*(2.2-$E$8)*(120-74.8)*(1/0.98)*$E$12/3412)","v":""},"kW"]
[]
[null,null,"P",null,{"$f":"VLOOKUP('Project Information'!$BB$23, LowFlowFixtureSavings1, 8, FALSE)","v":{"$error":"#N/A"}},"N/A"]
[null,null,"Units Installed",null,{"$f":"'Measure Input'!$P$48","v":0},"N/A"]
[]
[null,null,"P is the hourly water consumption during peak period. All other constants are located in reference section"]
[]
[]
[null,null,null,null,null,null,null,null,null,null,null,null,null,null,null,null,"For Unknown, the \"P\" value was derived from table below and formula above"]
[null,null,"Low Flow Pre-Rinse Spray Valves",null,null,null,null,null,null,null,null,null,null,null,null,null,"For Unknown (or unavailable building types), used estimate listed in table below"]
[null,null,"Based on information in New Orleans TRM, savings analysis tools and formulas were created"]
[]
[null,null,"Low Flow Pre-Rinse Spray Valves"]
[null,null,"Inputs",null,"Values","Units",null,null,"Outputs",null,"Values","Units"]
[null,null,"Gallons Per Minute",null,{"$f":"'Measure Input'!$N$49","v":0},"GPM",null,null,"Energy Savings (Aerators)",null,{"$f":"IF(OR(ISBLANK('Measure Input'!$N$49), ISBLANK('Measure Input'!$P$49)), \"\", $E$29*8.33*1*$E$26*(2.2-$E$24)*(120-74.8)*(1/0.98)*$E$25/3412)","v":""},"kWh/yr"]
[null,null,"Days/yr",null,{"$f":"VLOOKUP('Project Information'!$BB$23, LowFlowFixtureSaving, 6, FALSE)","v":{"$error":"#N/A"}},"Days/yr"]
[null,null,"Baseline Water Usage",null,{"$f":"VLOOKUP('Project Information'!$BB$23, LowFlowFixtureSaving, 7, FALSE)","v":{"$error":"#N/A"}},"min/day/unit",null,null,"Demand Savings (Aerators)",null,{"$f":"IF(OR(ISBLANK('Measure Input'!$N$49), ISBLANK('Measure Input'!$P$49)), \"\", E429*8.33*1*$E$26*(2.2-$E$24)*(120-74.8)*(1/0.98)*$E$28/3412)","v":""},"kW"]
[]
[null,null,"P",null,{"$f":"VLOOKUP('Project Information'!$BB$23, LowFlowFixtureSaving, 8, FALSE)","v":{"$error":"#N/A"}},"N/A"]
[null,null,"Units Installed",null,{"$f":"'Measure Input'!$P$49","v":0},"N/A",null,null,null,null,null,null,null,null,null,null,null,null,null,null,null,null,null,null,null,null,null,null,null,null,null,null,null,"Categories are limited. "]
[]
[null,null,null,null,null,null,null,null,null,null,null,null,null,null,null,null,null,null,null,null,null,null,null,null,null,null,null,null,null,null,null,null,null,"Table 6: Days/yr, Basline Water Usage and P for Spray Valves"]
[null,null,null,null,null,null,null,null,null,null,null,null,null,null,null,null,"Used this table because it provides the least amount of savings (so we do not give",null,null,null,null,null,null,null,null,null,null,null,null,null,null,null,null,"Since we have an extensive list for lighting building type, we would try to match up Table 211"]
[null,null,null,null,null,null,null,null,null,null,null,null,null,null,null,null,"an overestimate and builidng types with unknowns vary greatly).",null,null,null,null,null,null,null,null,null,null,null,null,null,null,null,null,"Need to proofread this with ADM. "]
[null,null,null,null,null,null,null,null,null,null,null,null,null,null,null,null,null,null,null,null,null,null,null,null,null,null,null,null,null,null,null,null,null,"Building Type",null,null,null,null,"Days/yr","U","P","Building Type "]
[null,null,null,null,null,null,null,null,null,null,null,null,null,null,null,null,"PTable 5: Days/yr, Basline Water Usage and P for Aerators",null,null,null,null,null,null,null,null,null,null,null,null,null,null,null,null,"Bar Area"]
[null,null,null,null,null,null,null,null,null,null,null,null,null,null,null,null,"Since we have an extensive list from the lighting building type, we would try to match up Table 123 and 126",null,null,null,null,null,null,null,null,null,null,null,null,null,null,null,null,"Corridor/Hallway/Stairwell"]
[null,null,null,null,null,null,null,null,null,null,null,null,null,null,null,null,"Need to proofread this with ADM. ",null,null,null,null,null,null,null,null,null,null,null,null,null,null,null,null,"Education: College/University",null,null,null,null,365,210,0.03,"Institutional"]
[null,null,null,null,null,null,null,null,null,null,null,null,null,null,null,null,"Building Type",null,null,null,null,"Days/yr","U","P","Building Type (From Table 126)",null,null,null,null,null,null,null,null,"Education: K-12",null,null,null,null,200,105,0.05,"K-12 School"]
[null,null,null,null,null,null,null,null,null,null,null,null,null,null,null,null,"Bar Area",null,null,null,null,250,30,0.08,"Commercial",null,null,null,null,null,null,null,null,"Education: K-12 (specialized room)",null,null,null,null,200,105,0.05,"K-12 School"]
[null,null,null,null,null,null,null,null,null,null,null,null,null,null,null,null,"Corridor/Hallway/Stairwell",null,null,null,null,250,30,0.08,"Commercial",null,null,null,null,null,null,null,null,"Exterior/Outdoors/Parking Lot"]
[null,null,null,null,null,null,null,null,null,null,null,null,null,null,null,null,"Education: College/University",null,null,null,null,200,30,0.05,"School",null,null,null,null,null,null,null,null,"Food Prep (Generic)",null,null,null,null,365,105,0.03,"Casual Dining"]
[null,null,null,null,null,null,null,null,null,null,null,null,null,null,null,null,"Education: K-12",null,null,null,null,200,30,0.05,"School",null,null,null,null,null,null,null,null,"Food Sales: 24-Hour Supermarket"]
[null,null,null,null,null,null,null,null,null,null,null,null,null,null,null,null,"Education: K-12 (specialized room)",null,null,null,null,200,30,0.05,"School",null,null,null,null,null,null,null,null,"Food Sales: Non 24-Hour Supermarket"]
[null,null,null,null,null,null,null,null,null,null,null,null,null,null,null,null,"Exterior/Outdoors/Parking Lot",null,null,null,null,303,17,0.05,"Unknown",null,null,null,null,null,null,null,null,"Food Service: Fast Food",null,null,null,null,365,45,0.05,"Fast-Food"]
[null,null,null,null,null,null,null,null,null,null,null,null,null,null,null,null,"Food Prep (Generic)",null,null,null,null,250,30,0.08,"Commercial",null,null,null,null,null,null,null,null,"Food Service: Sit-Down Restaurant",null,null,null,null,365,105,0.04,"Casual Dining"]
[null,null,null,null,null,null,null,null,null,null,null,null,null,null,null,null,"Food Sales: 24-Hour Supermarket",null,null,null,null,303,17,0.05,"Unknown",null,null,null,null,null,null,null,null,"Health Care: In-Patient",null,null,null,null,365,210,0.03,"Institutional"]
[null,null,null,null,null,null,null,null,null,null,null,null,null,null,null,null,"Food Sales: Non 24-Hour Supermarket",null,null,null,null,250,30,0.08,"Commercial",null,null,null,null,null,null,null,null,"Health Care: Nursing Home",null,null,null,null,365,210,0.03,"Institutional"]
[null,null,null,null,null,null,null,null,null,null,null,null,null,null,null,null,"Food Service: Fast Food",null,null,null,null,250,30,0.08,"Commercial",null,null,null,null,null,null,null,null,"Health Care: Out-Patient",null,null,null,null,365,210,0.03,"Institutional"]
[null,null,null,null,null,null,null,null,null,null,null,null,null,null,null,null,"Food Service: Sit-Down Restaurant",null,null,null,null,250,30,0.08,"Commercial",null,null,null,null,null,null,null,null,"Kwik-E-Mart"]
[null,null,null,null,null,null,null,null,null,null,null,null,null,null,null,null,"Health Care: In-Patient",null,null,null,null,365,3,0.03,"Hospital",null,null,null,null,null,null,null,null,"Lodging (Hotel/Motel/Dorm): Common Areas",null,null,null,null,274,210,0.04,"Dormitory"]
[null,null,null,null,null,null,null,null,null,null,null,null,null,null,null,null,"Health Care: Nursing Home",null,null,null,null,365,3,0.03,"Hospital",null,null,null,null,null,null,null,null,"Lodging (Hotel/Motel/Dorm): Room",null,null,null,null,274,210,0.04,"Dormitory"]
[null,null,null,null,null,null,null,null,null,null,null,null,null,null,null,null,"Health Care: Out-Patient",null,null,null,null,365,3,0.03,"Hospital",null,null,null,null,null,null,null,null,"Manufacturing"]
[null,null,null,null,null,null,null,null,null,null,null,null,null,null,null,null,"Kwik-E-Mart",null,null,null,null,303,17,0.05,"Unknown",null,null,null,null,null,null,null,null,"Multi-family Housing: Common Areas"]
[null,null,null,null,null,null,null,null,null,null,null,null,null,null,null,null,"Lodging (Hotel/Motel/Dorm): Common Areas",null,null,null,null,365,3,0.02,"Lodging",null,null,null,null,null,null,null,null,"Non-Warehouse Storage (Generic)"]
[null,null,null,null,null,null,null,null,null,null,null,null,null,null,null,null,"Lodging (Hotel/Motel/Dorm): Room",null,null,null,null,365,3,0.02,"Lodging",null,null,null,null,null,null,null,null,"Office",null,null,null,null,250,30,0.08,"Placeholder**"]
[null,null,null,null,null,null,null,null,null,null,null,null,null,null,null,null,"Manufacturing",null,null,null,null,303,17,0.05,"Unknown",null,null,null,null,null,null,null,null,"Office (attached to other facility)"]
[null,null,null,null,null,null,null,null,null,null,null,null,null,null,null,null,"Multi-family Housing: Common Areas",null,null,null,null,365,3,0.03,"Multifamily",null,null,null,null,null,null,null,null,"Parking Structure"]
[null,null,null,null,null,null,null,null,null,null,null,null,null,null,null,null,"Non-Warehouse Storage (Generic)",null,null,null,null,303,17,0.05,"Unknown",null,null,null,null,null,null,null,null,"Public Assembly"]
[null,null,null,null,null,null,null,null,null,null,null,null,null,null,null,null,"Office",null,null,null,null,250,30,0.08,"Commercial",null,null,null,null,null,null,null,null,"Public Order and Safety"]
[null,null,null,null,null,null,null,null,null,null,null,null,null,null,null,null,"Office (attached to other facility)",null,null,null,null,250,30,0.08,"Commercial",null,null,null,null,null,null,null,null,"Religious Gathering"]
[null,null,null,null,null,null,null,null,null,null,null,null,null,null,null,null,"Parking Structure",null,null,null,null,303,17,0.05,"Unknown",null,null,null,null,null,null,null,null,"Restroom (Generic)"]
[null,null,null,null,null,null,null,null,null,null,null,null,null,null,null,null,"Public Assembly",null,null,null,null,250,30,0.08,"Commercial",null,null,null,null,null,null,null,null,"Retail: Enclosed Mall"]
[null,null,null,null,null,null,null,null,null,null,null,null,null,null,null,null,"Public Order and Safety",null,null,null,null,250,30,0.08,"Commercial",null,null,null,null,null,null,null,null,"Retail: Freestanding"]
[null,null,null,null,null,null,null,null,null,null,null,null,null,null,null,null,"Religious Gathering",null,null,null,null,303,17,0.05,"Unknown",null,null,null,null,null,null,null,null,"Retail: Other"]
[null,null,null,null,null,null,null,null,null,null,null,null,null,null,null,null,"Restroom (Generic)",null,null,null,null,303,17,0.05,"Unknown",null,null,null,null,null,null,null,null,"Retail: Strip Mall"]
[null,null,null,null,null,null,null,null,null,null,null,null,null,null,null,null,"Retail: Enclosed Mall",null,null,null,null,250,30,0.08,"Commercial",null,null,null,null,null,null,null,null,"Security Booth"]
[null,null,null,null,null,null,null,null,null,null,null,null,null,null,null,null,"Retail: Freestanding",null,null,null,null,250,30,0.08,"Commercial",null,null,null,null,null,null,null,null,"Service: Excluding Food"]
[null,null,null,null,null,null,null,null,null,null,null,null,null,null,null,null,"Retail: Other",null,null,null,null,250,30,0.08,"Commercial",null,null,null,null,null,null,null,null,"Showroom Floor"]
[null,null,null,null,null,null,null,null,null,null,null,null,null,null,null,null,"Retail: Strip Mall",null,null,null,null,250,30,0.08,"Commercial",null,null,null,null,null,null,null,null,"Walk-In Cooler (Generic)"]
[null,null,null,null,null,null,null,null,null,null,null,null,null,null,null,null,"Security Booth",null,null,null,null,250,30,0.08,"Commercial",null,null,null,null,null,null,null,null,"Warehouse: Non-Refrigerated"]
[null,null,null,null,null,null,null,null,null,null,null,null,null,null,null,null,"Service: Excluding Food",null,null,null,null,303,17,0.05,"Unknown",null,null,null,null,null,null,null,null,"Warehouse: Refrigerated"]
[null,null,null,null,null,null,null,null,null,null,null,null,null,null,null,null,"Showroom Floor",null,null,null,null,303,17,0.05,"Unknown"]
[null,null,null,null,null,null,null,null,null,null,null,null,null,null,null,null,"Walk-In Cooler (Generic)",null,null,null,null,303,17,0.05,"Unknown"]
[null,null,null,null,null,null,null,null,null,null,null,null,null,null,null,null,"Warehouse: Non-Refrigerated",null,null,null,null,303,17,0.05,"Unknown"]
[null,null,null,null,null,null,null,null,null,null,null,null,null,null,null,null,"Warehouse: Refrigerated",null,null,null,null,303,17,0.05,"Unknown"]

{"sheet":"CKE Savings","index":11,"n_rows":77,"n_cols":30,"rows_kept":77,"cut":false,"hidden":true,"merged":[[72,2,72,3],[74,2,76,3],[74,4,76,5],[71,8,71,9],[72,8,72,9],[71,2,71,3],[62,2,62,3],[61,8,61,9],[62,8,62,9],[70,2,70,3],[70,8,70,9],[61,2,61,3],[51,4,52,5],[51,2,51,3],[52,2,52,3],[60,2,60,3],[60,8,60,9],[47,2,47,3],[47,8,47,9],[48,2,48,3],[49,2,49,3],[48,8,48,9],[49,8,49,9],[33,2,33,3],[33,8,33,9],[34,2,34,3],[34,8,34,9],[36,4,39,5],[36,2,39,3],[23,4,24,5],[20,8,20,9],[21,8,21,9],[32,2,32,3],[32,8,32,9],[9,2,9,3],[19,2,19,3],[19,8,19,9],[20,2,20,3],[21,2,21,3],[6,2,6,3],[6,8,6,9],[7,2,7,3],[7,8,7,9],[8,2,8,3],[8,8,8,9]]}
[]
[]
[null,null,"Energy STAR Ice Machine",null,null,null,null,null,null,null,null,null,null,null,null,null,null,"Energy STAR Ice Machine References",null,null,null,null,null,null,null,null,null,null,"Energy STAR Commercial Fryer References"]
[null,null,"Based on information in New Orleans TRM, savings analysis tools and formulas were created",null,null,null,null,null,null,null,null,null,null,null,null,null,null,"Information was obtained from the New Orleans TRM Section C.4.8.5",null,null,null,null,null,null,null,null,null,null,"Information was obtained from the New Orleans TRM Section C.5.4.5 Table 204"]
[]
[null,null,"Energy STAR Ice Machine Savings"]
[null,null,"Inputs",null,"Values","Units",null,null,"Outputs",null,"Values","Units"]
[null,null,"Units Installed",null,{"$f":"'Measure Input'!$N$53","v":0},"N/A",null,null,"Energy Savings",null,{"$f":"IF(OR(ISBLANK('Measure Input'!$N$53)),\"\", $E$8*$E$9)","v":""},"kWh/yr"]
[null,null,"Energy Savings",null,{"$f":"(921+303+223+118+792+1037)/6","v":565.66666666666663},"kWh/yr/unit",null,null,"Demand Savings",null,{"$f":"IF(OR(ISBLANK('Measure Input'!$N$53)),\"\", $E$8*$E$10)","v":""},"kW "]
[null,null,"Demand Savings",null,{"$f":"(0.11+0.03+0.03+0.01+0.09+0.12)/6","v":6.5000000000000002E-2},"kW/unit"]
[]
[null,null,"Used an average value of all the deemed savings value on Table 190 to my right. "]
[]
[]
[]
[null,null,"Energy STAR Commercial Fryer"]
[null,null,"Based on information in New Orleans TRM, savings analysis tools and formulas were created"]
[]
[null,null,"Energy STAR Commercial Fryer Savings",null,null,null,null,null,null,null,null,null,null,null,null,null,null,null,null,null,null,null,null,null,null,null,null,null,"Energy STAR Commercial Steam Cooker References"]
[null,null,"Inputs",null,"Values","Units",null,null,"Outputs",null,"Values","Units",null,null,null,null,null,null,null,null,null,null,null,null,null,null,null,null,"Information was obtained from the New Orleans TRM Section C.5.5.5 Table 209"]
[null,null,"Type of Fryer",null,{"$f":"'Measure Input'!$P$54","v":0},"N/A",null,null,"Energy Savings",null,{"$f":"IF(OR(ISBLANK('Measure Input'!$N$54),ISBLANK('Measure Input'!$P$54)),\"\",IF($E$21=$G$24,1057*$E$22,2659*$E$22))","v":""},"kWh/yr"]
[null,null,"Units Installed",null,{"$f":"'Measure Input'!$N$54","v":0},"N/A",null,null,"Demand Savings",null,{"$f":"IF(OR(ISBLANK('Measure Input'!$N$54),ISBLANK('Measure Input'!$P$54)),\"\",IF($E$21=$G$24,0.2*$E$22,0.51*$E$22))","v":""},"kW "]
[]
[null,null,"Customer Inputs",null,"Type of Fryer",null,"Standard Fryer"]
[null,null,"(DON'T DELETE)",null,null,null,"Large VAT Fryer"]
[]
[]
[]
[null,null,"Energy STAR Commercial Steam Cooker"]
[null,null,"Based on information in New Orleans TRM, savings analysis tools and formulas were created"]
[]
[null,null,"Energy STAR Commercial Steam Cooker Savings"]
[null,null,"Inputs",null,"Values","Units",null,null,"Outputs",null,"Values","Units"]
[null,null,"Pan Capacity",null,{"$f":"'Measure Input'!$R$55","v":0},"N/A",null,null,"Energy Savings",null,{"$f":"IF(OR(ISBLANK('Measure Input'!$N$55),ISBLANK('Measure Input'!$R$55)),\"\",IF($E$34=$G$37, 28214*$E$35, IF($E$34=$G$38, 38081*$E$35, IF($E$34=$G$39, 47948*$E$35, IF($E$34=$G$40, 57815*$E$35)))))","v":""},"kWh/yr"]
[null,null,"Units Installed",null,{"$f":"'Measure Input'!$N$55","v":0},"N/A",null,null,"Demand Savings",null,{"$f":"IF(OR(ISBLANK('Measure Input'!$N$55),ISBLANK('Measure Input'!$R$55)),\"\",IF($E$34=$G$37, 5.4*$E$35, IF($E$34=$G$38, 7.3*$E$35, IF($E$34=$G$39, 9.2*$E$35, IF($E$34=$G$40, 11.1*$E$35)))))","v":""},"kW "]
[]
[null,null,"Customer Inputs (DON'T DELETE)",null,"Pan Capacity",null,"3-pan"]
[null,null,null,null,null,null,"4-pan"]
[null,null,null,null,null,null,"5-pan"]
[null,null,null,null,null,null,"6-pan"]
[]
[]
[]
[null,null,"Energy STAR Commercial Convection Oven",null,null,null,null,null,null,null,null,null,null,null,null,null,null,"Energy STAR Commercial Convection Oven References",null,null,null,null,null,null,null,null,null,null,null,"Energy STAR Commercial Griddle References"]
[null,null,"Based on information in New Orleans TRM, savings analysis tools and formulas were created",null,null,null,null,null,null,null,null,null,null,null,null,null,null,"Information was obtained from the New Orleans TRM Section C.5.2.5",null,null,null,null,null,null,null,null,null,null,null,"Information was obtained from the New Orleans TRM Section C.5.1.5"]
[]
[null,null,"Energy STAR Commercial Convection Oven Savings"]
[null,null,"Inputs",null,"Values","Units",null,null,"Outputs",null,"Values","Units"]
[null,null,"Convection Oven Size",null,{"$f":"'Measure Input'!$T$56","v":0},"N/A",null,null,"Energy Savings",null,{"$f":"IF(OR(ISBLANK('Measure Input'!$N$56),ISBLANK('Measure Input'!$T$56)),\"\",IF($E$49=$G$52, 2042*$E$50, 1933*$E$50))","v":""},"kWh/yr"]
[null,null,"Units Installed",null,{"$f":"'Measure Input'!$N$56","v":0},"N/A",null,null,"Demand Savings",null,{"$f":"IF(OR(ISBLANK('Measure Input'!$N$56),ISBLANK('Measure Input'!$T$56)),\"\",IF($E$49=$G$52, 0.39*$E$50, 0.37*$E$50))","v":""},"kW "]
[]
[null,null,"Customer Inputs",null,"Convection Oven Size",null,"Half-Size"]
[null,null,"(DON'T DELETE)",null,null,null,"Full-Size"]
[]
[]
[]
[null,null,"Energy STAR Commercial Griddle",null,null,null,null,null,null,null,null,null,null,null,null,null,null,null,null,null,null,null,null,null,null,null,null,null,null,"Energy STAR Commercial Combination Oven References"]
[null,null,"Based on information in New Orleans TRM, savings analysis tools and formulas were created"]
[]
[null,null,"Energy STAR Commercial Griddle Savings"]
[null,null,"Inputs",null,"Values","Units",null,null,"Outputs",null,"Values","Units"]
[null,null,"Linear Foot (One Case)",null,{"$f":"'Measure Input'!$V$57","v":0},"N/A",null,null,"Energy Savings",null,{"$f":"IF(OR(ISBLANK('Measure Input'!$N$57), ISBLANK('Measure Input'!$V$57)),\"\", 758*$E$62*$E$63)","v":""},"kWh/yr"]
[null,null,"Units Installed",null,{"$f":"'Measure Input'!$N$57","v":0},"N/A",null,null,"Demand Savings",null,{"$f":"IF(OR(ISBLANK('Measure Input'!$N$57), ISBLANK('Measure Input'!$V$57)),\"\", 0.15*$E$62*$E$63)","v":""},"kW "]
[]
[]
[]
[null,null,"Energy STAR Commercial Combination Oven "]
[null,null,"Based on information in New Orleans TRM, savings analysis tools and formulas were created"]
[]
[null,null,"Energy STAR Commercial Combination Oven Savings"]
[null,null,"Inputs",null,"Values","Units",null,null,"Outputs",null,"Values","Units"]
[null,null,"Pan Capacity",null,{"$f":"'Measure Input'!$R$58","v":0},"N/A",null,null,"Energy Savings",null,{"$f":"IF(OR(ISBLANK('Measure Input'!$N$58),ISBLANK('Measure Input'!$R$58)),\"\",IF($E$72=$G$75, 16323*$E$73, IF($E$72=$G$76, 12472*$E$73, IF($E$72=$G$77, 19220*$E$73))))","v":""},"kWh/yr"]
[null,null,"Units Installed",null,{"$f":"'Measure Input'!$N$58","v":0},"N/A",null,null,"Demand Savings",null,{"$f":"IF(OR(ISBLANK('Measure Input'!$N$58),ISBLANK('Measure Input'!$R$58)),\"\",IF($E$72=$G$75, 3.13*$E$73, IF($E$72=$G$76, 2.44*$E$73, IF($E$72=$G$77, 3.69*$E$73))))","v":""},"kW "]
[]
[null,null,"Customer Inputs (DON'T DELETE)",null,"Pan Capacity",null,"5 to 10 pans"]
[null,null,null,null,null,null,"14 pans"]
[null,null,null,null,null,null,"20 pans"]

{"sheet":"CPM Savings","index":12,"n_rows":13,"n_cols":17,"rows_kept":13,"cut":false,"hidden":true,"merged":[[11,2,11,3],[7,8,7,9],[8,8,8,9],[10,4,12,5],[6,2,6,3],[6,8,6,9],[7,2,7,3],[8,2,8,3],[10,2,10,3]]}
[]
[]
[null,null,"PC Power Management ",null,null,null,null,null,null,null,null,null,null,null,null,null,"PC Power Management References"]
[null,null,"No calculations available so it will be directly referenced",null,null,null,null,null,null,null,null,null,null,null,null,null,"Information was obtained from the New Orleans TRM Section C.7.3.3 Table 240"]
[]
[null,null,"PC Power Management Savings"]
[null,null,"Inputs",null,"Values","Units",null,null,"Outputs",null,"Values","Units"]
[null,null,"Units Installed",null,{"$f":"'Measure Input'!$N$62","v":0},"N/A",null,null,"Energy Savings",null,{"$f":"IF(OR(ISBLANK('Measure Input'!$N$62), ISBLANK('Measure Input'!$P$62)), \"\", IF($E$9=$G$11, 158.72*$E$8, IF($E$9=$G$12, 337.92*$E$8, IF($E$9=$G$13, 97.28*$E$8))))","v":""},"kWh/yr"]
[null,null,"Equipment Type",null,{"$f":"'Measure Input'!$P$62","v":0},"N/A",null,null,"Demand Savings",null,{"$f":"IF(OR(ISBLANK('Measure Input'!$N$62), ISBLANK('Measure Input'!$P$62)), \"\", IF($E$9=$G$11, 0.008*$E$8, IF($E$9=$G$12, 0.017*$E$8, IF($E$9=$G$13, 0.005*$E$8))))","v":""},"kW"]
[]
[null,null,"Customer Inputs",null,"Equipment Type",null,"Conventional LCD Monitor"]
[null,null,"(DON'T DELETE)",null,null,null,"Conventional Computer"]
[null,null,null,null,null,null,"Conventional Notebook"]

{"sheet":"Incentive List","index":13,"n_rows":37,"n_cols":14,"rows_kept":37,"cut":false,"hidden":true,"merged":[]}
[]
[]
[null,"Prescriptive Technology","Incentive","Metric","Metric2","Basis","Type","Metric Code",null,"Airduct Sealing",170,"Per","Tune-up","HVAC"]
[null,"LED Exit Signs",20,"Sign","Sign(s)",{"$f":"CONCATENATE(\"$\",Table_7[[#This Row],[Incentive]], \" per \", Table_7[[#This Row],[Metric]])","v":"$20 per Sign"},"Lighting",1,null,"Coil Efficiency Optimization",160,"Per","Tune-up","HVAC"]
[null,"1-6 Watt LED Screw-In replacing Incandescent/CFL",3,"Lamp","Lamp(s)",{"$f":"CONCATENATE(\"$\",Table_7[[#This Row],[Incentive]], \" per \", Table_7[[#This Row],[Metric]])","v":"$3 per Lamp"},"Lighting",2,null,"Programmable Thermostat",50,"Per","Thermostat","HVAC Controls"]
[null,"7-11 Watt LED Screw-In replacing Incandescent/CFL",4,"Lamp","Lamp(s)",{"$f":"CONCATENATE(\"$\",Table_7[[#This Row],[Incentive]], \" per \", Table_7[[#This Row],[Metric]])","v":"$4 per Lamp"},"Lighting",2]
[null,"12-17 Watt LED Screw-In replacing Incandescent/CFL",5,"Lamp","Lamp(s)",{"$f":"CONCATENATE(\"$\",Table_7[[#This Row],[Incentive]], \" per \", Table_7[[#This Row],[Metric]])","v":"$5 per Lamp"},"Lighting",2]
[null,"18 Watt and Above LED Screw-In replacing Incandescent/CFL",6,"Lamp","Lamp(s)",{"$f":"CONCATENATE(\"$\",Table_7[[#This Row],[Incentive]], \" per \", Table_7[[#This Row],[Metric]])","v":"$6 per Lamp"},"Lighting",2]
[null,"Daylighting Controller (Controlling < 500 W)",15,"Unit","Unit(s)",{"$f":"CONCATENATE(\"$\",Table_7[[#This Row],[Incentive]], \" per \", Table_7[[#This Row],[Metric]])","v":"$15 per Unit"},"Lighting Controls",3]
[null,"Daylighting Controller (Controlling >= 500 W)",40,"Unit","Unit(s)",{"$f":"CONCATENATE(\"$\",Table_7[[#This Row],[Incentive]], \" per \", Table_7[[#This Row],[Metric]])","v":"$40 per Unit"},"Lighting Controls",3]
[null,"Occupancy Sensor (Controlling < 500 W)",20,"Unit","Unit(s)",{"$f":"CONCATENATE(\"$\",Table_7[[#This Row],[Incentive]], \" per \", Table_7[[#This Row],[Metric]])","v":"$20 per Unit"},"Lighting Controls",3]
[null,"Occupancy Sensor (Controlling >= 500 W)",60,"Unit","Unit(s)",{"$f":"CONCATENATE(\"$\",Table_7[[#This Row],[Incentive]], \" per \", Table_7[[#This Row],[Metric]])","v":"$60 per Unit"},"Lighting Controls",3]
[null,"Occupancy Sensor w/ Daylighting Control (Controlling < 500 W)",25,"Unit","Unit(s)",{"$f":"CONCATENATE(\"$\",Table_7[[#This Row],[Incentive]], \" per \", Table_7[[#This Row],[Metric]])","v":"$25 per Unit"},"Lighting Controls",3]
[null,"Occupancy Sensor w/ Daylighting Control (Controlling >= 500 W)",75,"Unit","Unit(s)",{"$f":"CONCATENATE(\"$\",Table_7[[#This Row],[Incentive]], \" per \", Table_7[[#This Row],[Metric]])","v":"$75 per Unit"},"Lighting Controls",3]
[null,"A/C Unit (< 5.42 Tons) - Min. efficiency of 12.3 EER/15 SEER",66,"Ton","Ton(s)",{"$f":"CONCATENATE(\"$\",Table_7[[#This Row],[Incentive]], \" per \", Table_7[[#This Row],[Metric]])","v":"$66 per Ton"},"HVAC",4]
[null,"A/C Unit (5.42 - 11.24 Tons) - Min. efficiency 12.2 EER/14.8 SEER",66,"Ton","Ton(s)",{"$f":"CONCATENATE(\"$\",Table_7[[#This Row],[Incentive]], \" per \", Table_7[[#This Row],[Metric]])","v":"$66 per Ton"},"HVAC",4]
[null,"A/C Unit (11.25 - 19.9 Tons) - Min. efficiency 12.2 EER/14.8 SEER",66,"Ton","Ton(s)",{"$f":"CONCATENATE(\"$\",Table_7[[#This Row],[Incentive]], \" per \", Table_7[[#This Row],[Metric]])","v":"$66 per Ton"},"HVAC",4]
[null,"A/C Unit (20.1 - 63.3 Tons) - Min. efficiency 10.8 EER/12.4 SEER",66,"Ton","Ton(s)",{"$f":"CONCATENATE(\"$\",Table_7[[#This Row],[Incentive]], \" per \", Table_7[[#This Row],[Metric]])","v":"$66 per Ton"},"HVAC",4]
[null,"A/C Unit (> 63.3 Tons) - Min. efficiency 10.4 EER/11.75 SEER",66,"Ton","Ton(s)",{"$f":"CONCATENATE(\"$\",Table_7[[#This Row],[Incentive]], \" per \", Table_7[[#This Row],[Metric]])","v":"$66 per Ton"},"HVAC",4]
[null,"Heat Pump (< 5.42 Tons) - Min. efficiency 12.3 EER/15 SEER/9.0 HSPF",71,"Ton","Ton(s)",{"$f":"CONCATENATE(\"$\",Table_7[[#This Row],[Incentive]], \" per \", Table_7[[#This Row],[Metric]])","v":"$71 per Ton"},"HVAC",4]
[null,"Heat Pump (5.42 - 11.24 Tons) - Min. efficiency 11.3 EER/13.2 SEER/12.0 HSPF",71,"Ton","Ton(s)",{"$f":"CONCATENATE(\"$\",Table_7[[#This Row],[Incentive]], \" per \", Table_7[[#This Row],[Metric]])","v":"$71 per Ton"},"HVAC",4]
[null,"Heat Pump (11.25 - 19.9 Tons) - Min. Efficiency 10.9 EER/12.5 SEER/12.0 HSPF",71,"Ton","Ton(s)",{"$f":"CONCATENATE(\"$\",Table_7[[#This Row],[Incentive]], \" per \", Table_7[[#This Row],[Metric]])","v":"$71 per Ton"},"HVAC",4]
[null,"Heat Pump (>= 20 Tons) - Min. efficiency 10.3 EER/11.6 SEER/12.0 HSPF",71,"Ton","Ton(s)",{"$f":"CONCATENATE(\"$\",Table_7[[#This Row],[Incentive]], \" per \", Table_7[[#This Row],[Metric]])","v":"$71 per Ton"},"HVAC",4]
[null,"Guest Room Energy Management Controls - Must Be Installed in All Guestrooms",50,"Room","room(s)",{"$f":"CONCATENATE(\"$\",Table_7[[#This Row],[Incentive]], \" per \", Table_7[[#This Row],[Metric]])","v":"$50 per Room"},"HVAC Controls",5]
[null,"ECM Motors (Refrigeration)",95,"Motor","motor(s)",{"$f":"CONCATENATE(\"$\",Table_7[[#This Row],[Incentive]], \" per \", Table_7[[#This Row],[Metric]])","v":"$95 per Motor"},"Equipment Controls",6]
[null,"Evaporator Fan Controllers (Refrigeration)",50,"Unit","unit(s)",{"$f":"CONCATENATE(\"$\",Table_7[[#This Row],[Incentive]], \" per \", Table_7[[#This Row],[Metric]])","v":"$50 per Unit"},"Equipment Controls",6]
[null,"Anti-Sweat Heater Controls (Refrigeration)",40,"Door","door(s)",{"$f":"CONCATENATE(\"$\",Table_7[[#This Row],[Incentive]], \" per \", Table_7[[#This Row],[Metric]])","v":"$40 per Door"},"Equipment Controls",6]
[null,"Door Gaskets (Refrigeration)",2,"Linear Ft","linear ft",{"$f":"CONCATENATE(\"$\",Table_7[[#This Row],[Incentive]], \" per \", Table_7[[#This Row],[Metric]])","v":"$2 per Linear Ft"},"Equipment Controls",6]
[null,"Low-Flow Sink Aerators - 1.5 GPM or Less - Only for Facilities with Electrically Heated Water ",3,"Unit","unit(s)",{"$f":"CONCATENATE(\"$\",Table_7[[#This Row],[Incentive]], \" per \", Table_7[[#This Row],[Metric]])","v":"$3 per Unit"},"Low-Flow Water Fixtures",7]
[null,"Pre-Rinse Spray Valves - 1.6 GPM or Less- Only for Facilities with Electrically Heated Water",30,"Unit","unit(s)",{"$f":"CONCATENATE(\"$\",Table_7[[#This Row],[Incentive]], \" per \", Table_7[[#This Row],[Metric]])","v":"$30 per Unit"},"Low-Flow Water Fixtures",7]
[null,"ENERGY STAR Ice Machine",65,"Unit","unit(s)",{"$f":"CONCATENATE(\"$\",Table_7[[#This Row],[Incentive]], \" per \", Table_7[[#This Row],[Metric]])","v":"$65 per Unit"},"Commercial Kitchen Equipment",8]
[null,"ENERGY STAR Commercial Fryer (electric) - Min. efficiency of 80%",220,"Unit","unit(s)",{"$f":"CONCATENATE(\"$\",Table_7[[#This Row],[Incentive]], \" per \", Table_7[[#This Row],[Metric]])","v":"$220 per Unit"},"Commercial Kitchen Equipment",8]
[null,"ENERGY STAR Commercial Steam Cooker (electric) - Min. efficiency of 50%",1500,"Unit","unit(s)",{"$f":"CONCATENATE(\"$\",Table_7[[#This Row],[Incentive]], \" per \", Table_7[[#This Row],[Metric]])","v":"$1500 per Unit"},"Commercial Kitchen Equipment",8]
[null,"ENERGY STAR Commercial Convection Oven (electric) - Version 2.0 specification",225,"Unit","unit(s)",{"$f":"CONCATENATE(\"$\",Table_7[[#This Row],[Incentive]], \" per \", Table_7[[#This Row],[Metric]])","v":"$225 per Unit"},"Commercial Kitchen Equipment",8]
[null,"ENERGY STAR Commercial Griddle (electric) - Min. cooking efficiency of 65%",100,"Unit","unit(s)",{"$f":"CONCATENATE(\"$\",Table_7[[#This Row],[Incentive]], \" per \", Table_7[[#This Row],[Metric]])","v":"$100 per Unit"},"Commercial Kitchen Equipment",8]
[null,"ENERGY STAR Commercial Combination Oven (electric) - Min. heavy load cooking efficiency of 60%",1000,"Unit","unit(s)",{"$f":"CONCATENATE(\"$\",Table_7[[#This Row],[Incentive]], \" per \", Table_7[[#This Row],[Metric]])","v":"$1000 per Unit"},"Commercial Kitchen Equipment",8]
[null,"PC Power Management",10,"PC","PC(s)",{"$f":"CONCATENATE(\"$\",Table_7[[#This Row],[Incentive]], \" per \", Table_7[[#This Row],[Metric]])","v":"$10 per PC"},"Computer Power Management",9]

{"sheet":"Checklist","index":14,"n_rows":29,"n_cols":30,"rows_kept":29,"cut":false,"hidden":false,"merged":[[8,23,8,28],[12,23,13,29],[3,23,3,28],[4,23,4,28],[5,23,5,28],[6,23,6,28],[7,23,7,28],[2,23,2,29],[3,16,3,20],[25,16,25,20],[26,16,26,20],[18,16,18,20],[19,16,19,20],[20,16,20,20],[21,16,21,20],[22,16,22,20],[23,16,23,20],[24,16,24,20],[12,16,12,20],[13,16,13,20],[4,16,4,20],[5,16,5,20],[6,16,6,20],[2,16,2,21],[5,10,5,13],[4,10,4,13],[3,10,3,13],[2,10,2,14],[14,23,15,29],[27,16,27,20],[28,16,28,20],[8,2,10,8],[6,10,6,13],[9,10,9,13],[8,10,8,13],[7,16,7,20],[8,16,8,20],[11,16,11,20],[7,10,7,13],[10,16,10,20],[14,16,14,20],[16,16,16,20],[9,23,9,28],[10,23,10,28]]}
[]
[]
[null,null,null,null,null,null,null,null,null,null,"Customer Information",null,null,null,null,null,"Prescriptive Measures",null,null,null,null,null,null,"Prescriptive Measures"]
[null,null,null,null,null,null,null,null,null,null,"Name:",null,null,null,{"$f":"IF(ISBLANK('Project Information'!$N$21), \"NO\", \"YES\")","v":"NO"},null,"LED Exit Signs",null,null,null,null,{"$f":"IF(AND(ISBLANK('Measure Input'!$N$5), ISBLANK('Measure Input'!$P$5), ISBLANK('Measure Input'!$R$5)), \"N/A\", IF(AND(NOT(ISBLANK('Measure Input'!$N$5)), NOT(ISBLANK('Measure Input'!$P$5)), NOT(ISBLANK('Measure Input'!$R$5))), \"YES\", \"NO\"))","v":"N/A"},null,"Pre-Rinse Spray Valves ",null,null,null,null,null,{"$f":"IF(AND(ISBLANK('Measure Input'!$N$49), ISBLANK('Measure Input'!$P$49)), \"N/A\", IF(AND(NOT(ISBLANK('Measure Input'!$N$49)), NOT(ISBLANK('Measure Input'!$P$49))), \"YES\", \"NO\"))","v":"N/A"}]
[null,null,null,null,null,null,null,null,null,null,"Company:",null,null,null,{"$f":"IF(ISBLANK('Project Information'!$N$23), \"NO\", \"YES\")","v":"NO"},null,"1-6 Watt LED Screw-Ins",null,null,null,null,{"$f":"IF((AND(ISBLANK('Measure Input'!$N$8), ISBLANK('Measure Input'!$P$8), ISBLANK('Measure Input'!$R$8), ISBLANK('Measure Input'!$T$8), ISBLANK('Measure Input'!$V$8))), \"N/A\", IF(AND(NOT(ISBLANK('Measure Input'!$N$8)), NOT(ISBLANK('Measure Input'!$P$8)), NOT(ISBLANK('Measure Input'!$R$8)), NOT(ISBLANK('Measure Input'!$T$8)), NOT(ISBLANK('Measure Input'!$V$8))), \"YES\", \"NO\"))","v":"N/A"},null,"ENERGY STAR Ice Machine",null,null,null,null,null,{"$f":"IF(AND(ISBLANK('Measure Input'!$N$53)), \"N/A\", IF(AND(NOT(ISBLANK('Measure Input'!$N$53))), \"YES\", \"NO\"))","v":"N/A"}]
[null,null,null,null,null,null,null,null,null,null,"Title:",null,null,null,{"$f":"IF(ISBLANK('Project Information'!$N$25), \"NO\", \"YES\")","v":"NO"},null,"7-11 Watt LED Screw-Ins",null,null,null,null,{"$f":"IF(AND(ISBLANK('Measure Input'!$N$9), ISBLANK('Measure Input'!$P$9), ISBLANK('Measure Input'!$R$9), ISBLANK('Measure Input'!$T$9), ISBLANK('Measure Input'!$V$9)),  \"N/A\", IF(AND(NOT(ISBLANK('Measure Input'!$N$9)), NOT(ISBLANK('Measure Input'!$P$9)), NOT(ISBLANK('Measure Input'!$R$9)), NOT(ISBLANK('Measure Input'!$T$9)), NOT(ISBLANK('Measure Input'!$V$9))), \"YES\", \"NO\"))","v":"N/A"},null,"ENERGY STAR Commercial Fryer ",null,null,null,null,null,{"$f":"IF(AND(ISBLANK('Measure Input'!$N$54), ISBLANK('Measure Input'!$P$54)), \"N/A\", IF(AND(NOT(ISBLANK('Measure Input'!$N$54)), NOT(ISBLANK('Measure Input'!$P$54))), \"YES\", \"NO\"))","v":"N/A"}]
[null,null,null,null,null,null,null,null,null,null,"Phone Number:",null,null,null,{"$f":"IF(ISBLANK('Project Information'!$N$27), \"NO\", \"YES\")","v":"NO"},null,"12-17 Watt LED Screw-Ins",null,null,null,null,{"$f":"IF(AND(ISBLANK('Measure Input'!$N$10), ISBLANK('Measure Input'!$P$10), ISBLANK('Measure Input'!$R$10), ISBLANK('Measure Input'!$T$10), ISBLANK('Measure Input'!$V$10)), \"N/A\", IF(AND(NOT(ISBLANK('Measure Input'!$N$10)), NOT(ISBLANK('Measure Input'!$P$10)), NOT(ISBLANK('Measure Input'!$R$10)), NOT(ISBLANK('Measure Input'!$T$10)), NOT(ISBLANK('Measure Input'!$V$10))), \"YES\", \"NO\"))","v":"N/A"},null,"ENERGY STAR Commercial Steam Cooker ",null,null,null,null,null,{"$f":"IF(AND(ISBLANK('Measure Input'!$N$55), ISBLANK('Measure Input'!$R$55)), \"N/A\", IF(AND(NOT(ISBLANK('Measure Input'!$N$55)), NOT(ISBLANK('Measure Input'!$R$55))), \"YES\", \"NO\"))","v":"N/A"}]
[null,null,null,null,null,null,null,null,null,null,"Email Address:",null,null,null,{"$f":"IF(ISBLANK('Project Information'!$N$29), \"NO\", \"YES\")","v":"NO"},null,"18 Watt and Above LED Screw-Ins",null,null,null,null,{"$f":"IF(AND(ISBLANK('Measure Input'!$N$11), ISBLANK('Measure Input'!$P$11), ISBLANK('Measure Input'!$R$11), ISBLANK('Measure Input'!$T$11), ISBLANK('Measure Input'!$V$11)), \"N/A\", IF(AND(NOT(ISBLANK('Measure Input'!$N$11)), NOT(ISBLANK('Measure Input'!$P$11)), NOT(ISBLANK('Measure Input'!$R$11)), NOT(ISBLANK('Measure Input'!$T$11)), NOT(ISBLANK('Measure Input'!$V$11))), \"YES\", \"NO\"))","v":"N/A"},null,"ENERGY STAR Commercial Convection Oven ",null,null,null,null,null,{"$f":"IF(AND(ISBLANK('Measure Input'!$N$56), ISBLANK('Measure Input'!$T$56)), \"N/A\", IF(AND(NOT(ISBLANK('Measure Input'!$N$56)), NOT(ISBLANK('Measure Input'!$T$56))), \"YES\", \"NO\"))","v":"N/A"}]
[null,null,"CHECKLIST",null,null,null,null,null,null,null,"Site Address:",null,null,null,{"$f":"IF(ISBLANK('Project Information'!$N$31), \"NO\", \"YES\")","v":"NO"},null,"Daylighting Controller (Controlling < 500 W)",null,null,null,null,{"$f":"IF(AND(ISBLANK('Measure Input'!$N$15), ISBLANK('Measure Input'!$P$15)), \"N/A\", IF(AND(NOT(ISBLANK('Measure Input'!$N$15)), NOT(ISBLANK('Measure Input'!$P$15))), \"YES\", \"NO\"))","v":"N/A"},null,"ENERGY STAR Commercial Griddle ",null,null,null,null,null,{"$f":"IF(AND(ISBLANK('Measure Input'!$N$57), ISBLANK('Measure Input'!$V$57)), \"N/A\", IF(AND(NOT(ISBLANK('Measure Input'!$N$57)), NOT(ISBLANK('Measure Input'!$V$57))), \"YES\", \"NO\"))","v":"N/A"}]
[null,null,null,null,null,null,null,null,null,null,"Entergy Account Number(s):",null,null,null,{"$f":"IF(ISBLANK('Project Information'!$N$33), \"NO\", \"YES\")","v":"NO"},null,"Daylighting Controller (Controlling > 500 W)",null,null,null,null,{"$f":"IF(AND(ISBLANK('Measure Input'!$N$16), ISBLANK('Measure Input'!$P$16)), \"N/A\",  IF(AND(NOT(ISBLANK('Measure Input'!$N$16)), NOT(ISBLANK('Measure Input'!$P$16))), \"YES\", \"NO\"))","v":"N/A"},null,"ENERGY STAR Commercial Combination Oven ",null,null,null,null,null,{"$f":"IF(AND(ISBLANK('Measure Input'!$N$58), ISBLANK('Measure Input'!$R$58)), \"N/A\", IF(AND(NOT(ISBLANK('Measure Input'!$N$58)), NOT(ISBLANK('Measure Input'!$R$58))), \"YES\", \"NO\"))","v":"N/A"}]
[null,null,null,null,null,null,null,null,null,null,null,null,null,null,null,null,"Occupancy Sensor (Controlling < 500 W)",null,null,null,null,{"$f":"IF(AND(ISBLANK('Measure Input'!$N$17), ISBLANK('Measure Input'!$P$17)), \"N/A\", IF(AND(NOT(ISBLANK('Measure Input'!$N$17)), NOT(ISBLANK('Measure Input'!$P$17))), \"YES\", \"NO\"))","v":"N/A"},null,"PC Power Management",null,null,null,null,null,{"$f":"IF(AND(ISBLANK('Measure Input'!$N$62), ISBLANK('Measure Input'!$P$62)), \"N/A\", IF(AND(NOT(ISBLANK('Measure Input'!$N$62)), NOT(ISBLANK('Measure Input'!$P$62))), \"YES\", \"NO\"))","v":"N/A"}]
[null,null,null,null,null,null,null,null,null,null,"Trade Ally Information ",null,null,null,null,null,"Occupancy Sensor (Controlling >= 500 W)",null,null,null,null,{"$f":"IF(AND(ISBLANK('Measure Input'!$N$18), ISBLANK('Measure Input'!$P$18)), \"N/A\", IF(AND(NOT(ISBLANK('Measure Input'!$N$18)), NOT(ISBLANK('Measure Input'!$P$18))), \"YES\", \"NO\"))","v":"N/A"}]
[null,null,null,null,null,null,null,null,null,null,"Name:",null,null,null,{"$f":"IF(ISBLANK('Project Information'!$AH$23), \"NO\", \"YES\")","v":"NO"},null,"Occ. Sensor w/ Daylight Control (< 500 W)",null,null,null,null,{"$f":"IF(AND(ISBLANK('Measure Input'!$N$19), ISBLANK('Measure Input'!$P$19)), \"N/A\", IF(AND(NOT(ISBLANK('Measure Input'!$N$19)), NOT(ISBLANK('Measure Input'!$P$19))), \"YES\", \"NO\"))","v":"N/A"},null,"Does your project need pre-approval?"]
[null,null,null,null,null,null,null,null,null,null,"Company:",null,null,null,{"$f":"IF(ISBLANK('Project Information'!$AH$25), \"NO\", \"YES\")","v":"NO"},null,"Occ. Sensor w/ Daylight Control (> 500 W)",null,null,null,null,{"$f":"IF(AND(ISBLANK('Measure Input'!$N$20), ISBLANK('Measure Input'!$P$20)), \"N/A\", IF(AND(NOT(ISBLANK('Measure Input'!$N$20)), NOT(ISBLANK('Measure Input'!$P$20))), \"YES\", \"NO\"))","v":"N/A"}]
[null,null,null,null,null,null,null,null,null,null,"Title:",null,null,null,{"$f":"IF(ISBLANK('Project Information'!$AH$27), \"NO\", \"YES\")","v":"NO"},null,"A/C Unit (< 5.42 Tons) ",null,null,null,null,{"$f":"IF(AND(ISBLANK('Measure Input'!$N$24), ISBLANK('Measure Input'!$P$24), ISBLANK('Measure Input'!$R$24)), \"N/A\", IF(AND(NOT(ISBLANK('Measure Input'!$N$24)), NOT(ISBLANK('Measure Input'!$P$24)), NOT(ISBLANK('Measure Input'!$R$24))), \"YES\", \"NO\"))","v":"N/A"},null,{"$f":"IF('Summary Report'!$G$42<5000, \"No\", IF(OR('Summary Report'!$G$42=5000, 'Summary Report'!$G$42>5000), \"Yes\"))","v":"No"}]
[null,null,null,null,null,null,null,null,null,null,"Phone Number:",null,null,null,{"$f":"IF(ISBLANK('Project Information'!$AH$29), \"NO\", \"YES\")","v":"NO"},null,"A/C Unit (5.42-11.24 Tons) ",null,null,null,null,{"$f":"IF(AND(ISBLANK('Measure Input'!$N$25), ISBLANK('Measure Input'!$P$25), ISBLANK('Measure Input'!$R$25)), \"N/A\", IF(AND(NOT(ISBLANK('Measure Input'!$N$25)), NOT(ISBLANK('Measure Input'!$P$25)), NOT(ISBLANK('Measure Input'!$R$25))), \"YES\", \"NO\"))","v":"N/A"}]
[null,null,null,null,null,null,null,null,null,null,"Email Address:",null,null,null,{"$f":"IF(ISBLANK('Project Information'!$AH$31), \"NO\", \"YES\")","v":"NO"},null,"A/C Unit (11.25-19.9 Tons) ",null,null,null,null,{"$f":"IF(AND(ISBLANK('Measure Input'!$N$26), ISBLANK('Measure Input'!$P$26), ISBLANK('Measure Input'!$R$26)), \"N/A\", IF(AND(NOT(ISBLANK('Measure Input'!$N$26)), NOT(ISBLANK('Measure Input'!$P$26)), NOT(ISBLANK('Measure Input'!$R$26))), \"YES\", \"NO\"))","v":"N/A"}]
[null,null,null,null,null,null,null,null,null,null,null,null,null,null,null,null,"A/C Unit (20.1 - 63.3 Tons) ",null,null,null,null,{"$f":"IF(AND(ISBLANK('Measure Input'!$N$27), ISBLANK('Measure Input'!$P$27), ISBLANK('Measure Input'!$R$27)), \"N/A\", IF(AND(NOT(ISBLANK('Measure Input'!$N$27)), NOT(ISBLANK('Measure Input'!$P$27)), NOT(ISBLANK('Measure Input'!$R$27))), \"YES\", \"NO\"))","v":"N/A"}]
[null,null,null,null,null,null,null,null,null,null,"Building Data",null,null,null,null,null,"A/C Unit (> 63.3 Tons) ",null,null,null,null,{"$f":"IF(AND(ISBLANK('Measure Input'!$N$28), ISBLANK('Measure Input'!$P$28), ISBLANK('Measure Input'!$R$28)), \"N/A\", IF(AND(NOT(ISBLANK('Measure Input'!$N$28)), NOT(ISBLANK('Measure Input'!$P$28)), NOT(ISBLANK('Measure Input'!$R$28))), \"YES\", \"NO\"))","v":"N/A"}]
[null,null,null,null,null,null,null,null,null,null,"Square Footage",null,null,null,{"$f":"IF(ISBLANK('Project Information'!$BB$21), \"NO\", \"YES\")","v":"NO"},null,"Heat Pump (< 5.42 Tons) ",null,null,null,null,{"$f":"IF(AND(ISBLANK('Measure Input'!$N$30), ISBLANK('Measure Input'!$P$30), ISBLANK('Measure Input'!$R$30), ISBLANK('Measure Input'!$T$30)), \"N/A\", IF(AND(NOT(ISBLANK('Measure Input'!$N$30)), NOT(ISBLANK('Measure Input'!$P$30)), NOT(ISBLANK('Measure Input'!$R$30)), NOT(ISBLANK('Measure Input'!$T$30))), \"YES\", \"NO\"))","v":"N/A"}]
[null,null,null,null,null,null,null,null,null,null,"Building/Space Type:",null,null,null,{"$f":"IF(ISBLANK('Project Information'!$BB$23), \"NO\", \"YES\")","v":"NO"},null,"Heat Pump (5.42 - 11.24 Tons) ",null,null,null,null,{"$f":"IF(AND(ISBLANK('Measure Input'!$N$31), ISBLANK('Measure Input'!$P$31), ISBLANK('Measure Input'!$R$31), ISBLANK('Measure Input'!$T$31)), \"N/A\", IF(AND(NOT(ISBLANK('Measure Input'!$N$31)), NOT(ISBLANK('Measure Input'!$P$31)), NOT(ISBLANK('Measure Input'!$R$31)), NOT(ISBLANK('Measure Input'!$T$31))), \"YES\", \"NO\"))","v":"N/A"}]
[null,null,null,null,null,null,null,null,null,null,"Space Conditions:",null,null,null,{"$f":"IF(ISBLANK('Project Information'!$BB$25), \"NO\", \"YES\")","v":"NO"},null,"Heat Pump (11.25 - 19.9 Tons) ",null,null,null,null,{"$f":"IF(AND(ISBLANK('Measure Input'!$N$32), ISBLANK('Measure Input'!$P$32), ISBLANK('Measure Input'!$R$32), ISBLANK('Measure Input'!$T$32)), \"N/A\", IF(AND(NOT(ISBLANK('Measure Input'!$N$32)), NOT(ISBLANK('Measure Input'!$P$32)), NOT(ISBLANK('Measure Input'!$R$32)), NOT(ISBLANK('Measure Input'!$T$32))), \"YES\", \"NO\"))","v":"N/A"}]
[null,null,null,null,null,null,null,null,null,null,"Cooling Conditions:",null,null,null,{"$f":"IF(ISBLANK('Project Information'!$BB$27), \"NO\", \"YES\")","v":"NO"},null,"Heat Pump (> 20 Tons) ",null,null,null,null,{"$f":"IF(AND(ISBLANK('Measure Input'!$N$33), ISBLANK('Measure Input'!$P$33), ISBLANK('Measure Input'!$R$33), ISBLANK('Measure Input'!$T$33)), \"N/A\", IF(AND(NOT(ISBLANK('Measure Input'!$N$33)), NOT(ISBLANK('Measure Input'!$P$33)), NOT(ISBLANK('Measure Input'!$R$33)), NOT(ISBLANK('Measure Input'!$T$33))), \"YES\", \"NO\"))","v":"N/A"}]
[null,null,null,null,null,null,null,null,null,null,"Heating Type:",null,null,null,{"$f":"IF(ISBLANK('Project Information'!$BB$30), \"NO\", \"YES\")","v":"NO"},null,"Guest Room Energy Management Controls ",null,null,null,null,{"$f":"IF(AND(ISBLANK('Measure Input'!$N$37)), \"N/A\", IF(AND(NOT(ISBLANK('Measure Input'!$N$37))), \"YES\", \"NO\"))","v":"N/A"}]
[null,null,null,null,null,null,null,null,null,null,"Average Electric Rate ($/kWh):",null,null,null,{"$f":"IF(ISBLANK('Project Information'!$BB$33), \"NO\", \"YES\")","v":"NO"},null,"ECM Motors (Refrigeration)",null,null,null,null,{"$f":"IF(AND(ISBLANK('Measure Input'!$N$41), ISBLANK('Measure Input'!$P$41), ISBLANK('Measure Input'!$S$41)), \"N/A\", IF(AND(NOT(ISBLANK('Measure Input'!$N$41)), NOT(ISBLANK('Measure Input'!$P$41)), NOT(ISBLANK('Measure Input'!$S$41))), \"YES\", \"NO\"))","v":"N/A"}]
[null,null,null,null,null,null,null,null,null,null,null,null,null,null,null,null,"Evaporator Fan Controllers (Refrigeration)",null,null,null,null,{"$f":"IF(AND(ISBLANK('Measure Input'!$N$42), ISBLANK('Measure Input'!$S$42)), \"N/A\", IF(AND(NOT(ISBLANK('Measure Input'!$N$42)), NOT(ISBLANK('Measure Input'!$S$42))), \"YES\", \"NO\"))","v":"N/A"}]
[null,null,null,null,null,null,null,null,null,null,"Program Selection:",null,null,null,null,null,"Anti-Sweat Heater Controls (Refrigeration)",null,null,null,null,{"$f":"IF(AND(ISBLANK('Measure Input'!$U$43), ISBLANK('Measure Input'!$S$43), ISBLANK('Measure Input'!$W$43)), \"N/A\", IF(AND(NOT(ISBLANK('Measure Input'!$U$43)), NOT(ISBLANK('Measure Input'!$S$43)), NOT(ISBLANK('Measure Input'!$W$43))), \"YES\", \"NO\"))","v":"N/A"}]
[null,null,null,null,null,null,null,null,null,null,"Program Type:",null,null,null,{"$f":"IF(ISBLANK('Project Information'!$CP$23), \"NO\", \"YES\")","v":"NO"},null,"Door Gaskets (Refrigeration)",null,null,null,null,{"$f":"IF(AND(ISBLANK('Measure Input'!$N$44), ISBLANK('Measure Input'!$U$44), ISBLANK('Measure Input'!$S$44)), \"N/A\", IF(AND(NOT(ISBLANK('Measure Input'!$N$44)), NOT(ISBLANK('Measure Input'!$U$44)), NOT(ISBLANK('Measure Input'!$S$44))), \"YES\", \"NO\"))","v":"N/A"}]
[null,null,null,null,null,null,null,null,null,null,"Project Stage:",null,null,null,{"$f":"IF(ISBLANK('Project Information'!$CP$29), \"NO\", \"YES\")","v":"NO"},null,"Low-Flow Sink Aerators ",null,null,null,null,{"$f":"IF(AND(ISBLANK('Measure Input'!$N$48), ISBLANK('Measure Input'!$P$48)), \"N/A\",  IF(AND(NOT(ISBLANK('Measure Input'!$N$48)), NOT(ISBLANK('Measure Input'!$P$48))), \"YES\", \"NO\"))","v":"N/A"}]

{"sheet":"Summary Report","index":15,"n_rows":111,"n_cols":10,"rows_kept":111,"cut":false,"hidden":false,"merged":[[117,3,118,4],[37,2,38,5],[37,6,38,8],[37,9,38,9],[45,9,46,9],[45,2,46,5],[39,9,40,9],[45,6,46,8],[39,2,40,5],[41,2,42,5],[43,2,44,5],[39,6,40,8],[41,6,42,8],[43,6,44,8],[67,2,68,9],[89,2,91,9],[1,1,4,7],[5,1,6,7],[59,1,62,7],[63,1,64,7],[41,9,42,9],[43,9,44,9],[33,6,34,8],[33,9,34,9],[35,9,36,9],[33,2,34,5],[35,2,36,5],[35,6,36,8],[13,2,14,4],[13,7,14,9],[15,2,17,4],[18,2,20,4],[110,1,112,10],[22,2,26,9],[18,7,20,9],[15,7,17,9],[69,2,70,9],[87,2,88,9],[47,2,48,5],[47,9,48,9],[47,6,48,8]]}
[]
[null,"ENERGY SAVINGS REPORT"]
[]
[]
[]
[null," Commercial and Industrial Program"]
[]
[]
[]
[]
[]
[]
[]
[null,null,"Customer",null,null,null,null,{"$f":"IF(ISBLANK('Project Information'!$AH$23), \"\", \"Trade Ally/Contractor\")","v":""}]
[]
[null,null,{"$f":"'Project Information'!N21","v":0},null,null,null,null,{"$f":"IF(ISBLANK('Project Information'!$AH$23), \"\", 'Project Information'!$AH$23)","v":""}]
[]
[]
[null,null,{"$f":"'Project Information'!N23","v":0},null,null,null,null,{"$f":"IF(ISBLANK('Project Information'!$AH$25), \"\", 'Project Information'!$AH$25)","v":""}]
[]
[]
[]
[null,null,"Thank you for participating in the Energy Smart Commercial Solutions Program. Energy Smart is proud to help New Orleans' businesses increase energy efficiency and lower costs. Contact us at info@energysmartnola.com for more opportunities to save."]
[]
[]
[]
[]
[]
[]
[]
[]
[]
[]
[null,null,"Estimated Annual Energy Savings",null,null,null,{"$f":"'Measure Input'!$AH$2","v":0},null,null,"kWh/yr"]
[]
[null,null,"Estimated Peak Demand Savings",null,null,null,{"$f":"'Measure Input'!$AJ$2","v":0},null,null,"kW"]
[]
[null,null,"Estimated Energy Cost Savings",null,null,null,{"$f":"$G$34*'Project Information'!$BB$33","v":0},null,null,"$/yr"]
[]
[null,null,"Estimated Gross Project Cost",null,null,null,{"$f":"'Measure Input'!$AC$2","v":0},null,null,"$"]
[]
[null,null,"Estimated Incentive",null,null,null,{"$f":"'Measure Input'!$AL$2","v":0},null,null,"$"]
[]
[null,null,"Estimated Net Project Cost",null,null,null,{"$f":"$G$40-$G$42","v":0},null,null,"$"]
[]
[null,null,"Simple Payback",null,null,null,{"$f":"IFERROR(($G$44)/$G$38,0)","v":0},null,null,"years"]
[]
[null,null,"Percentage of Project Cost Covered ",null,null,null,{"$f":"IF($G$40=0, \"\", $G$42/$G$40)","v":""},null,null,"%"]
[]
[]
[]
[]
[]
[]
[]
[]
[]
[]
[]
[null,"ENERGY SAVINGS REPORT"]
[]
[]
[]
[null," Commercial and Industrial Program"]
[]
[]
[]
[null,null,"15-Year Cash Flow "]
[]
[null,null,"Analysis to depict estimated savings for investing in energy efficiency."]
[]
[]
[]
[]
[]
[]
[]
[]
[]
[]
[]
[]
[]
[]
[]
[]
[]
[null,null,"Simple Payback Chart"]
[]
[null,null,"Analysis to show amount of time it takes to recover installation costs based on annual energy cost savings."]
[]
[]
[]
[]
[]
[]
[]
[]
[]
[]
[]
[]
[]
[]
[]
[]
[]
[]
[]
[]
[null,"Energy Smart is a comprehensive energy efficiency program developed by the New Orleans City Council and administered by Entergy New Orleans, LLC.\n©2018 Entergy Services, Inc. All Rights Reserved.  "]

{"sheet":"Logging Data","index":16,"n_rows":16,"n_cols":2,"rows_kept":16,"cut":false,"hidden":true,"merged":[[8,1,8,20],[9,1,9,20],[10,1,10,20],[11,1,11,20],[12,1,12,20],[13,1,13,20],[1,1,1,20],[3,1,3,20],[4,1,4,20],[5,1,5,20],[6,1,6,20],[7,1,7,20],[20,1,20,20],[21,1,21,20],[22,1,22,20],[23,1,23,20],[24,1,24,20],[25,1,25,20],[14,1,14,20],[15,1,15,20],[16,1,16,20],[17,1,17,20],[18,1,18,20],[19,1,19,20],[32,1,32,20],[33,1,33,20],[34,1,34,20],[35,1,35,20],[36,1,36,20],[37,1,37,20],[26,1,26,20],[27,1,27,20],[28,1,28,20],[29,1,29,20],[30,1,30,20],[31,1,31,20],[44,1,44,20],[45,1,45,20],[46,1,46,20],[47,1,47,20],[48,1,48,20],[49,1,49,20],[38,1,38,20],[39,1,39,20],[40,1,40,20],[41,1,41,20],[42,1,42,20],[43,1,43,20],[56,1,56,20],[57,1,57,20],[58,1,58,20],[59,1,59,20],[60,1,60,20],[61,1,61,20],[50,1,50,20],[51,1,51,20],[52,1,52,20],[53,1,53,20],[54,1,54,20],[55,1,55,20],[68,1,68,20],[69,1,69,20],[70,1,70,20],[71,1,71,20],[72,1,72,20],[73,1,73,20],[62,1,62,20],[63,1,63,20],[64,1,64,20],[65,1,65,20],[66,1,66,20],[67,1,67,20],[80,1,80,20],[81,1,81,20],[82,1,82,20],[83,1,83,20],[84,1,84,20],[85,1,85,20],[74,1,74,20],[75,1,75,20],[76,1,76,20],[77,1,77,20],[78,1,78,20],[79,1,79,20],[92,1,92,20],[93,1,93,20],[94,1,94,20],[95,1,95,20],[96,1,96,20],[97,1,97,20],[86,1,86,20],[87,1,87,20],[88,1,88,20],[89,1,89,20],[90,1,90,20],[91,1,91,20],[104,1,104,20],[105,1,105,20],[106,1,106,20],[107,1,107,20],[108,1,108,20],[109,1,109,20],[98,1,98,20],[99,1,99,20],[100,1,100,20],[101,1,101,20],[102,1,102,20],[103,1,103,20],[116,1,116,20],[117,1,117,20],[118,1,118,20],[119,1,119,20],[120,1,120,20],[121,1,121,20],[110,1,110,20],[111,1,111,20],[112,1,112,20],[113,1,113,20],[114,1,114,20],[115,1,115,20],[128,1,128,20],[129,1,129,20],[130,1,130,20],[131,1,131,20],[132,1,132,20],[133,1,133,20],[122,1,122,20],[123,1,123,20],[124,1,124,20],[125,1,125,20],[126,1,126,20],[127,1,127,20],[140,1,140,20],[141,1,141,20],[142,1,142,20],[143,1,143,20],[144,1,144,20],[145,1,145,20],[134,1,134,20],[135,1,135,20],[136,1,136,20],[137,1,137,20],[138,1,138,20],[139,1,139,20],[152,1,152,20],[153,1,153,20],[154,1,154,20],[155,1,155,20],[156,1,156,20],[157,1,157,20],[146,1,146,20],[147,1,147,20],[148,1,148,20],[149,1,149,20],[150,1,150,20],[151,1,151,20],[164,1,164,20],[165,1,165,20],[166,1,166,20],[167,1,167,20],[168,1,168,20],[169,1,169,20],[158,1,158,20],[159,1,159,20],[160,1,160,20],[161,1,161,20],[162,1,162,20],[163,1,163,20],[176,1,176,20],[177,1,177,20],[178,1,178,20],[179,1,179,20],[180,1,180,20],[181,1,181,20],[170,1,170,20],[171,1,171,20],[172,1,172,20],[173,1,173,20],[174,1,174,20],[175,1,175,20],[188,1,188,20],[189,1,189,20],[190,1,190,20],[191,1,191,20],[192,1,192,20],[193,1,193,20],[182,1,182,20],[183,1,183,20],[184,1,184,20],[185,1,185,20],[186,1,186,20],[187,1,187,20],[200,1,200,20],[201,1,201,20],[202,1,202,20],[203,1,203,20],[204,1,204,20],[205,1,205,20],[194,1,194,20],[195,1,195,20],[196,1,196,20],[197,1,197,20],[198,1,198,20],[199,1,199,20],[212,1,212,20],[213,1,213,20],[214,1,214,20],[215,1,215,20],[216,1,216,20],[217,1,217,20],[206,1,206,20],[207,1,207,20],[208,1,208,20],[209,1,209,20],[210,1,210,20],[211,1,211,20],[224,1,224,20],[225,1,225,20],[226,1,226,20],[227,1,227,20],[228,1,228,20],[229,1,229,20],[218,1,218,20],[219,1,219,20],[220,1,220,20],[221,1,221,20],[222,1,222,20],[223,1,223,20],[236,1,236,20],[237,1,237,20],[238,1,238,20],[239,1,239,20],[240,1,240,20],[241,1,241,20],[230,1,230,20],[231,1,231,20],[232,1,232,20],[233,1,233,20],[234,1,234,20],[235,1,235,20],[248,1,248,20],[249,1,249,20],[250,1,250,20],[251,1,251,20],[252,1,252,20],[253,1,253,20],[242,1,242,20],[243,1,243,20],[244,1,244,20],[245,1,245,20],[246,1,246,20],[247,1,247,20],[260,1,260,20],[261,1,261,20],[262,1,262,20],[263,1,263,20],[264,1,264,20],[265,1,265,20],[254,1,254,20],[255,1,255,20],[256,1,256,20],[257,1,257,20],[258,1,258,20],[259,1,259,20],[272,1,272,20],[273,1,273,20],[274,1,274,20],[275,1,275,20],[276,1,276,20],[277,1,277,20],[266,1,266,20],[267,1,267,20],[268,1,268,20],[269,1,269,20],[270,1,270,20],[271,1,271,20],[284,1,284,20],[285,1,285,20],[286,1,286,20],[287,1,287,20],[288,1,288,20],[289,1,289,20],[278,1,278,20],[279,1,279,20],[280,1,280,20],[281,1,281,20],[282,1,282,20],[283,1,283,20],[296,1,296,20],[297,1,297,20],[298,1,298,20],[299,1,299,20],[300,1,300,20],[301,1,301,20],[290,1,290,20],[291,1,291,20],[292,1,292,20],[293,1,293,20],[294,1,294,20],[295,1,295,20],[308,1,308,20],[309,1,309,20],[310,1,310,20],[311,1,311,20],[312,1,312,20],[313,1,313,20],[302,1,302,20],[303,1,303,20],[304,1,304,20],[305,1,305,20],[306,1,306,20],[307,1,307,20],[320,1,320,20],[321,1,321,20],[322,1,322,20],[323,1,323,20],[324,1,324,20],[325,1,325,20],[314,1,314,20],[315,1,315,20],[316,1,316,20],[317,1,317,20],[318,1,318,20],[319,1,319,20],[332,1,332,20],[333,1,333,20],[334,1,334,20],[335,1,335,20],[336,1,336,20],[337,1,337,20],[326,1,326,20],[327,1,327,20],[328,1,328,20],[329,1,329,20],[330,1,330,20],[331,1,331,20],[344,1,344,20],[345,1,345,20],[346,1,346,20],[347,1,347,20],[348,1,348,20],[349,1,349,20],[338,1,338,20],[339,1,339,20],[340,1,340,20],[341,1,341,20],[342,1,342,20],[343,1,343,20],[356,1,356,20],[357,1,357,20],[358,1,358,20],[359,1,359,20],[360,1,360,20],[361,1,361,20],[350,1,350,20],[351,1,351,20],[352,1,352,20],[353,1,353,20],[354,1,354,20],[355,1,355,20],[368,1,368,20],[369,1,369,20],[370,1,370,20],[371,1,371,20],[372,1,372,20],[373,1,373,20],[362,1,362,20],[363,1,363,20],[364,1,364,20],[365,1,365,20],[366,1,366,20],[367,1,367,20],[380,1,380,20],[381,1,381,20],[382,1,382,20],[383,1,383,20],[384,1,384,20],[385,1,385,20],[374,1,374,20],[375,1,375,20],[376,1,376,20],[377,1,377,20],[378,1,378,20],[379,1,379,20],[392,1,392,20],[393,1,393,20],[394,1,394,20],[395,1,395,20],[396,1,396,20],[397,1,397,20],[386,1,386,20],[387,1,387,20],[388,1,388,20],[389,1,389,20],[390,1,390,20],[391,1,391,20],[404,1,404,20],[405,1,405,20],[406,1,406,20],[407,1,407,20],[408,1,408,20],[409,1,409,20],[398,1,398,20],[399,1,399,20],[400,1,400,20],[401,1,401,20],[402,1,402,20],[403,1,403,20],[416,1,416,20],[417,1,417,20],[418,1,418,20],[419,1,419,20],[420,1,420,20],[421,1,421,20],[410,1,410,20],[411,1,411,20],[412,1,412,20],[413,1,413,20],[414,1,414,20],[415,1,415,20],[428,1,428,20],[429,1,429,20],[430,1,430,20],[431,1,431,20],[432,1,432,20],[433,1,433,20],[422,1,422,20],[423,1,423,20],[424,1,424,20],[425,1,425,20],[426,1,426,20],[427,1,427,20],[440,1,440,20],[441,1,441,20],[442,1,442,20],[443,1,443,20],[444,1,444,20],[445,1,445,20],[434,1,434,20],[435,1,435,20],[436,1,436,20],[437,1,437,20],[438,1,438,20],[439,1,439,20],[452,1,452,20],[453,1,453,20],[454,1,454,20],[455,1,455,20],[456,1,456,20],[457,1,457,20],[446,1,446,20],[447,1,447,20],[448,1,448,20],[449,1,449,20],[450,1,450,20],[451,1,451,20],[464,1,464,20],[465,1,465,20],[466,1,466,20],[467,1,467,20],[468,1,468,20],[469,1,469,20],[458,1,458,20],[459,1,459,20],[460,1,460,20],[461,1,461,20],[462,1,462,20],[463,1,463,20],[476,1,476,20],[477,1,477,20],[478,1,478,20],[479,1,479,20],[480,1,480,20],[481,1,481,20],[470,1,470,20],[471,1,471,20],[472,1,472,20],[473,1,473,20],[474,1,474,20],[475,1,475,20],[488,1,488,20],[489,1,489,20],[490,1,490,20],[491,1,491,20],[492,1,492,20],[493,1,493,20],[482,1,482,20],[483,1,483,20],[484,1,484,20],[485,1,485,20],[486,1,486,20],[487,1,487,20],[500,1,500,20],[501,1,501,20],[502,1,502,20],[503,1,503,20],[504,1,504,20],[505,1,505,20],[494,1,494,20],[495,1,495,20],[496,1,496,20],[497,1,497,20],[498,1,498,20],[499,1,499,20],[512,1,512,20],[513,1,513,20],[514,1,514,20],[515,1,515,20],[516,1,516,20],[517,1,517,20],[506,1,506,20],[507,1,507,20],[508,1,508,20],[509,1,509,20],[510,1,510,20],[511,1,511,20],[524,1,524,20],[525,1,525,20],[526,1,526,20],[527,1,527,20],[528,1,528,20],[529,1,529,20],[518,1,518,20],[519,1,519,20],[520,1,520,20],[521,1,521,20],[522,1,522,20],[523,1,523,20],[536,1,536,20],[537,1,537,20],[538,1,538,20],[539,1,539,20],[540,1,540,20],[541,1,541,20],[530,1,530,20],[531,1,531,20],[532,1,532,20],[533,1,533,20],[534,1,534,20],[535,1,535,20],[548,1,548,20],[549,1,549,20],[550,1,550,20],[551,1,551,20],[552,1,552,20],[553,1,553,20],[542,1,542,20],[543,1,543,20],[544,1,544,20],[545,1,545,20],[546,1,546,20],[547,1,547,20],[560,1,560,20],[561,1,561,20],[562,1,562,20],[563,1,563,20],[564,1,564,20],[565,1,565,20],[554,1,554,20],[555,1,555,20],[556,1,556,20],[557,1,557,20],[558,1,558,20],[559,1,559,20],[572,1,572,20],[573,1,573,20],[574,1,574,20],[575,1,575,20],[576,1,576,20],[577,1,577,20],[566,1,566,20],[567,1,567,20],[568,1,568,20],[569,1,569,20],[570,1,570,20],[571,1,571,20],[584,1,584,20],[585,1,585,20],[586,1,586,20],[587,1,587,20],[588,1,588,20],[589,1,589,20],[578,1,578,20],[579,1,579,20],[580,1,580,20],[581,1,581,20],[582,1,582,20],[583,1,583,20],[596,1,596,20],[597,1,597,20],[598,1,598,20],[599,1,599,20],[600,1,600,20],[601,1,601,20],[590,1,590,20],[591,1,591,20],[592,1,592,20],[593,1,593,20],[594,1,594,20],[595,1,595,20],[608,1,608,20],[609,1,609,20],[610,1,610,20],[611,1,611,20],[612,1,612,20],[613,1,613,20],[602,1,602,20],[603,1,603,20],[604,1,604,20],[605,1,605,20],[606,1,606,20],[607,1,607,20],[620,1,620,20],[621,1,621,20],[622,1,622,20],[623,1,623,20],[624,1,624,20],[625,1,625,20],[614,1,614,20],[615,1,615,20],[616,1,616,20],[617,1,617,20],[618,1,618,20],[619,1,619,20],[632,1,632,20],[633,1,633,20],[634,1,634,20],[635,1,635,20],[636,1,636,20],[637,1,637,20],[626,1,626,20],[627,1,627,20],[628,1,628,20],[629,1,629,20],[630,1,630,20],[631,1,631,20],[644,1,644,20],[645,1,645,20],[646,1,646,20],[647,1,647,20],[648,1,648,20],[649,1,649,20],[638,1,638,20],[639,1,639,20],[640,1,640,20],[641,1,641,20],[642,1,642,20],[643,1,643,20],[656,1,656,20],[657,1,657,20],[658,1,658,20],[659,1,659,20],[660,1,660,20],[661,1,661,20],[650,1,650,20],[651,1,651,20],[652,1,652,20],[653,1,653,20],[654,1,654,20],[655,1,655,20],[668,1,668,20],[669,1,669,20],[670,1,670,20],[671,1,671,20],[672,1,672,20],[673,1,673,20],[662,1,662,20],[663,1,663,20],[664,1,664,20],[665,1,665,20],[666,1,666,20],[667,1,667,20],[680,1,680,20],[681,1,681,20],[682,1,682,20],[683,1,683,20],[684,1,684,20],[685,1,685,20],[674,1,674,20],[675,1,675,20],[676,1,676,20],[677,1,677,20],[678,1,678,20],[679,1,679,20],[692,1,692,20],[693,1,693,20],[694,1,694,20],[695,1,695,20],[696,1,696,20],[697,1,697,20],[686,1,686,20],[687,1,687,20],[688,1,688,20],[689,1,689,20],[690,1,690,20],[691,1,691,20],[716,1,716,20],[717,1,717,20],[718,1,718,20],[719,1,719,20],[720,1,720,20],[2,1,2,20],[710,1,710,20],[711,1,711,20],[712,1,712,20],[713,1,713,20],[714,1,714,20],[715,1,715,20],[704,1,704,20],[705,1,705,20],[706,1,706,20],[707,1,707,20],[708,1,708,20],[709,1,709,20],[698,1,698,20],[699,1,699,20],[700,1,700,20],[701,1,701,20],[702,1,702,20],[703,1,703,20]]}
["Logging Data just serves as to how we have updated the sheet over a period of time"]
["Date","What got updated?"]
["06.05.18","v1.3 was put online on the energy smart website"]
[null,"Formatting cells in \"Measure Input\" Sheet to allow tabbing through measures (right-click on each cell, go to format cells, go to protection and uncheck \"locked\")"]
[null,"The PC Power Management Measure Input was not summing with the other cells (The formula for the total referenced the wrong cell for PC Power so this was updated)"]
["06.08.18","PSD Updated Functionality to make it easy to incorproate into compass. Email was sent out June 8th 2018 at 2.01pm. Kristin and Mike were copied in this email. "]
["08.17.18","Left-Aligned Entergy Account Number on \"Project Information\" Tab"]
[null,"Updated A/C and Heat Pump Incentive Values in \"Incentive List\" Tab based on ADM's approval on 08.16"]
[null,"Modify \"FAQ\" Shape in \"Instructions\" Tab"]
[null,"Linked \"Tons of Cooling\" in \"HVAC Savings Tab\" (Heat Pump Analysis) to \"Cooling Tons\" (Heat Pumps) in \"Measure Input\" Tab. "]
[null,"Swithced Titles for Cooling and Heating Tons for Heat Pumps in \"Measure Input\" Tab"]
[null,"In \"HVAC Savings Tab\", added CF values to Table 4 (CF = Coincidence Factor) based on ADM logic (using an average value). Cleaned Table 4 by removing highlighted cells"]
[null,"Reformatted Titles for \"Heat Pumps\" in \"Measure Input Tab\". Due to updated, updated cell references and formulas in \"HVAC Savings Tab\" and \"Checklist Tab\""]
["08.20.18","Continued: Reformatted Titles for \"Heat Pumps\" in \"Measure Input Tab\". Due to updated, updated cell references and formulas in \"HVAC Savings Tab\" and \"Checklist Tab\""]
[null,"In \"REC Savings Tab\", Updated Analysis for Anti-Sweather Heat Controls to include low-temperature and med-temperature values options. Analysis, Measure Input Tab and Checklist were updated."]
[null,"In \"Low-Flow Fixture Savings Tab\", Updated analysis to incorporate units installed for the peak demand and annual energy savings analysis"]

{"sheet":"Notes","index":17,"n_rows":59,"n_cols":24,"rows_kept":59,"cut":false,"hidden":true,"merged":[[25,5,25,8],[29,0,29,2],[25,0,25,3],[52,0,52,1],[53,0,53,1],[54,0,54,1],[55,0,55,1],[0,0,0,3],[1,0,1,2],[2,0,2,2],[3,0,3,2],[4,0,4,2],[26,0,26,2],[27,0,27,2],[28,0,28,2]]}
["Lighting System Costs",null,null,null,null,null,null,null,null,null,"Yes",null,null,null,null,null,null,"Building Data","Building Data Subs","Notes"]
["Type",null,null,"Cost",null,null,null,null,null,null,"No",null,null,null,null,null,null,"Building Type","Bar Area","Place of business or the sale of alcoholic drinks","Internet"]
["Annual Cost of Waiting",null,null,{"$f":"'Summary Report'!$G$42","v":0},"Estimated Annual Savings",null,null,null,null,null,null,null,null,null,"DO NOT DELETE",null,null,"Building Type","Corridor/Hallway/Stairwell","Common areas such as lobby, corridors and stairways open to people as well as other spaces that may have continuous or large lighting and HVAC hours","Illinois TRM",null,null,"Education: K-12"]
["Annual Cost after Retrofit",null,null,{"$f":"D5-D3","v":0},null,null,null,null,null,null,"Large Commercial and Industrial Program",null,null,null,null,null,null,"Building Type","Education: College/University","Facility space used fo higher education. Buildings include administrative headquarters, residence halls, athletic and recreation facilities, laboratories, etcs","Illinois TRM",null,null,"Education: College/University"]
["Annual Cost before Retrofit",null,null,{"$f":"'Summary Report'!$G$38","v":0},null,null,null,null,null,null,"Small Commercial and Industrial Program",null,null,null,null,null,null,"Building Type","Education: K-12","Facility space used as a school bulding for K through 12th grade students. Should include supporting functions such as administrative space, conference rooms, cafeterias, gymnasiums, auditoria, stairways, etcs","Illinois TRM",null,null,"Exterior/Outdoors/Parking Lot"]
[null,null,null,null,null,null,null,null,null,null,"Publicly-Funded Institutions",null,null,null,null,null,null,"Building Type","Education: K-12 (specialized room)","Facility space used as a school bulding for K through 12th grade students with special building conditions","Guess",null,null,"Food Sales: 24-Hour Supermarket"]
[null,null,null,null,null,null,null,null,null,null,null,null,null,null,null,null,null,"Building Type","Exterior/Outdoors/Parking Lot","Unconditioned spaces outside of the building envelope","Illinois TRM",null,null,"Food Sales: Non 24-Hour Supermarket"]
[null,null,null,null,null,null,null,null,null,null,"Pre-Installation",null,null,null,null,null,null,"Building Type","Food Prep (Generic)","Facility space used for the preparation of food. Building is similar to a kitchen space and contains commercial kitchen equipment","Guess",null,null,"Food Service: Fast Food"]
[null,null,null,null,null,null,null,null,null,null,"Post-Installation",null,null,null,null,null,null,"Building Type","Food Sales: 24-Hour Supermarket","Facility space used for the retail sale of food and beverage products","Illinois TRM",null,null,"Food Service: Sit-Down Restaurant"]
[null,null,null,null,null,null,null,null,null,null,null,null,null,null,null,null,null,"Building Type","Food Sales: Non 24-Hour Supermarket","Facility space used for the retail sale of food and beverage products","Illinois TRM",null,null,"Health Care: Nursing Home"]
[null,null,null,null,null,null,null,null,null,null,null,null,null,null,null,null,null,"Building Type","Food Service: Fast Food","Subcategory of retail/service space that is used to provide commercial services to individual customers and includes kitchen, dining and common areas","Illinois TRM",null,null,"Health Care: Out-Patient"]
[null,null,null,null,null,null,null,null,null,null,null,null,null,null,null,null,null,"Building Type","Food Service: Sit-Down Restaurant","Subcategory of retail/service space that is used to provide commercial services to individual customers and includes kitchen, dining and common areas","Illinois TRM",null,null,"Health Care: In-Patient"]
[null,null,null,null,null,null,null,null,null,null,null,null,null,null,null,null,null,"Building Type","Health Care: In-Patient","Facility spaces used to provide diagnosis and treatment for medical, dental or psychriatic outpatient care","Illinois TRM",null,null,"Lodging (Hotel/Motel/Dorm): Common Areas"]
[null,null,null,null,null,null,null,null,null,null,null,null,null,null,null,null,null,"Building Type","Health Care: Nursing Home","Facility spaces used to provide diagnosis and treatment for medical, dental or psychriatic outpatient care","Illinois TRM",null,null,"Lodging (Hotel/Motel/Dorm): Room"]
[null,null,null,null,null,null,null,null,null,null,null,null,null,null,null,null,null,"Building Type","Health Care: Out-Patient","Facility spaces used to provide diagnosis and treatment for medical, dental or psychriatic outpatient care","Illinois TRM",null,null,"Manufacturing"]
[null,null,null,null,null,null,null,null,null,null,null,null,null,null,null,null,null,"Building Type","Kwik-E-Mart","Facility space used for the retail sal of a limited selection of food and beverage poducts. Typically includes break rooms used by staff, storag areas and administrative areas","Illinois TRM",null,null,"Office"]
[null,null,null,null,null,null,null,null,null,null,"Year","Project Cost","Savings","Net Flow","Zero Line","Payback ",null,"Building Type","Lodging (Hotel/Motel/Dorm): Common Areas","Common areas such as lobby, corridors and stairways open to guest and occupants of hotel/motel/dorm as well as other spaces that may have continuous or large lighting and HVAC hours","Illinois TRM",null,null,"Parking Structure"]
[null,null,null,null,null,null,null,null,null,null,1,{"$f":"$D$29","v":0},{"$f":"$D$5","v":0},{"$f":"M18-L18","v":0},0,{"$f":"'Summary Report'!$G$46","v":0},null,"Building Type","Lodging (Hotel/Motel/Dorm): Room","Rooms of the hotel/motel/dorm. These spaces (rooms) are occupied intermittently","Illinois TRM",null,null,"Public Assembly"]
[null,null,null,null,null,null,null,null,null,null,2,{"$f":"$D$29","v":0},{"$f":"$D$5","v":0},{"$f":"M19+N18","v":0},0,null,null,"Building Type","Manufacturing","Buildings dedicated to manufacturing activities. It includes light industry buildings characterizd by consumer product and component manufacturing and heavy industry buildings typically characterized by a plant","Illinois TRM",null,null,"Public Order and Safety"]
[null,null,null,null,null,null,null,null,null,null,3,0,0,{"$f":"M20+N19","v":0},0,null,null,"Building Type","Multi-family Housing: Common Areas","Common areas such as lobby, corridors and stairways and other spaces that may have continuous or high lighting and HVAC hours","Illinois TRM",null,null,"Religious Gathering"]
[null,null,null,null,null,null,null,null,null,null,4,0,0,0,0,null,null,"Building Type","Non-Warehouse Storage (Generic)","N/A",null,null,null,"Retail: Strip Mall"]
[null,null,null,null,null,null,null,null,null,null,5,0,0,0,0,null,null,"Building Type","Office","Facility spaces in buildings used fo general office, professional and administrative purposes","Illinois TRM",null,null,"Retail: Enclosed Mall"]
[null,null,null,null,null,null,null,null,null,null,6,0,0,0,0,null,null,"Building Type","Office (attached to other facility)","Facility spaces in buildings used fo general office, professional and administrative purposes","Illinois TRM",null,null,"Retail: Other"]
[null,null,null,null,null,null,null,null,null,null,7,0,0,0,0,null,null,"Building Type","Parking Structure","Applies to unconditioned spaces either attached or dtached from the primary building envlope that are not used for living space","Illinois TRM",null,null,"Service: Excluding Food"]
[null,null,null,null,null,null,null,null,null,null,8,0,0,0,0,null,null,"Building Type","Public Assembly","Performance space such as a hall. Building should include mechanical rooms, storage areas, stairewlls, administrative/office space, seating, stage and backstage","Illinois TRM",null,null,"Warehouse: Non-Refrigerated"]
["15 Year Cash Flow",null,null,null,null,"15 Year Cash Flow",null,null,null,null,9,0,0,0,0,null,null,"Building Type","Public Order and Safety","N/A",null,null,null,"Warehouse: Refrigerated"]
["Estimated Project Cost",null,null,{"$f":"'Summary Report'!$G$40","v":0},null,"Year","Cash Flow",null,null,null,10,0,0,0,0,null,null,"Building Type","Religious Gathering","Buildings that are used as a place of worship. Could inclue restrooms, primary worship area, community rooms, classtooms, etcs. ","Illinois TRM"]
["Estimated utility Incentive",null,null,{"$f":"'Summary Report'!$G$42","v":0},null,1,{"$f":"D3-D29","v":0},null,null,null,null,null,null,null,null,null,null,"Building Type","Restroom (Generic)","N/A"]
["Estimated Project Cost after Incentive",null,null,{"$f":"D27-D28","v":0},null,5,{"$f":"G28+D3*4","v":0},null,null,null,null,null,null,null,null,null,null,"Building Type","Retail: Enclosed Mall","Facility Space used to conduct the retail sale of consumer product goods","Illinois TRM"]
["Return on Investment",null,null,{"$f":"D3/D29","v":{"$error":"#DIV/0!"}},null,10,{"$f":"G29+D3*5","v":0},null,null,null,null,null,null,null,null,null,null,"Building Type","Retail: Freestanding","Facility Space used to conduct the retail sale of consumer product goods","Illinois TRM"]
[null,null,null,null,null,15,{"$f":"G30+D3*5","v":0},null,null,null,null,null,null,null,null,null,null,"Building Type","Retail: Other","Facility Space used to conduct the retail sale of consumer product goods","Illinois TRM"]
[null,null,null,null,null,null,null,null,null,null,null,null,null,null,null,null,null,"Building Type","Retail: Strip Mall","Facility Space used to conduct the retail sale of consumer product goods","Illinois TRM"]
[null,null,null,null,null,null,null,null,null,null,null,null,null,null,null,null,null,"Building Type","Security Booth","N/A"]
[null,null,null,null,null,null,null,null,null,null,null,null,null,null,null,null,null,"Building Type","Service: Excluding Food","N/A"]
[null,null,null,null,null,null,null,null,null,null,null,null,null,null,null,null,null,"Building Type","Showroom Floor","Preformance space such as a theater","Illinois TRM"]
[null,null,null,null,null,null,null,null,null,null,null,null,null,null,null,null,null,"Building Type","Walk-In Cooler (Generic)","N/A"]
[null,null,null,null,null,null,null,null,null,null,null,null,null,null,null,null,null,"Building Type","Warehouse: Non-Refrigerated","Unrefrigerated buildings that are used to store goods, manufactured products, merchandise or raw materials","Illinois TRM"]
[null,null,null,null,null,null,null,null,null,null,null,null,null,null,null,null,null,"Building Type","Warehouse: Refrigerated","Refrigerated buildings that are used to store goods, manufactured products, merchandise or raw materials","Illinois TRM"]
[null,null,null,null,null,null,null,null,null,null,null,null,null,null,null,null,null,"Space Conditions","A/C with gas heat","Air Conditioning System with gas heating system. \"Cooling Conditions\" is Air Conditioned Space and \"Heating Type\" is Gas","Guess"]
[null,null,null,null,null,null,null,null,null,null,null,null,null,null,null,null,null,"Space Conditions","A/C with electric resistance heat","Air Conditioning System with electric resistance heating system. \"Cooling Conditions\"is Air Conditioned Space and \"Heating Type\" is electric resistance","Guess"]
[null,null,null,null,null,null,null,null,null,null,null,null,null,null,null,null,null,"Space Conditions","A/C with heat pump heat","Air Conditioning System with heat pump heating system. \"Cooling Conditions\" is Air Conditioned Space and \"Heating Type\" is \"Heat Pump\"","Guess"]
[null,null,null,null,null,null,null,null,null,null,null,null,null,null,null,null,null,"Space Conditions","A/C with no heat","Air Conditioning System wthat provides cooling only. \"Cooling Conditions\" is Air Conditioned Space and \"Heating Type\" is N/A","Guess"]
[null,null,null,null,null,null,null,null,null,null,null,null,null,null,null,null,null,"Space Conditions","Refrigerated space (33-41°F)","storage in a cold place for preservation. \"Cooling Conditions\" is Refrigerated Space (33-410F) and \"Heating Type\" is All","Guess"]
[null,null,null,null,null,null,null,null,null,null,null,null,null,null,null,null,null,"Space Conditions","Freezer space (-10-10°F)","storage in a cold place for preservation. Examples include walk-in freezers. \"Cooling Conditions\" is Freezer Space (-10-100F) and \"Heating Type\" is All","Guess"]
[null,null,null,null,null,null,null,null,null,null,null,null,null,null,null,null,null,"Space Conditions","N/A (Unconditioned)","an enclosed space within a building that is not cooled or heated directly or indirectly by a system. Parking Garages with natural ventilation are not considered enclosed spaces. \"Cooling Conditions\" and \"Heating Type\" is N/A","ASHRAE 90.1-2013"]
[null,null,null,null,null,null,null,null,null,null,null,null,null,null,null,null,null,"Cooling Conditions","Air Conditioned Space – Normal Temps. (> 41°F)","an enclosed space within a building that is cooled by a cooling system, heated by a heatng system, OR cooled or heated indirectly by being connected to an adjacent space.","ASHRAE online"]
[null,null,null,null,null,null,null,null,null,null,null,null,null,null,null,null,null,"Cooling Conditions","Refrigerated Space – Med. Temps. (33-41°F)","storage in a cold place for preservation ","Guess"]
[null,null,null,null,null,null,null,null,null,null,null,null,null,null,null,null,null,"Cooling Conditions","Refrigerated Space – Low Temps. (-10-10°F)","storage in a cold place for preservation. Examples include walk-in freezers","Guess"]
[null,null,null,null,null,null,null,null,null,null,null,null,null,null,null,null,null,"Cooling Conditions","N/A","N/A"]
[null,null,null,null,null,null,null,null,null,null,null,null,null,null,null,null,null,"Heating Type","Gas","Heating by means of energy producted by the burning of natural gas","Internet and Guess"]
[null,null,null,null,null,null,null,null,null,null,null,null,null,null,null,null,null,"Heating Type","Electric Resistance","Heating by means of energy produced by the passing of electric current through resistance units","Internet"]
[null,null,"Year 1","Year 2","Year 3","Year 4","Year 5","Year 6","Year 7","Year 8","Year 9","Year 10","Year 11","Year 12","Year 13",null,null,"Heating Type","Heat Pump","Apparatus for heating a builing by transferring heat by mechanical maens from or to an external reservoir (such as the ground, water or outside air)","Internet"]
["Energy Savings",null,{"$f":"$D$28","v":0},{"$f":"$D$28","v":0},0,0,0,0,0,0,0,0,0,0,0,null,null,"Heating Type","N/A","N/A"]
["Project Cost",null,{"$f":"D27","v":0},0,0,0,0,0,0,0,0,0,0,0,0,null,null,"Heating Type","All","N/A"]
["Net Flow",null,{"$f":"C53-C54","v":0},{"$f":"D53-D54","v":0},{"$f":"E53-E54","v":0},{"$f":"F53-F54","v":0},0,0,0,0,0,0,0,0,0]
["Cumulative Flow",null,{"$f":"C55","v":0},{"$f":"C56+D55","v":0},{"$f":"D56+E55","v":0},0,0,0,0,0,0,0,0,0,0,null,null,"Building Type"]
[null,null,null,null,null,null,null,null,null,null,null,null,null,null,null,null,null,"Space Conditions"]
[null,null,null,null,null,null,null,null,null,null,null,null,null,null,null,null,null,"Cooling Conditions"]
[null,null,null,null,null,null,null,null,null,null,null,null,null,null,null,null,null,"Heating Type"]